Body,Body Name,Effective Date,Transaction Number,Amount,Supplier Name,Supplier Number,Expense Area,Service Area
HCC,Hull City Council,08/07/2020,8184850,215.59,01DIRECTLTD,10132550,Expenditure,Corporate Finance
HCC,Hull City Council,08/07/2020,8185726,40.80,225 CARS LTD,10136919,Home to School Transport - Special,Learning and Skills
HCC,Hull City Council,08/07/2020,8185726,47.09,225 CARS LTD,10136919,Home to School Transport - Special,Learning and Skills
HCC,Hull City Council,08/07/2020,8185726,331.50,225 CARS LTD,10136919,Home to School Transport - Special,Learning and Skills
HCC,Hull City Council,08/07/2020,8185727,97.37,225 CARS LTD,10136919,Home to School Transport - Special,Learning and Skills
HCC,Hull City Council,08/07/2020,8185727,112.38,225 CARS LTD,10136919,Home to School Transport - Special,Learning and Skills
HCC,Hull City Council,08/07/2020,8185727,791.06,225 CARS LTD,10136919,Home to School Transport - Special,Learning and Skills
HCC,Hull City Council,08/07/2020,8185728,69.55,225 CARS LTD,10136919,Home to School Transport - Special,Learning and Skills
HCC,Hull City Council,08/07/2020,8185728,80.27,225 CARS LTD,10136919,Home to School Transport - Special,Learning and Skills
HCC,Hull City Council,08/07/2020,8185728,565.04,225 CARS LTD,10136919,Home to School Transport - Special,Learning and Skills
HCC,Hull City Council,08/07/2020,8185729,13.91,225 CARS LTD,10136919,Home to School Transport - Special,Learning and Skills
HCC,Hull City Council,08/07/2020,8185729,16.05,225 CARS LTD,10136919,Home to School Transport - Special,Learning and Skills
HCC,Hull City Council,08/07/2020,8185729,113.01,225 CARS LTD,10136919,Home to School Transport - Special,Learning and Skills
HCC,Hull City Council,08/07/2020,8185730,73.26,225 CARS LTD,10136919,Home to School Transport - Special,Learning and Skills
HCC,Hull City Council,08/07/2020,8185730,84.55,225 CARS LTD,10136919,Home to School Transport - Special,Learning and Skills
HCC,Hull City Council,08/07/2020,8185730,595.18,225 CARS LTD,10136919,Home to School Transport - Special,Learning and Skills
HCC,Hull City Council,08/07/2020,8185731,88.09,225 CARS LTD,10136919,Home to School Transport - Special,Learning and Skills
HCC,Hull City Council,08/07/2020,8185731,101.68,225 CARS LTD,10136919,Home to School Transport - Special,Learning and Skills
HCC,Hull City Council,08/07/2020,8185731,715.72,225 CARS LTD,10136919,Home to School Transport - Special,Learning and Skills
HCC,Hull City Council,08/07/2020,8185726,64.61,225 CARS LTD,10136919,Transport - Looked After Children,Safeguarding
HCC,Hull City Council,08/07/2020,8185727,154.19,225 CARS LTD,10136919,Transport - Looked After Children,Safeguarding
HCC,Hull City Council,08/07/2020,8185728,110.14,225 CARS LTD,10136919,Transport - Looked After Children,Safeguarding
HCC,Hull City Council,08/07/2020,8185729,22.03,225 CARS LTD,10136919,Transport - Looked After Children,Safeguarding
HCC,Hull City Council,08/07/2020,8185730,116.01,225 CARS LTD,10136919,Transport - Looked After Children,Safeguarding
HCC,Hull City Council,08/07/2020,8185731,139.51,225 CARS LTD,10136919,Transport - Looked After Children,Safeguarding
HCC,Hull City Council,24/07/2020,8216510,"4,046.96",4 SEASONS (HULL) LTD,10065636,Commissioning Team,Adults Social Care
HCC,Hull City Council,23/07/2020,8208658,810.00,4 SEASONS (HULL) LTD,10065636,Agency Day Care,Adults Social Care
HCC,Hull City Council,23/07/2020,8208659,630.00,4 SEASONS (HULL) LTD,10065636,Agency Day Care,Adults Social Care
HCC,Hull City Council,23/07/2020,8208660,225.00,4 SEASONS (HULL) LTD,10065636,Agency Day Care,Adults Social Care
HCC,Hull City Council,23/07/2020,8208661,630.00,4 SEASONS (HULL) LTD,10065636,Agency Day Care,Adults Social Care
HCC,Hull City Council,23/07/2020,8208662,810.00,4 SEASONS (HULL) LTD,10065636,Agency Day Care,Adults Social Care
HCC,Hull City Council,23/07/2020,8208663,810.00,4 SEASONS (HULL) LTD,10065636,Agency Day Care,Adults Social Care
HCC,Hull City Council,23/07/2020,8208664,630.00,4 SEASONS (HULL) LTD,10065636,Agency Day Care,Adults Social Care
HCC,Hull City Council,24/07/2020,8208673,480.26,A & B HEALTHCARE LIMITED,10132715,Agency Home Care,Adults Social Care
HCC,Hull City Council,08/07/2020,8185732,21.00,A B ROOMS & SON LIMITED,01180091,Cherry Hinton Court,Adults Social Care
HCC,Hull City Council,13/07/2020,8188328,4.50,A B ROOMS & SON LIMITED,01180091,Learner Services,City Safe & Early Intervention
HCC,Hull City Council,02/07/2020,8166961,24.24,A B ROOMS & SON LIMITED,01180091,Expenditure,Corporate Finance
HCC,Hull City Council,28/07/2020,8220736,21.00,A B ROOMS & SON LIMITED,01180091,Management Fee HRA Areas,Neighbourhoods & Housing
HCC,Hull City Council,08/07/2020,8182287,4.50,A B ROOMS & SON LIMITED,01180091,"Accommodation, Operations",Property & Assets
HCC,Hull City Council,23/07/2020,8205589,5.08,A B ROOMS & SON LIMITED,01180091,S3- Environmental Services,Street Scene Services
HCC,Hull City Council,23/07/2020,8205595,2.79,A B ROOMS & SON LIMITED,01180091,S3- Environmental Services,Street Scene Services
HCC,Hull City Council,29/07/2020,8220679,12.20,A B ROOMS & SON LIMITED,01180091,S3- Environmental Services,Street Scene Services
HCC,Hull City Council,29/07/2020,8220680,7.62,A B ROOMS & SON LIMITED,01180091,S3- Environmental Services,Street Scene Services
HCC,Hull City Council,29/07/2020,8220687,5.51,A B ROOMS & SON LIMITED,01180091,S3- Environmental Services,Street Scene Services
HCC,Hull City Council,01/07/2020,8166981,40.42,A B ROOMS & SON LIMITED,01180091,Grounds Maintenance,Street Scene Services
HCC,Hull City Council,01/07/2020,8166983,2.53,A B ROOMS & SON LIMITED,01180091,Grounds Maintenance,Street Scene Services
HCC,Hull City Council,01/07/2020,8166985,5.05,A B ROOMS & SON LIMITED,01180091,Grounds Maintenance,Street Scene Services
HCC,Hull City Council,23/07/2020,8205589,0.92,A B ROOMS & SON LIMITED,01180091,Grounds Maintenance,Street Scene Services
HCC,Hull City Council,23/07/2020,8205595,0.51,A B ROOMS & SON LIMITED,01180091,Grounds Maintenance,Street Scene Services
HCC,Hull City Council,29/07/2020,8220679,2.20,A B ROOMS & SON LIMITED,01180091,Grounds Maintenance,Street Scene Services
HCC,Hull City Council,29/07/2020,8220680,1.38,A B ROOMS & SON LIMITED,01180091,Grounds Maintenance,Street Scene Services
HCC,Hull City Council,29/07/2020,8220687,0.99,A B ROOMS & SON LIMITED,01180091,Grounds Maintenance,Street Scene Services
HCC,Hull City Council,13/07/2020,8187974,205.00,A B ROOMS & SON LIMITED,01180091,Parks & Open Spaces Development,Street Scene Services
HCC,Hull City Council,13/07/2020,8187975,55.00,A B ROOMS & SON LIMITED,01180091,Parks & Open Spaces Development,Street Scene Services
HCC,Hull City Council,01/07/2020,8166981,7.58,A B ROOMS & SON LIMITED,01180091,Highways Operations,Street Scene Services
HCC,Hull City Council,01/07/2020,8166983,0.47,A B ROOMS & SON LIMITED,01180091,Highways Operations,Street Scene Services
HCC,Hull City Council,01/07/2020,8166985,0.95,A B ROOMS & SON LIMITED,01180091,Highways Operations,Street Scene Services
HCC,Hull City Council,07/07/2020,8184704,110.00,A STAR REMOVALS,10083003,Marfleet Children's Home,Safeguarding
HCC,Hull City Council,03/07/2020,8182043,312.00,A2B REMOVALS & STORAGE,10028705,Care Leavers,Safeguarding
HCC,Hull City Council,28/07/2020,8218626,"4,190.69",AA GLOBAL LANGUAGES SERVICES LTD,10035259,Interpretation & Translation Service,Corporate Finance
HCC,Hull City Council,30/07/2020,8221101,600.00,AAA GROUNDWORKS,10120676,N.R.S.W.A,Major Projects & Infrastructure
HCC,Hull City Council,31/07/2020,8221325,"1,255.80",AAA GROUNDWORKS,10120676,N.R.S.W.A,Major Projects & Infrastructure
HCC,Hull City Council,30/07/2020,8221101,600.00,AAA GROUNDWORKS,10120676,Management Fee - Area Based Spend,Neighbourhoods & Housing
HCC,Hull City Council,14/07/2020,8189485,"37,906.26",ABCA SYSTEMS,10054755,Renew Controlled Entry Systems,CAPITAL
HCC,Hull City Council,07/07/2020,8184668,34.50,ABCA SYSTEMS,10054755,West R&M,Neighbourhoods & Housing
HCC,Hull City Council,14/07/2020,8189489,148.50,ABCA SYSTEMS,10054755,West R&M,Neighbourhoods & Housing
HCC,Hull City Council,14/07/2020,8189492,172.50,ABCA SYSTEMS,10054755,West R&M,Neighbourhoods & Housing
HCC,Hull City Council,14/07/2020,8189503,34.50,ABCA SYSTEMS,10054755,West R&M,Neighbourhoods & Housing
HCC,Hull City Council,14/07/2020,8189507,34.50,ABCA SYSTEMS,10054755,West R&M,Neighbourhoods & Housing
HCC,Hull City Council,20/07/2020,8201547,147.43,ABCA SYSTEMS,10054755,West R&M,Neighbourhoods & Housing
HCC,Hull City Council,28/07/2020,8218703,69.00,ABCA SYSTEMS,10054755,West R&M,Neighbourhoods & Housing
HCC,Hull City Council,28/07/2020,8218704,34.50,ABCA SYSTEMS,10054755,West R&M,Neighbourhoods & Housing
HCC,Hull City Council,28/07/2020,8218717,32.50,ABCA SYSTEMS,10054755,West R&M,Neighbourhoods & Housing
HCC,Hull City Council,07/07/2020,8184663,69.00,ABCA SYSTEMS,10054755,Riverside R&M,Neighbourhoods & Housing
HCC,Hull City Council,07/07/2020,8184669,79.50,ABCA SYSTEMS,10054755,Riverside R&M,Neighbourhoods & Housing
HCC,Hull City Council,07/07/2020,8184670,"4,550.02",ABCA SYSTEMS,10054755,Riverside R&M,Neighbourhoods & Housing
HCC,Hull City Council,14/07/2020,8189476,52.50,ABCA SYSTEMS,10054755,Riverside R&M,Neighbourhoods & Housing
HCC,Hull City Council,14/07/2020,8189477,34.50,ABCA SYSTEMS,10054755,Riverside R&M,Neighbourhoods & Housing
HCC,Hull City Council,14/07/2020,8189478,34.50,ABCA SYSTEMS,10054755,Riverside R&M,Neighbourhoods & Housing
HCC,Hull City Council,14/07/2020,8189487,114.00,ABCA SYSTEMS,10054755,Riverside R&M,Neighbourhoods & Housing
HCC,Hull City Council,14/07/2020,8189488,103.50,ABCA SYSTEMS,10054755,Riverside R&M,Neighbourhoods & Housing
HCC,Hull City Council,14/07/2020,8189490,34.50,ABCA SYSTEMS,10054755,Riverside R&M,Neighbourhoods & Housing
HCC,Hull City Council,14/07/2020,8189493,34.50,ABCA SYSTEMS,10054755,Riverside R&M,Neighbourhoods & Housing
HCC,Hull City Council,14/07/2020,8189494,34.50,ABCA SYSTEMS,10054755,Riverside R&M,Neighbourhoods & Housing
HCC,Hull City Council,14/07/2020,8189499,34.50,ABCA SYSTEMS,10054755,Riverside R&M,Neighbourhoods & Housing
HCC,Hull City Council,14/07/2020,8189501,79.50,ABCA SYSTEMS,10054755,Riverside R&M,Neighbourhoods & Housing
HCC,Hull City Council,14/07/2020,8189505,34.50,ABCA SYSTEMS,10054755,Riverside R&M,Neighbourhoods & Housing
HCC,Hull City Council,14/07/2020,8189506,34.50,ABCA SYSTEMS,10054755,Riverside R&M,Neighbourhoods & Housing
HCC,Hull City Council,14/07/2020,8189508,34.50,ABCA SYSTEMS,10054755,Riverside R&M,Neighbourhoods & Housing
HCC,Hull City Council,22/07/2020,8201542,148.50,ABCA SYSTEMS,10054755,Riverside R&M,Neighbourhoods & Housing
HCC,Hull City Council,22/07/2020,8201544,34.50,ABCA SYSTEMS,10054755,Riverside R&M,Neighbourhoods & Housing
HCC,Hull City Council,20/07/2020,8201545,148.00,ABCA SYSTEMS,10054755,Riverside R&M,Neighbourhoods & Housing
HCC,Hull City Council,20/07/2020,8201548,200.30,ABCA SYSTEMS,10054755,Riverside R&M,Neighbourhoods & Housing
HCC,Hull City Council,28/07/2020,8218697,184.60,ABCA SYSTEMS,10054755,Riverside R&M,Neighbourhoods & Housing
HCC,Hull City Council,28/07/2020,8218698,114.00,ABCA SYSTEMS,10054755,Riverside R&M,Neighbourhoods & Housing
HCC,Hull City Council,28/07/2020,8218700,215.57,ABCA SYSTEMS,10054755,Riverside R&M,Neighbourhoods & Housing
HCC,Hull City Council,28/07/2020,8218705,34.50,ABCA SYSTEMS,10054755,Riverside R&M,Neighbourhoods & Housing
HCC,Hull City Council,28/07/2020,8218706,34.50,ABCA SYSTEMS,10054755,Riverside R&M,Neighbourhoods & Housing
HCC,Hull City Council,28/07/2020,8218709,32.50,ABCA SYSTEMS,10054755,Riverside R&M,Neighbourhoods & Housing
HCC,Hull City Council,28/07/2020,8218710,155.45,ABCA SYSTEMS,10054755,Riverside R&M,Neighbourhoods & Housing
HCC,Hull City Council,28/07/2020,8218712,34.50,ABCA SYSTEMS,10054755,Riverside R&M,Neighbourhoods & Housing
HCC,Hull City Council,28/07/2020,8218713,34.50,ABCA SYSTEMS,10054755,Riverside R&M,Neighbourhoods & Housing
HCC,Hull City Council,28/07/2020,8218715,32.50,ABCA SYSTEMS,10054755,Riverside R&M,Neighbourhoods & Housing
HCC,Hull City Council,28/07/2020,8218716,130.00,ABCA SYSTEMS,10054755,Riverside R&M,Neighbourhoods & Housing
HCC,Hull City Council,07/07/2020,8184665,34.50,ABCA SYSTEMS,10054755,Wyke R&M,Neighbourhoods & Housing
HCC,Hull City Council,07/07/2020,8184666,34.50,ABCA SYSTEMS,10054755,Wyke R&M,Neighbourhoods & Housing
HCC,Hull City Council,14/07/2020,8189479,34.50,ABCA SYSTEMS,10054755,Wyke R&M,Neighbourhoods & Housing
HCC,Hull City Council,14/07/2020,8189482,34.50,ABCA SYSTEMS,10054755,Wyke R&M,Neighbourhoods & Housing
HCC,Hull City Council,14/07/2020,8189500,34.50,ABCA SYSTEMS,10054755,Wyke R&M,Neighbourhoods & Housing
HCC,Hull City Council,14/07/2020,8189504,34.50,ABCA SYSTEMS,10054755,Wyke R&M,Neighbourhoods & Housing
HCC,Hull City Council,20/07/2020,8201549,34.50,ABCA SYSTEMS,10054755,Wyke R&M,Neighbourhoods & Housing
HCC,Hull City Council,28/07/2020,8218699,34.50,ABCA SYSTEMS,10054755,Wyke R&M,Neighbourhoods & Housing
HCC,Hull City Council,28/07/2020,8218707,34.50,ABCA SYSTEMS,10054755,Wyke R&M,Neighbourhoods & Housing
HCC,Hull City Council,28/07/2020,8218708,52.50,ABCA SYSTEMS,10054755,Wyke R&M,Neighbourhoods & Housing
HCC,Hull City Council,28/07/2020,8218711,272.57,ABCA SYSTEMS,10054755,Wyke R&M,Neighbourhoods & Housing
HCC,Hull City Council,14/07/2020,8189480,34.50,ABCA SYSTEMS,10054755,North R&M,Neighbourhoods & Housing
HCC,Hull City Council,14/07/2020,8189495,34.50,ABCA SYSTEMS,10054755,North R&M,Neighbourhoods & Housing
HCC,Hull City Council,14/07/2020,8189497,49.92,ABCA SYSTEMS,10054755,North R&M,Neighbourhoods & Housing
HCC,Hull City Council,14/07/2020,8189498,207.35,ABCA SYSTEMS,10054755,North R&M,Neighbourhoods & Housing
HCC,Hull City Council,22/07/2020,8201541,122.57,ABCA SYSTEMS,10054755,North R&M,Neighbourhoods & Housing
HCC,Hull City Council,20/07/2020,8201550,34.50,ABCA SYSTEMS,10054755,North R&M,Neighbourhoods & Housing
HCC,Hull City Council,28/07/2020,8218696,119.66,ABCA SYSTEMS,10054755,North R&M,Neighbourhoods & Housing
HCC,Hull City Council,07/07/2020,8184664,69.00,ABCA SYSTEMS,10054755,North Carr R&M,Neighbourhoods & Housing
HCC,Hull City Council,14/07/2020,8189484,103.50,ABCA SYSTEMS,10054755,North Carr R&M,Neighbourhoods & Housing
HCC,Hull City Council,14/07/2020,8189491,56.91,ABCA SYSTEMS,10054755,North Carr R&M,Neighbourhoods & Housing
HCC,Hull City Council,14/07/2020,8189502,34.50,ABCA SYSTEMS,10054755,North Carr R&M,Neighbourhoods & Housing
HCC,Hull City Council,28/07/2020,8218714,34.50,ABCA SYSTEMS,10054755,North Carr R&M,Neighbourhoods & Housing
HCC,Hull City Council,14/07/2020,8189483,103.50,ABCA SYSTEMS,10054755,East R&M,Neighbourhoods & Housing
HCC,Hull City Council,14/07/2020,8189486,183.57,ABCA SYSTEMS,10054755,East R&M,Neighbourhoods & Housing
HCC,Hull City Council,22/07/2020,8201543,34.50,ABCA SYSTEMS,10054755,East R&M,Neighbourhoods & Housing
HCC,Hull City Council,20/07/2020,8201546,34.50,ABCA SYSTEMS,10054755,East R&M,Neighbourhoods & Housing
HCC,Hull City Council,07/07/2020,8184667,79.50,ABCA SYSTEMS,10054755,Park R&M,Neighbourhoods & Housing
HCC,Hull City Council,14/07/2020,8189481,114.00,ABCA SYSTEMS,10054755,Park R&M,Neighbourhoods & Housing
HCC,Hull City Council,14/07/2020,8189496,134.52,ABCA SYSTEMS,10054755,Park R&M,Neighbourhoods & Housing
HCC,Hull City Council,28/07/2020,8218701,69.00,ABCA SYSTEMS,10054755,Park R&M,Neighbourhoods & Housing
HCC,Hull City Council,28/07/2020,8218702,34.50,ABCA SYSTEMS,10054755,Park R&M,Neighbourhoods & Housing
HCC,Hull City Council,22/07/2020,8201685,"1,760.00",ACKLAMS COACHES,01324249,Home to School Transport - Special,Learning and Skills
HCC,Hull City Council,22/07/2020,8201685,"2,860.88",ACKLAMS COACHES,01324249,Home to School Transport - Special,Learning and Skills
HCC,Hull City Council,22/07/2020,8203724,"4,940.00",ACTION FOR CHILDREN,10052038,Fostering Agency,Safeguarding
HCC,Hull City Council,23/07/2020,8208568,"1,200.00",ACTIVE DAY CARE HULL LTD,10090231,Agency Day Care,Adults Social Care
HCC,Hull City Council,23/07/2020,8208569,480.00,ACTIVE DAY CARE HULL LTD,10090231,Agency Day Care,Adults Social Care
HCC,Hull City Council,23/07/2020,8208570,480.00,ACTIVE DAY CARE HULL LTD,10090231,Agency Day Care,Adults Social Care
HCC,Hull City Council,23/07/2020,8208571,720.00,ACTIVE DAY CARE HULL LTD,10090231,Agency Day Care,Adults Social Care
HCC,Hull City Council,23/07/2020,8208572,480.00,ACTIVE DAY CARE HULL LTD,10090231,Agency Day Care,Adults Social Care
HCC,Hull City Council,23/07/2020,8208573,"1,200.00",ACTIVE DAY CARE HULL LTD,10090231,Agency Day Care,Adults Social Care
HCC,Hull City Council,23/07/2020,8208574,"1,200.00",ACTIVE DAY CARE HULL LTD,10090231,Agency Day Care,Adults Social Care
HCC,Hull City Council,23/07/2020,8208575,480.00,ACTIVE DAY CARE HULL LTD,10090231,Agency Day Care,Adults Social Care
HCC,Hull City Council,23/07/2020,8208576,960.00,ACTIVE DAY CARE HULL LTD,10090231,Agency Day Care,Adults Social Care
HCC,Hull City Council,23/07/2020,8208577,720.00,ACTIVE DAY CARE HULL LTD,10090231,Agency Day Care,Adults Social Care
HCC,Hull City Council,23/07/2020,8208578,720.00,ACTIVE DAY CARE HULL LTD,10090231,Agency Day Care,Adults Social Care
HCC,Hull City Council,23/07/2020,8208579,240.00,ACTIVE DAY CARE HULL LTD,10090231,Agency Day Care,Adults Social Care
HCC,Hull City Council,23/07/2020,8208580,"1,200.00",ACTIVE DAY CARE HULL LTD,10090231,Agency Day Care,Adults Social Care
HCC,Hull City Council,23/07/2020,8208581,"1,200.00",ACTIVE DAY CARE HULL LTD,10090231,Agency Day Care,Adults Social Care
HCC,Hull City Council,23/07/2020,8208582,240.00,ACTIVE DAY CARE HULL LTD,10090231,Agency Day Care,Adults Social Care
HCC,Hull City Council,23/07/2020,8208583,"1,200.00",ACTIVE DAY CARE HULL LTD,10090231,Agency Day Care,Adults Social Care
HCC,Hull City Council,23/07/2020,8208584,"1,200.00",ACTIVE DAY CARE HULL LTD,10090231,Agency Day Care,Adults Social Care
HCC,Hull City Council,23/07/2020,8208585,"1,200.00",ACTIVE DAY CARE HULL LTD,10090231,Agency Day Care,Adults Social Care
HCC,Hull City Council,23/07/2020,8208586,240.00,ACTIVE DAY CARE HULL LTD,10090231,Agency Day Care,Adults Social Care
HCC,Hull City Council,23/07/2020,8208587,720.00,ACTIVE DAY CARE HULL LTD,10090231,Agency Day Care,Adults Social Care
HCC,Hull City Council,23/07/2020,8208588,"1,200.00",ACTIVE DAY CARE HULL LTD,10090231,Agency Day Care,Adults Social Care
HCC,Hull City Council,23/07/2020,8208589,720.00,ACTIVE DAY CARE HULL LTD,10090231,Agency Day Care,Adults Social Care
HCC,Hull City Council,23/07/2020,8208590,"1,200.00",ACTIVE DAY CARE HULL LTD,10090231,Agency Day Care,Adults Social Care
HCC,Hull City Council,23/07/2020,8208591,960.00,ACTIVE DAY CARE HULL LTD,10090231,Agency Day Care,Adults Social Care
HCC,Hull City Council,23/07/2020,8208592,960.00,ACTIVE DAY CARE HULL LTD,10090231,Agency Day Care,Adults Social Care
HCC,Hull City Council,23/07/2020,8208593,960.00,ACTIVE DAY CARE HULL LTD,10090231,Agency Day Care,Adults Social Care
HCC,Hull City Council,23/07/2020,8208594,960.00,ACTIVE DAY CARE HULL LTD,10090231,Agency Day Care,Adults Social Care
HCC,Hull City Council,23/07/2020,8208595,960.00,ACTIVE DAY CARE HULL LTD,10090231,Agency Day Care,Adults Social Care
HCC,Hull City Council,23/07/2020,8208596,960.00,ACTIVE DAY CARE HULL LTD,10090231,Agency Day Care,Adults Social Care
HCC,Hull City Council,23/07/2020,8208597,"1,200.00",ACTIVE DAY CARE HULL LTD,10090231,Agency Day Care,Adults Social Care
HCC,Hull City Council,23/07/2020,8208598,960.00,ACTIVE DAY CARE HULL LTD,10090231,Agency Day Care,Adults Social Care
HCC,Hull City Council,23/07/2020,8208599,240.00,ACTIVE DAY CARE HULL LTD,10090231,Agency Day Care,Adults Social Care
HCC,Hull City Council,23/07/2020,8208600,720.00,ACTIVE DAY CARE HULL LTD,10090231,Agency Day Care,Adults Social Care
HCC,Hull City Council,23/07/2020,8208601,720.00,ACTIVE DAY CARE HULL LTD,10090231,Agency Day Care,Adults Social Care
HCC,Hull City Council,23/07/2020,8208602,720.00,ACTIVE DAY CARE HULL LTD,10090231,Agency Day Care,Adults Social Care
HCC,Hull City Council,23/07/2020,8208603,720.00,ACTIVE DAY CARE HULL LTD,10090231,Agency Day Care,Adults Social Care
HCC,Hull City Council,23/07/2020,8208604,480.00,ACTIVE DAY CARE HULL LTD,10090231,Agency Day Care,Adults Social Care
HCC,Hull City Council,23/07/2020,8208605,720.00,ACTIVE DAY CARE HULL LTD,10090231,Agency Day Care,Adults Social Care
HCC,Hull City Council,23/07/2020,8208606,"1,200.00",ACTIVE DAY CARE HULL LTD,10090231,Agency Day Care,Adults Social Care
HCC,Hull City Council,23/07/2020,8208607,480.00,ACTIVE DAY CARE HULL LTD,10090231,Agency Day Care,Adults Social Care
HCC,Hull City Council,23/07/2020,8208608,960.00,ACTIVE DAY CARE HULL LTD,10090231,Agency Day Care,Adults Social Care
HCC,Hull City Council,23/07/2020,8208609,"1,200.00",ACTIVE DAY CARE HULL LTD,10090231,Agency Day Care,Adults Social Care
HCC,Hull City Council,07/07/2020,8182541,"2,197.76",ADARE SEC,10048595,IER and Canvass,Town Clerks Service
HCC,Hull City Council,07/07/2020,8184774,176.00,ADDPLANT LTD,01010430,Humber Field Unit,Economic Development and Regeneration
HCC,Hull City Council,23/07/2020,8205633,660.00,ADDPLANT LTD,01010430,Highways Operations,Street Scene Services
HCC,Hull City Council,23/07/2020,8205634,660.00,ADDPLANT LTD,01010430,Highways Operations,Street Scene Services
HCC,Hull City Council,31/07/2020,8221417,"1,253.70",ADDY DAYCARE,10092962,3 & 4 Yr Olds EEF - PVI,Learning and Skills
HCC,Hull City Council,31/07/2020,8221417,417.90,ADDY DAYCARE,10092962,3 & 4 year Olds Additional Hours,Learning and Skills
HCC,Hull City Council,20/07/2020,8199582,"30,280.48",ADKA INDEPENDENCE,10058165,Direct Payments,Adults Social Care
HCC,Hull City Council,20/07/2020,8199582,"-1,459.60",ADKA INDEPENDENCE,10058165,Direct Payments,Adults Social Care
HCC,Hull City Council,06/07/2020,8182406,208.00,ADKA INDEPENDENCE,10058165,Agency Home Care,Adults Social Care
HCC,Hull City Council,06/07/2020,8182407,208.00,ADKA INDEPENDENCE,10058165,Agency Home Care,Adults Social Care
HCC,Hull City Council,06/07/2020,8182408,208.00,ADKA INDEPENDENCE,10058165,Agency Home Care,Adults Social Care
HCC,Hull City Council,06/07/2020,8182409,"2,002.00",ADKA INDEPENDENCE,10058165,Agency Home Care,Adults Social Care
HCC,Hull City Council,13/07/2020,8188256,"21,888.68",ADKA INDEPENDENCE,10058165,Agency - Supported Living,Adults Social Care
HCC,Hull City Council,09/07/2020,8186617,"1,118.36",ADLEADS LTD,10140412,ERDF - ICT,Economic Development and Regeneration
HCC,Hull City Council,20/07/2020,8199577,855.61,ADVANCED CARE YORKSHIRE LTD,01320566,Direct Payments,Adults Social Care
HCC,Hull City Council,06/07/2020,8182390,485.15,ADVANCED CARE YORKSHIRE LTD,01320566,Agency Home Care,Adults Social Care
HCC,Hull City Council,06/07/2020,8182391,266.05,ADVANCED CARE YORKSHIRE LTD,01320566,Agency Home Care,Adults Social Care
HCC,Hull City Council,06/07/2020,8182392,313.00,ADVANCED CARE YORKSHIRE LTD,01320566,Agency Home Care,Adults Social Care
HCC,Hull City Council,06/07/2020,8182393,281.70,ADVANCED CARE YORKSHIRE LTD,01320566,Agency Home Care,Adults Social Care
HCC,Hull City Council,06/07/2020,8182394,187.80,ADVANCED CARE YORKSHIRE LTD,01320566,Agency Home Care,Adults Social Care
HCC,Hull City Council,06/07/2020,8182395,802.06,ADVANCED CARE YORKSHIRE LTD,01320566,Agency Home Care,Adults Social Care
HCC,Hull City Council,06/07/2020,8182396,422.55,ADVANCED CARE YORKSHIRE LTD,01320566,Agency Home Care,Adults Social Care
HCC,Hull City Council,06/07/2020,8182397,234.75,ADVANCED CARE YORKSHIRE LTD,01320566,Agency Home Care,Adults Social Care
HCC,Hull City Council,06/07/2020,8182398,273.88,ADVANCED CARE YORKSHIRE LTD,01320566,Agency Home Care,Adults Social Care
HCC,Hull City Council,06/07/2020,8182399,234.75,ADVANCED CARE YORKSHIRE LTD,01320566,Agency Home Care,Adults Social Care
HCC,Hull City Council,06/07/2020,8182400,164.33,ADVANCED CARE YORKSHIRE LTD,01320566,Agency Home Care,Adults Social Care
HCC,Hull City Council,06/07/2020,8182401,727.73,ADVANCED CARE YORKSHIRE LTD,01320566,Agency Home Care,Adults Social Care
HCC,Hull City Council,06/07/2020,8182402,234.75,ADVANCED CARE YORKSHIRE LTD,01320566,Agency Home Care,Adults Social Care
HCC,Hull City Council,06/07/2020,8182419,"3,208.25",ADVANCED CARE YORKSHIRE LTD,01320566,Agency Home Care,Adults Social Care
HCC,Hull City Council,13/07/2020,8188303,"3,208.25",ADVANCED CARE YORKSHIRE LTD,01320566,Agency Home Care,Adults Social Care
HCC,Hull City Council,20/07/2020,8199567,"3,208.25",ADVANCED CARE YORKSHIRE LTD,01320566,Agency Home Care,Adults Social Care
HCC,Hull City Council,23/07/2020,8208626,422.55,ADVANCED CARE YORKSHIRE LTD,01320566,Agency Home Care,Adults Social Care
HCC,Hull City Council,23/07/2020,8208627,234.75,ADVANCED CARE YORKSHIRE LTD,01320566,Agency Home Care,Adults Social Care
HCC,Hull City Council,23/07/2020,8208628,258.23,ADVANCED CARE YORKSHIRE LTD,01320566,Agency Home Care,Adults Social Care
HCC,Hull City Council,23/07/2020,8208629,164.33,ADVANCED CARE YORKSHIRE LTD,01320566,Agency Home Care,Adults Social Care
HCC,Hull City Council,23/07/2020,8208630,637.75,ADVANCED CARE YORKSHIRE LTD,01320566,Agency Home Care,Adults Social Care
HCC,Hull City Council,24/07/2020,8213516,"3,208.25",ADVANCED CARE YORKSHIRE LTD,01320566,Agency Home Care,Adults Social Care
HCC,Hull City Council,17/07/2020,8198489,550.00,ADVANCED EPC LIMITED,10129718,Hull Warm Homes,CAPITAL
HCC,Hull City Council,17/07/2020,8198622,"1,080.00",ADVANCED EPC LIMITED,10129718,Hull Warm Homes,CAPITAL
HCC,Hull City Council,10/07/2020,8185938,235.00,ADVERSET MEDIA SOLUTIONS LIMITED,10043152,Externally Commissioned Print,Town Clerks Service
HCC,Hull City Council,10/07/2020,8185939,230.00,ADVERSET MEDIA SOLUTIONS LIMITED,10043152,Externally Commissioned Print,Town Clerks Service
HCC,Hull City Council,14/07/2020,8190452,772.00,ADVERSET MEDIA SOLUTIONS LIMITED,10043152,Externally Commissioned Print,Town Clerks Service
HCC,Hull City Council,31/07/2020,8221155,200.00,ADVOTALK,10126453,St.Andrew's C.E Primary School,Learning and Skills
HCC,Hull City Council,22/07/2020,8204266,"25,902.00",AFFINITY FOSTERING SERVICES LTD,10134929,Fostering Agency,Safeguarding
HCC,Hull City Council,09/07/2020,8186613,"4,731.20",AFOS LIMITED,10020601,ERDF - ICT,Economic Development and Regeneration
HCC,Hull City Council,24/07/2020,8216511,"9,190.24",AGE UK HULL,01322849,Commissioning Team,Adults Social Care
HCC,Hull City Council,23/07/2020,8208480,301.72,AIRLINK TRAVEL,01317275,Home to School Transport - Special,Learning and Skills
HCC,Hull City Council,23/07/2020,8208480,"2,338.28",AIRLINK TRAVEL,01317275,Home to School Transport - Special,Learning and Skills
HCC,Hull City Council,23/07/2020,8210498,178.29,AIRLINK TRAVEL,01317275,Home to School Transport - Special,Learning and Skills
HCC,Hull City Council,23/07/2020,8210498,"1,381.71",AIRLINK TRAVEL,01317275,Home to School Transport - Special,Learning and Skills
HCC,Hull City Council,13/07/2020,8188056,"2,272.76",AIRMYN RESIDENTIAL LTD,10131125,Agency Residential - Over 65,Adults Social Care
HCC,Hull City Council,13/07/2020,8188056,-595.40,AIRMYN RESIDENTIAL LTD,10131125,Agency Residential - Over 65,Adults Social Care
HCC,Hull City Council,08/07/2020,8184791,95.00,ALAMO LEGAL ENFORCEMENT SERVICES LTD,10135719,Comm & S/work General,Safeguarding
HCC,Hull City Council,08/07/2020,8184800,110.00,ALAMO LEGAL ENFORCEMENT SERVICES LTD,10135719,Comm & S/work General,Safeguarding
HCC,Hull City Council,28/07/2020,8218745,190.00,ALAMO LEGAL ENFORCEMENT SERVICES LTD,10135719,Comm & S/work General,Safeguarding
HCC,Hull City Council,20/07/2020,8201634,190.00,ALAMO LEGAL ENFORCEMENT SERVICES LTD,10135719,Permenancy Team 3,Safeguarding
HCC,Hull City Council,20/07/2020,8201635,190.00,ALAMO LEGAL ENFORCEMENT SERVICES LTD,10135719,Permenancy Team 3,Safeguarding
HCC,Hull City Council,13/07/2020,8188405,"3,960.00",ALAN WOOD & PARTNERS,01230658,Bridges - Scott Street/Wawne Bridges,CAPITAL
HCC,Hull City Council,29/07/2020,8220981,"12,722.00",ALDERMAN COGAN CE PRIMARY ACADEMY,10115476,Schools Budget Contingency,Learning and Skills
HCC,Hull City Council,13/07/2020,8188308,"3,833.55",ALIGN PROPERTY PARTNERS,10139970,Corporate Procurement Team,Town Clerks Service
HCC,Hull City Council,13/07/2020,8188309,"3,103.35",ALIGN PROPERTY PARTNERS,10139970,Corporate Procurement Team,Town Clerks Service
HCC,Hull City Council,13/07/2020,8188310,"3,869.77",ALIGN PROPERTY PARTNERS,10139970,Corporate Procurement Team,Town Clerks Service
HCC,Hull City Council,08/07/2020,8184727,600.00,ALL OCCASIONS LUXURY MARQUEE HIRE,01314296,Trinity Market Spend,Major Projects & Infrastructure
HCC,Hull City Council,24/07/2020,8215489,216.00,ALL OCCASIONS LUXURY MARQUEE HIRE,01314296,Trinity Market Spend,Major Projects & Infrastructure
HCC,Hull City Council,29/07/2020,8221040,"4,837.00",ALL OCCASIONS LUXURY MARQUEE HIRE,01314296,Trinity Market Spend,Major Projects & Infrastructure
HCC,Hull City Council,07/07/2020,8184705,"5,000.00",ALL OCCASIONS LUXURY MARQUEE HIRE,01314296,N.R.S.W.A,Major Projects & Infrastructure
HCC,Hull City Council,29/07/2020,8220900,"2,893.50",ALL OCCASIONS LUXURY MARQUEE HIRE,01314296,N.R.S.W.A,Major Projects & Infrastructure
HCC,Hull City Council,29/07/2020,8220901,"6,250.00",ALL OCCASIONS LUXURY MARQUEE HIRE,01314296,N.R.S.W.A,Major Projects & Infrastructure
HCC,Hull City Council,22/07/2020,8201689,68.00,ALL OCCASIONS LUXURY MARQUEE HIRE,01314296,Ferensway Transport Interchange,Street Scene Services
HCC,Hull City Council,22/07/2020,8201690,32.00,ALL OCCASIONS LUXURY MARQUEE HIRE,01314296,Ferensway Transport Interchange,Street Scene Services
HCC,Hull City Council,31/07/2020,8221421,"1,250.00",ALL SAINTS CHURCH OF ENGLAND JUNIOR ACADEMY,10136440,HN Payments to other LAs,Learning and Skills
HCC,Hull City Council,08/07/2020,8184849,80.00,ALL SECURE UK LOCKSMITHS,10109694,Rapid Housing Pathway,Neighbourhoods & Housing
HCC,Hull City Council,15/07/2020,8192459,20.00,ALL SECURE UK LOCKSMITHS,10109694,Rapid Housing Pathway,Neighbourhoods & Housing
HCC,Hull City Council,22/07/2020,8202482,170.00,ALL SECURE UK LOCKSMITHS,10109694,Rapid Housing Pathway,Neighbourhoods & Housing
HCC,Hull City Council,31/07/2020,8221360,172.00,ALL SECURE UK LOCKSMITHS,10109694,Rapid Housing Pathway,Neighbourhoods & Housing
HCC,Hull City Council,24/07/2020,8216494,"4,000.00",ALLENBY STEVENSON LTD,10139254,ERDF � Finance for Growth,Economic Development and Regeneration
HCC,Hull City Council,14/07/2020,8190507,209.92,ALLIED PUBLICITY SERVICES (MANCHESTER) LIMITED,10130688,Community See and Solve,Adults Social Care
HCC,Hull City Council,15/07/2020,8191516,322.69,ALLIED PUBLICITY SERVICES (MANCHESTER) LIMITED,10130688,Community See and Solve,Adults Social Care
HCC,Hull City Council,07/07/2020,8184732,16.94,ALLPAY.NET LTD,10009125,Debt Management - Banking,Corporate Finance
HCC,Hull City Council,07/07/2020,8184736,284.17,ALLPAY.NET LTD,10009125,Debt Management - Banking,Corporate Finance
HCC,Hull City Council,07/07/2020,8184738,"7,182.43",ALLPAY.NET LTD,10009125,Debt Management - Banking,Corporate Finance
HCC,Hull City Council,07/07/2020,8184739,124.11,ALLPAY.NET LTD,10009125,Debt Management - Banking,Corporate Finance
HCC,Hull City Council,07/07/2020,8184741,28.23,ALLPAY.NET LTD,10009125,Debt Management - Banking,Corporate Finance
HCC,Hull City Council,07/07/2020,8184745,31.08,ALLPAY.NET LTD,10009125,Debt Management - Banking,Corporate Finance
HCC,Hull City Council,06/07/2020,8182474,263.62,ALLPAY.NET LTD,10009125,Business Core,Neighbourhoods & Housing
HCC,Hull City Council,06/07/2020,8182477,174.69,ALLPAY.NET LTD,10009125,Business Core,Neighbourhoods & Housing
HCC,Hull City Council,06/07/2020,8182478,"6,322.89",ALLPAY.NET LTD,10009125,Business Core,Neighbourhoods & Housing
HCC,Hull City Council,07/07/2020,8182522,737.34,ALLPAY.NET LTD,10009125,Business Core,Neighbourhoods & Housing
HCC,Hull City Council,13/07/2020,8187999,8.81,ALLPAY.NET LTD,10009125,Garage & Other Lease Income,Neighbourhoods & Housing
HCC,Hull City Council,13/07/2020,8187999,21.00,ALLPAY.NET LTD,10009125,Covered Market - Operations,Property & Assets
HCC,Hull City Council,13/07/2020,8188403,30.85,ALLSTAR BUSINESS SOLUTIONS LTD,10070070,CPE - On Street & PCN,Street Scene Services
HCC,Hull City Council,31/07/2020,8221497,78.31,ALLSTAR BUSINESS SOLUTIONS LTD,10070070,CPE - On Street & PCN,Street Scene Services
HCC,Hull City Council,02/07/2020,8181952,"1,000.00",ALPHA EDUCATION COMMUNITY TRUST CIC,10104974,Commissioning Budget (H&WB),City Safe & Early Intervention
HCC,Hull City Council,23/07/2020,8195475,"1,000.00",ALPHA X INDUSTRIAL SERVICE LTD,10143034,ERDF - ICT,Economic Development and Regeneration
HCC,Hull City Council,29/07/2020,8186572,"8,850.00",AMBER FAMILY LTD,10142815,Residential Agency - Parent & Baby Assessment,Safeguarding
HCC,Hull City Council,09/07/2020,8186609,474.37,AMBER TRAVEL (HULL) LTD,10028318,Home to School Transport - Special,Learning and Skills
HCC,Hull City Council,09/07/2020,8186609,"4,629.63",AMBER TRAVEL (HULL) LTD,10028318,Home to School Transport - Special,Learning and Skills
HCC,Hull City Council,09/07/2020,8186622,894.28,AMBER TRAVEL (HULL) LTD,10028318,Home to School Transport - Special,Learning and Skills
HCC,Hull City Council,09/07/2020,8186622,"8,727.72",AMBER TRAVEL (HULL) LTD,10028318,Home to School Transport - Special,Learning and Skills
HCC,Hull City Council,09/07/2020,8186626,69.52,AMBER TRAVEL (HULL) LTD,10028318,Home to School Transport - Special,Learning and Skills
HCC,Hull City Council,09/07/2020,8186626,678.48,AMBER TRAVEL (HULL) LTD,10028318,Home to School Transport - Special,Learning and Skills
HCC,Hull City Council,09/07/2020,8186630,65.43,AMBER TRAVEL (HULL) LTD,10028318,Home to School Transport - Special,Learning and Skills
HCC,Hull City Council,09/07/2020,8186630,638.57,AMBER TRAVEL (HULL) LTD,10028318,Home to School Transport - Special,Learning and Skills
HCC,Hull City Council,09/07/2020,8186631,33.18,AMBER TRAVEL (HULL) LTD,10028318,Home to School Transport - Special,Learning and Skills
HCC,Hull City Council,09/07/2020,8186631,323.82,AMBER TRAVEL (HULL) LTD,10028318,Home to School Transport - Special,Learning and Skills
HCC,Hull City Council,09/07/2020,8186632,38.66,AMBER TRAVEL (HULL) LTD,10028318,Home to School Transport - Special,Learning and Skills
HCC,Hull City Council,09/07/2020,8186632,377.34,AMBER TRAVEL (HULL) LTD,10028318,Home to School Transport - Special,Learning and Skills
HCC,Hull City Council,09/07/2020,8186633,77.70,AMBER TRAVEL (HULL) LTD,10028318,Home to School Transport - Special,Learning and Skills
HCC,Hull City Council,09/07/2020,8186633,758.30,AMBER TRAVEL (HULL) LTD,10028318,Home to School Transport - Special,Learning and Skills
HCC,Hull City Council,09/07/2020,8186634,771.04,AMBER TRAVEL (HULL) LTD,10028318,Home to School Transport - Special,Learning and Skills
HCC,Hull City Council,09/07/2020,8186634,"7,524.96",AMBER TRAVEL (HULL) LTD,10028318,Home to School Transport - Special,Learning and Skills
HCC,Hull City Council,09/07/2020,8186635,24.16,AMBER TRAVEL (HULL) LTD,10028318,Home to School Transport - Special,Learning and Skills
HCC,Hull City Council,09/07/2020,8186635,235.84,AMBER TRAVEL (HULL) LTD,10028318,Home to School Transport - Special,Learning and Skills
HCC,Hull City Council,09/07/2020,8186636,20.45,AMBER TRAVEL (HULL) LTD,10028318,Home to School Transport - Special,Learning and Skills
HCC,Hull City Council,09/07/2020,8186636,199.55,AMBER TRAVEL (HULL) LTD,10028318,Home to School Transport - Special,Learning and Skills
HCC,Hull City Council,09/07/2020,8187558,28.81,AMBER TRAVEL (HULL) LTD,10028318,Home to School Transport - Special,Learning and Skills
HCC,Hull City Council,09/07/2020,8187558,281.19,AMBER TRAVEL (HULL) LTD,10028318,Home to School Transport - Special,Learning and Skills
HCC,Hull City Council,29/07/2020,8220800,278.38,AMBER TRAVEL (HULL) LTD,10028318,Home to School Transport - Special,Learning and Skills
HCC,Hull City Council,29/07/2020,8220800,"2,737.62",AMBER TRAVEL (HULL) LTD,10028318,Home to School Transport - Special,Learning and Skills
HCC,Hull City Council,29/07/2020,8220801,524.08,AMBER TRAVEL (HULL) LTD,10028318,Home to School Transport - Special,Learning and Skills
HCC,Hull City Council,29/07/2020,8220801,"5,153.92",AMBER TRAVEL (HULL) LTD,10028318,Home to School Transport - Special,Learning and Skills
HCC,Hull City Council,29/07/2020,8220802,40.80,AMBER TRAVEL (HULL) LTD,10028318,Home to School Transport - Special,Learning and Skills
HCC,Hull City Council,29/07/2020,8220802,401.20,AMBER TRAVEL (HULL) LTD,10028318,Home to School Transport - Special,Learning and Skills
HCC,Hull City Council,29/07/2020,8220803,38.40,AMBER TRAVEL (HULL) LTD,10028318,Home to School Transport - Special,Learning and Skills
HCC,Hull City Council,29/07/2020,8220803,377.60,AMBER TRAVEL (HULL) LTD,10028318,Home to School Transport - Special,Learning and Skills
HCC,Hull City Council,29/07/2020,8220804,21.32,AMBER TRAVEL (HULL) LTD,10028318,Home to School Transport - Special,Learning and Skills
HCC,Hull City Council,29/07/2020,8220804,209.68,AMBER TRAVEL (HULL) LTD,10028318,Home to School Transport - Special,Learning and Skills
HCC,Hull City Council,29/07/2020,8220805,23.63,AMBER TRAVEL (HULL) LTD,10028318,Home to School Transport - Special,Learning and Skills
HCC,Hull City Council,29/07/2020,8220805,232.37,AMBER TRAVEL (HULL) LTD,10028318,Home to School Transport - Special,Learning and Skills
HCC,Hull City Council,29/07/2020,8220806,45.60,AMBER TRAVEL (HULL) LTD,10028318,Home to School Transport - Special,Learning and Skills
HCC,Hull City Council,29/07/2020,8220806,448.40,AMBER TRAVEL (HULL) LTD,10028318,Home to School Transport - Special,Learning and Skills
HCC,Hull City Council,29/07/2020,8220807,451.90,AMBER TRAVEL (HULL) LTD,10028318,Home to School Transport - Special,Learning and Skills
HCC,Hull City Council,29/07/2020,8220807,"4,444.10",AMBER TRAVEL (HULL) LTD,10028318,Home to School Transport - Special,Learning and Skills
HCC,Hull City Council,29/07/2020,8220810,14.77,AMBER TRAVEL (HULL) LTD,10028318,Home to School Transport - Special,Learning and Skills
HCC,Hull City Council,29/07/2020,8220810,145.23,AMBER TRAVEL (HULL) LTD,10028318,Home to School Transport - Special,Learning and Skills
HCC,Hull City Council,29/07/2020,8220812,12.00,AMBER TRAVEL (HULL) LTD,10028318,Home to School Transport - Special,Learning and Skills
HCC,Hull City Council,29/07/2020,8220812,118.00,AMBER TRAVEL (HULL) LTD,10028318,Home to School Transport - Special,Learning and Skills
HCC,Hull City Council,29/07/2020,8220813,16.61,AMBER TRAVEL (HULL) LTD,10028318,Home to School Transport - Special,Learning and Skills
HCC,Hull City Council,29/07/2020,8220813,163.39,AMBER TRAVEL (HULL) LTD,10028318,Home to School Transport - Special,Learning and Skills
HCC,Hull City Council,22/07/2020,8204345,"19,852.00",AMBERLEIGH CARE LTD,10142697,Residential Agency,Safeguarding
HCC,Hull City Council,13/07/2020,8188194,"2,256.00",AMSTECOS LTD,10136757,Agency Residential - Over 65,Adults Social Care
HCC,Hull City Council,06/07/2020,8182504,675.00,AMVALE MEDICAL TRANSPORT LTD,01270129,Assessment Team 1,Safeguarding
HCC,Hull City Council,07/07/2020,8182584,"2,100.00",ANDREW JACKSON SOLICITORS LLP,10051987,Hull Yorkshire Maritime City,CAPITAL
HCC,Hull City Council,07/07/2020,8182586,"1,200.00",ANDREW JACKSON SOLICITORS LLP,10051987,Hull Yorkshire Maritime City,CAPITAL
HCC,Hull City Council,06/07/2020,8182238,500.00,ANDREW MARVEL YOUTH CENTRE,01315916,Commissioning Budget (H&WB),City Safe & Early Intervention
HCC,Hull City Council,06/07/2020,8182239,500.00,ANDREW MARVEL YOUTH CENTRE,01315916,Commissioning Budget (H&WB),City Safe & Early Intervention
HCC,Hull City Council,07/07/2020,8138789,103.00,ANGEL HEALTHCARE SOLUTIONS LTD,10044199,Thornton Court,Adults Social Care
HCC,Hull City Council,07/07/2020,8074508,-650.00,ANGEL HEALTHCARE SOLUTIONS LTD,10044199,Hospital Locality,Adults Social Care
HCC,Hull City Council,07/07/2020,8136558,395.00,ANGEL HEALTHCARE SOLUTIONS LTD,10044199,Hospital Locality,Adults Social Care
HCC,Hull City Council,07/07/2020,8182517,403.50,ANGEL HEALTHCARE SOLUTIONS LTD,10044199,Hospital Locality,Adults Social Care
HCC,Hull City Council,01/07/2020,8161913,"2,500.00",ANGUS ROSS LTD,10140304,Hull Yorkshire Maritime City,CAPITAL
HCC,Hull City Council,13/07/2020,8188202,247.98,ANN STOREY SHARED LIVES CARER,10099464,Shared Lives,Adults Social Care
HCC,Hull City Council,09/07/2020,8185943,113.76,ANTALIS LIMITED,01011033,Printing,Town Clerks Service
HCC,Hull City Council,14/07/2020,8190450,126.40,ANTALIS LIMITED,01011033,Printing,Town Clerks Service
HCC,Hull City Council,09/07/2020,8185770,"2,520.00",ANTONY HODARI HOLDINGS LIMITED,10122549,R&M - Citywide,Neighbourhoods & Housing
HCC,Hull City Council,24/07/2020,7999337,"8,000.00",A-ONE+ (AREA 12),10055935,Bridges Operation - General,Street Scene Services
HCC,Hull City Council,23/07/2020,7518184,800.00,APC (PATHOLOGY) LTD,10109809,Coroner's Office,Customer Services & Transformation
HCC,Hull City Council,29/07/2020,8220933,"7,507.00",APPLETON PRIMARY (ACADEMY),10072159,Schools Budget Contingency,Learning and Skills
HCC,Hull City Council,29/07/2020,8220854,74.38,APPLEYARDS OF EAST YORKSHIRE,01323652,Management Fee HRA Areas,Neighbourhoods & Housing
HCC,Hull City Council,29/07/2020,8220855,175.00,APPLEYARDS OF EAST YORKSHIRE,01323652,Management Fee HRA Areas,Neighbourhoods & Housing
HCC,Hull City Council,15/07/2020,8191520,66.00,APPROPRIATE ADULTS UK,10120781,Youth Offending Team Manager,City Safe & Early Intervention
HCC,Hull City Council,16/07/2020,8196501,33.00,APPROPRIATE ADULTS UK,10120781,Youth Offending Team Manager,City Safe & Early Intervention
HCC,Hull City Council,16/07/2020,8196503,82.50,APPROPRIATE ADULTS UK,10120781,Youth Offending Team Manager,City Safe & Early Intervention
HCC,Hull City Council,16/07/2020,8196504,148.50,APPROPRIATE ADULTS UK,10120781,Youth Offending Team Manager,City Safe & Early Intervention
HCC,Hull City Council,16/07/2020,8196505,99.00,APPROPRIATE ADULTS UK,10120781,Youth Offending Team Manager,City Safe & Early Intervention
HCC,Hull City Council,16/07/2020,8196506,123.75,APPROPRIATE ADULTS UK,10120781,Youth Offending Team Manager,City Safe & Early Intervention
HCC,Hull City Council,16/07/2020,8196507,33.00,APPROPRIATE ADULTS UK,10120781,Youth Offending Team Manager,City Safe & Early Intervention
HCC,Hull City Council,16/07/2020,8196508,115.50,APPROPRIATE ADULTS UK,10120781,Youth Offending Team Manager,City Safe & Early Intervention
HCC,Hull City Council,16/07/2020,8196509,82.50,APPROPRIATE ADULTS UK,10120781,Youth Offending Team Manager,City Safe & Early Intervention
HCC,Hull City Council,16/07/2020,8196510,57.75,APPROPRIATE ADULTS UK,10120781,Youth Offending Team Manager,City Safe & Early Intervention
HCC,Hull City Council,16/07/2020,8196511,74.25,APPROPRIATE ADULTS UK,10120781,Youth Offending Team Manager,City Safe & Early Intervention
HCC,Hull City Council,16/07/2020,8196512,165.00,APPROPRIATE ADULTS UK,10120781,Youth Offending Team Manager,City Safe & Early Intervention
HCC,Hull City Council,16/07/2020,8196513,82.50,APPROPRIATE ADULTS UK,10120781,Youth Offending Team Manager,City Safe & Early Intervention
HCC,Hull City Council,16/07/2020,8196514,99.00,APPROPRIATE ADULTS UK,10120781,Youth Offending Team Manager,City Safe & Early Intervention
HCC,Hull City Council,16/07/2020,8196515,66.00,APPROPRIATE ADULTS UK,10120781,Youth Offending Team Manager,City Safe & Early Intervention
HCC,Hull City Council,16/07/2020,8196516,66.00,APPROPRIATE ADULTS UK,10120781,Youth Offending Team Manager,City Safe & Early Intervention
HCC,Hull City Council,16/07/2020,8196517,90.75,APPROPRIATE ADULTS UK,10120781,Youth Offending Team Manager,City Safe & Early Intervention
HCC,Hull City Council,16/07/2020,8196518,66.00,APPROPRIATE ADULTS UK,10120781,Youth Offending Team Manager,City Safe & Early Intervention
HCC,Hull City Council,16/07/2020,8196519,33.00,APPROPRIATE ADULTS UK,10120781,Youth Offending Team Manager,City Safe & Early Intervention
HCC,Hull City Council,16/07/2020,8196537,82.50,APPROPRIATE ADULTS UK,10120781,Youth Offending Team Manager,City Safe & Early Intervention
HCC,Hull City Council,16/07/2020,8196538,33.00,APPROPRIATE ADULTS UK,10120781,Youth Offending Team Manager,City Safe & Early Intervention
HCC,Hull City Council,29/07/2020,8220903,"10,386.00",ARCHBISHOP SENTAMU ACADEMY,01011060,Schools Budget Contingency,Learning and Skills
HCC,Hull City Council,03/07/2020,8182158,664.00,ARCHIBALD FIRST SCHOOL,10139637,Virtual School for LAC,Learning and Skills
HCC,Hull City Council,02/07/2020,8169026,"3,930.00",ARCO GROUP,01010605,Supporting Independence,Adults Social Care
HCC,Hull City Council,08/07/2020,8184862,"14,667.00",ARCO GROUP,01010605,Supporting Independence,Adults Social Care
HCC,Hull City Council,08/07/2020,8181985,26.69,ARCO GROUP,01010605,Thornton Court,Adults Social Care
HCC,Hull City Council,15/07/2020,8195446,26.69,ARCO GROUP,01010605,Thornton Court,Adults Social Care
HCC,Hull City Council,23/07/2020,8202480,53.38,ARCO GROUP,01010605,Thornton Court,Adults Social Care
HCC,Hull City Council,14/07/2020,8185738,84.97,ARCO GROUP,01010605,10 Burma Drive,Adults Social Care
HCC,Hull City Council,14/07/2020,8187824,32.54,ARCO GROUP,01010605,10 Burma Drive,Adults Social Care
HCC,Hull City Council,16/07/2020,8195447,114.55,ARCO GROUP,01010605,10 Burma Drive,Adults Social Care
HCC,Hull City Council,28/07/2020,8205570,40.57,ARCO GROUP,01010605,10 Burma Drive,Adults Social Care
HCC,Hull City Council,28/07/2020,8220770,25.23,ARCO GROUP,01010605,10 Burma Drive,Adults Social Care
HCC,Hull City Council,08/07/2020,8185737,3.91,ARCO GROUP,01010605,ACFS Service Support,City Safe & Early Intervention
HCC,Hull City Council,22/07/2020,8201713,24.51,ARCO GROUP,01010605,ACFS Service Support,City Safe & Early Intervention
HCC,Hull City Council,13/07/2020,8188382,15.62,ARCO GROUP,01010605,Construction,City Safe & Early Intervention
HCC,Hull City Council,03/07/2020,8074277,7.84,ARCO GROUP,01010605,Expenditure,Corporate Finance
HCC,Hull City Council,02/07/2020,8154663,33.97,ARCO GROUP,01010605,Expenditure,Corporate Finance
HCC,Hull City Council,02/07/2020,8154666,7.69,ARCO GROUP,01010605,Expenditure,Corporate Finance
HCC,Hull City Council,02/07/2020,8154668,86.69,ARCO GROUP,01010605,Expenditure,Corporate Finance
HCC,Hull City Council,07/07/2020,8165947,17.00,ARCO GROUP,01010605,Expenditure,Corporate Finance
HCC,Hull City Council,07/07/2020,8182508,18.29,ARCO GROUP,01010605,Expenditure,Corporate Finance
HCC,Hull City Council,08/07/2020,8185734,7.32,ARCO GROUP,01010605,Expenditure,Corporate Finance
HCC,Hull City Council,08/07/2020,8185736,33.64,ARCO GROUP,01010605,Expenditure,Corporate Finance
HCC,Hull City Council,08/07/2020,8185759,34.00,ARCO GROUP,01010605,Expenditure,Corporate Finance
HCC,Hull City Council,09/07/2020,8186000,1.92,ARCO GROUP,01010605,Expenditure,Corporate Finance
HCC,Hull City Council,16/07/2020,8195445,119.01,ARCO GROUP,01010605,Expenditure,Corporate Finance
HCC,Hull City Council,22/07/2020,8200475,16.82,ARCO GROUP,01010605,Expenditure,Corporate Finance
HCC,Hull City Council,29/07/2020,8220740,7.44,ARCO GROUP,01010605,Expenditure,Corporate Finance
HCC,Hull City Council,06/07/2020,8182253,34.29,ARCO GROUP,01010605,Cemeteries,Customer Services & Transformation
HCC,Hull City Council,13/07/2020,8187958,12.24,ARCO GROUP,01010605,Cemeteries,Customer Services & Transformation
HCC,Hull City Council,27/07/2020,8217529,9.39,ARCO GROUP,01010605,Cemeteries,Customer Services & Transformation
HCC,Hull City Council,27/07/2020,8217530,9.39,ARCO GROUP,01010605,Cemeteries,Customer Services & Transformation
HCC,Hull City Council,06/07/2020,8182254,31.10,ARCO GROUP,01010605,Crematoria,Customer Services & Transformation
HCC,Hull City Council,06/07/2020,8182255,13.14,ARCO GROUP,01010605,Crematoria,Customer Services & Transformation
HCC,Hull City Council,06/07/2020,8182256,60.53,ARCO GROUP,01010605,Crematoria,Customer Services & Transformation
HCC,Hull City Council,07/07/2020,8184769,38.28,ARCO GROUP,01010605,Governance & Compliance,Digital & ICT
HCC,Hull City Council,07/07/2020,8184770,20.09,ARCO GROUP,01010605,Governance & Compliance,Digital & ICT
HCC,Hull City Council,06/07/2020,7996031,5.88,ARCO GROUP,01010605,Building Control,Economic Development and Regeneration
HCC,Hull City Council,03/07/2020,7917418,13.20,ARCO GROUP,01010605,Development Management,Economic Development and Regeneration
HCC,Hull City Council,03/07/2020,7917423,124.55,ARCO GROUP,01010605,Development Management,Economic Development and Regeneration
HCC,Hull City Council,08/07/2020,7932195,139.77,ARCO GROUP,01010605,Major Projects Transport Strategy & Design Management,Major Projects & Infrastructure
HCC,Hull City Council,08/07/2020,7932197,178.80,ARCO GROUP,01010605,N.R.S.W.A,Major Projects & Infrastructure
HCC,Hull City Council,24/07/2020,8214480,7.95,ARCO GROUP,01010605,Business Core,Neighbourhoods & Housing
HCC,Hull City Council,09/07/2020,8185763,28.20,ARCO GROUP,01010605,External Relations,Neighbourhoods & Housing
HCC,Hull City Council,01/07/2020,8166000,37.04,ARCO GROUP,01010605,Management Fee Area 1 West,Neighbourhoods & Housing
HCC,Hull City Council,02/07/2020,7992029,11.68,ARCO GROUP,01010605,Management Fee Area 7 East,Neighbourhoods & Housing
HCC,Hull City Council,03/07/2020,7992037,177.40,ARCO GROUP,01010605,Management Fee Area 7 East,Neighbourhoods & Housing
HCC,Hull City Council,03/07/2020,8169036,-32.93,ARCO GROUP,01010605,Management Fee Area 7 East,Neighbourhoods & Housing
HCC,Hull City Council,03/07/2020,8182105,63.70,ARCO GROUP,01010605,Sheltered Housing,Neighbourhoods & Housing
HCC,Hull City Council,02/07/2020,8169038,104.44,ARCO GROUP,01010605,Housing Facilities Team,Neighbourhoods & Housing
HCC,Hull City Council,02/07/2020,8169040,104.44,ARCO GROUP,01010605,Housing Facilities Team,Neighbourhoods & Housing
HCC,Hull City Council,28/07/2020,8205519,48.22,ARCO GROUP,01010605,Environmental Health - Housing,Neighbourhoods & Housing
HCC,Hull City Council,20/07/2020,8165944,50.08,ARCO GROUP,01010605,"Accommodation, Operations",Property & Assets
HCC,Hull City Council,28/07/2020,8220741,23.38,ARCO GROUP,01010605,"Accommodation, Operations",Property & Assets
HCC,Hull City Council,13/07/2020,8185760,22.59,ARCO GROUP,01010605,Trinity Market,Property & Assets
HCC,Hull City Council,20/07/2020,8200473,133.51,ARCO GROUP,01010605,Trinity Market,Property & Assets
HCC,Hull City Council,20/07/2020,8200477,19.90,ARCO GROUP,01010605,Trinity Market,Property & Assets
HCC,Hull City Council,01/07/2020,8166969,46.77,ARCO GROUP,01010605,S3- Environmental Services,Street Scene Services
HCC,Hull City Council,01/07/2020,8167107,146.37,ARCO GROUP,01010605,S3- Environmental Services,Street Scene Services
HCC,Hull City Council,01/07/2020,8167114,26.46,ARCO GROUP,01010605,S3- Environmental Services,Street Scene Services
HCC,Hull City Council,01/07/2020,8167115,26.97,ARCO GROUP,01010605,S3- Environmental Services,Street Scene Services
HCC,Hull City Council,01/07/2020,8167117,100.44,ARCO GROUP,01010605,S3- Environmental Services,Street Scene Services
HCC,Hull City Council,01/07/2020,8167118,8.76,ARCO GROUP,01010605,S3- Environmental Services,Street Scene Services
HCC,Hull City Council,17/07/2020,8198594,281.52,ARCO GROUP,01010605,S3- Environmental Services,Street Scene Services
HCC,Hull City Council,17/07/2020,8198597,17.64,ARCO GROUP,01010605,S3- Environmental Services,Street Scene Services
HCC,Hull City Council,01/07/2020,8166969,6.98,ARCO GROUP,01010605,Grounds Maintenance,Street Scene Services
HCC,Hull City Council,02/07/2020,8167016,13.96,ARCO GROUP,01010605,Grounds Maintenance,Street Scene Services
HCC,Hull City Council,01/07/2020,8167033,179.86,ARCO GROUP,01010605,Grounds Maintenance,Street Scene Services
HCC,Hull City Council,01/07/2020,8167107,48.04,ARCO GROUP,01010605,Grounds Maintenance,Street Scene Services
HCC,Hull City Council,01/07/2020,8167114,68.61,ARCO GROUP,01010605,Grounds Maintenance,Street Scene Services
HCC,Hull City Council,17/07/2020,8198594,37.68,ARCO GROUP,01010605,Grounds Maintenance,Street Scene Services
HCC,Hull City Council,17/07/2020,8198597,14.88,ARCO GROUP,01010605,Grounds Maintenance,Street Scene Services
HCC,Hull City Council,23/07/2020,8205623,29.80,ARCO GROUP,01010605,Grounds Maintenance,Street Scene Services
HCC,Hull City Council,01/07/2020,8167114,33.33,ARCO GROUP,01010605,Cemetries and Crems Ground Maintenance,Street Scene Services
HCC,Hull City Council,01/07/2020,8167115,25.92,ARCO GROUP,01010605,S3- Construction,Street Scene Services
HCC,Hull City Council,07/07/2020,8134545,507.20,ARCO GROUP,01010605,Permit Team,Street Scene Services
HCC,Hull City Council,08/07/2020,8185764,-47.68,ARCO GROUP,01010605,Permit Team,Street Scene Services
HCC,Hull City Council,17/07/2020,8198594,25.56,ARCO GROUP,01010605,S3 - Gullies,Street Scene Services
HCC,Hull City Council,02/07/2020,8166968,20.92,ARCO GROUP,01010605,S3 - Domestic Refuse Collection,Street Scene Services
HCC,Hull City Council,01/07/2020,8166969,102.94,ARCO GROUP,01010605,S3 - Domestic Refuse Collection,Street Scene Services
HCC,Hull City Council,01/07/2020,8167019,92.82,ARCO GROUP,01010605,S3 - Domestic Refuse Collection,Street Scene Services
HCC,Hull City Council,01/07/2020,8167107,46.59,ARCO GROUP,01010605,S3 - Domestic Refuse Collection,Street Scene Services
HCC,Hull City Council,01/07/2020,8167114,422.94,ARCO GROUP,01010605,S3 - Domestic Refuse Collection,Street Scene Services
HCC,Hull City Council,01/07/2020,8167115,186.75,ARCO GROUP,01010605,S3 - Domestic Refuse Collection,Street Scene Services
HCC,Hull City Council,17/07/2020,8198594,210.48,ARCO GROUP,01010605,S3 - Domestic Refuse Collection,Street Scene Services
HCC,Hull City Council,17/07/2020,8198597,255.00,ARCO GROUP,01010605,S3 - Domestic Refuse Collection,Street Scene Services
HCC,Hull City Council,24/07/2020,8043155,77.56,ARCO GROUP,01010605,CPE - On Street & PCN,Street Scene Services
HCC,Hull City Council,14/07/2020,8048569,30.04,ARCO GROUP,01010605,CPE - On Street & PCN,Street Scene Services
HCC,Hull City Council,10/07/2020,8185904,23.00,ARCO GROUP,01010605,CPE - On Street & PCN,Street Scene Services
HCC,Hull City Council,10/07/2020,8185920,41.88,ARCO GROUP,01010605,CPE - On Street & PCN,Street Scene Services
HCC,Hull City Council,15/07/2020,8190515,311.80,ARCO GROUP,01010605,CPE - On Street & PCN,Street Scene Services
HCC,Hull City Council,07/07/2020,8182545,152.37,ARCO GROUP,01010605,Security,Street Scene Services
HCC,Hull City Council,01/07/2020,8167019,66.55,ARCO GROUP,01010605,Highways Operations,Street Scene Services
HCC,Hull City Council,01/07/2020,8167107,53.92,ARCO GROUP,01010605,Highways Operations,Street Scene Services
HCC,Hull City Council,01/07/2020,8167019,20.92,ARCO GROUP,01010605,S3- Horticultural Maintenance,Street Scene Services
HCC,Hull City Council,17/07/2020,8198597,50.00,ARCO GROUP,01010605,S3- Horticultural Maintenance,Street Scene Services
HCC,Hull City Council,01/07/2020,8166969,68.97,ARCO GROUP,01010605,Stockholm Road Depot,Street Scene Services
HCC,Hull City Council,13/07/2020,8188333,500.00,ARH PORTABLE & MODULAR BUILDINGS LTD,10097788,HT - ACL,City Safe & Early Intervention
HCC,Hull City Council,09/07/2020,8187583,117.00,ARK CONSULTANCY,10119911,Investment Team,Neighbourhoods & Housing
HCC,Hull City Council,03/07/2020,8182206,"3,390.00",ARTIS CONSULTING LIMITED,10098039,Pearson Park HP,CAPITAL
HCC,Hull City Council,10/07/2020,8187789,"1,950.00",ASDA GIFT CARDS,10114693,Fostering,Safeguarding
HCC,Hull City Council,01/07/2020,8166970,62.40,ASHCOURT AGGREGATES LTD,10130553,Grounds Maintenance,Street Scene Services
HCC,Hull City Council,01/07/2020,8166970,272.14,ASHCOURT AGGREGATES LTD,10130553,Highways Operations,Street Scene Services
HCC,Hull City Council,01/07/2020,8166971,8.46,ASHCOURT AGGREGATES LTD,10130553,Highways Operations,Street Scene Services
HCC,Hull City Council,01/07/2020,8166972,28.93,ASHCOURT AGGREGATES LTD,10130553,Highways Operations,Street Scene Services
HCC,Hull City Council,01/07/2020,8166973,4.92,ASHCOURT AGGREGATES LTD,10130553,Highways Operations,Street Scene Services
HCC,Hull City Council,01/07/2020,8166976,68.80,ASHCOURT AGGREGATES LTD,10130553,Highways Operations,Street Scene Services
HCC,Hull City Council,17/07/2020,8198586,150.08,ASHCOURT AGGREGATES LTD,10130553,Highways Operations,Street Scene Services
HCC,Hull City Council,16/07/2020,8198544,71.50,ASHCOURT CONCRETE LTD,01180076,Highways Operations,Street Scene Services
HCC,Hull City Council,16/07/2020,8198545,79.33,ASHCOURT CONCRETE LTD,01180076,Highways Operations,Street Scene Services
HCC,Hull City Council,16/07/2020,8198546,55.83,ASHCOURT CONCRETE LTD,01180076,Highways Operations,Street Scene Services
HCC,Hull City Council,16/07/2020,8198549,95.00,ASHCOURT CONCRETE LTD,01180076,Highways Operations,Street Scene Services
HCC,Hull City Council,16/07/2020,8198552,79.33,ASHCOURT CONCRETE LTD,01180076,Highways Operations,Street Scene Services
HCC,Hull City Council,16/07/2020,8198569,95.00,ASHCOURT CONCRETE LTD,01180076,Highways Operations,Street Scene Services
HCC,Hull City Council,16/07/2020,8198575,71.50,ASHCOURT CONCRETE LTD,01180076,Highways Operations,Street Scene Services
HCC,Hull City Council,16/07/2020,8198576,55.83,ASHCOURT CONCRETE LTD,01180076,Highways Operations,Street Scene Services
HCC,Hull City Council,17/07/2020,8198585,79.33,ASHCOURT CONCRETE LTD,01180076,Highways Operations,Street Scene Services
HCC,Hull City Council,29/07/2020,8220684,95.00,ASHCOURT CONCRETE LTD,01180076,Highways Operations,Street Scene Services
HCC,Hull City Council,29/07/2020,8220686,149.33,ASHCOURT CONCRETE LTD,01180076,Highways Operations,Street Scene Services
HCC,Hull City Council,29/07/2020,8220708,79.33,ASHCOURT CONCRETE LTD,01180076,Highways Operations,Street Scene Services
HCC,Hull City Council,29/07/2020,8220709,149.33,ASHCOURT CONCRETE LTD,01180076,Highways Operations,Street Scene Services
HCC,Hull City Council,29/07/2020,8220724,48.00,ASHCOURT CONCRETE LTD,01180076,Highways Operations,Street Scene Services
HCC,Hull City Council,29/07/2020,8220780,142.50,ASHCOURT CONCRETE LTD,01180076,Highways Operations,Street Scene Services
HCC,Hull City Council,13/07/2020,8188307,"59,939.05",ASHCOURT CONTRACTS LTD,10089366,CCPR Main Works,CAPITAL
HCC,Hull City Council,13/07/2020,8188314,"71,976.75",ASHCOURT CONTRACTS LTD,10089366,CCPR Main Works,CAPITAL
HCC,Hull City Council,23/07/2020,8205626,"1,166.00",ASHTEAD PLANT HIRE CO LTD,01010551,Winter Maintenance,Street Scene Services
HCC,Hull City Council,17/07/2020,8198581,2.04,ASHTEAD PLANT HIRE CO LTD,01010551,Highways Operations,Street Scene Services
HCC,Hull City Council,17/07/2020,8198581,18.91,ASHTEAD PLANT HIRE CO LTD,01010551,Highways Operations,Street Scene Services
HCC,Hull City Council,17/07/2020,8198582,2.92,ASHTEAD PLANT HIRE CO LTD,01010551,Highways Operations,Street Scene Services
HCC,Hull City Council,17/07/2020,8198582,27.08,ASHTEAD PLANT HIRE CO LTD,01010551,Highways Operations,Street Scene Services
HCC,Hull City Council,23/07/2020,8205600,18.35,ASHTEAD PLANT HIRE CO LTD,01010551,Highways Operations,Street Scene Services
HCC,Hull City Council,23/07/2020,8205600,170.30,ASHTEAD PLANT HIRE CO LTD,01010551,Highways Operations,Street Scene Services
HCC,Hull City Council,23/07/2020,8205601,1.22,ASHTEAD PLANT HIRE CO LTD,01010551,Highways Operations,Street Scene Services
HCC,Hull City Council,23/07/2020,8205601,11.32,ASHTEAD PLANT HIRE CO LTD,01010551,Highways Operations,Street Scene Services
HCC,Hull City Council,23/07/2020,8205602,1.46,ASHTEAD PLANT HIRE CO LTD,01010551,Highways Operations,Street Scene Services
HCC,Hull City Council,23/07/2020,8205602,13.54,ASHTEAD PLANT HIRE CO LTD,01010551,Highways Operations,Street Scene Services
HCC,Hull City Council,23/07/2020,8205603,2.02,ASHTEAD PLANT HIRE CO LTD,01010551,Highways Operations,Street Scene Services
HCC,Hull City Council,23/07/2020,8205603,18.78,ASHTEAD PLANT HIRE CO LTD,01010551,Highways Operations,Street Scene Services
HCC,Hull City Council,23/07/2020,8205604,15.88,ASHTEAD PLANT HIRE CO LTD,01010551,Highways Operations,Street Scene Services
HCC,Hull City Council,23/07/2020,8205604,147.32,ASHTEAD PLANT HIRE CO LTD,01010551,Highways Operations,Street Scene Services
HCC,Hull City Council,23/07/2020,8205605,6.42,ASHTEAD PLANT HIRE CO LTD,01010551,Highways Operations,Street Scene Services
HCC,Hull City Council,23/07/2020,8205605,59.58,ASHTEAD PLANT HIRE CO LTD,01010551,Highways Operations,Street Scene Services
HCC,Hull City Council,23/07/2020,8205606,25.69,ASHTEAD PLANT HIRE CO LTD,01010551,Highways Operations,Street Scene Services
HCC,Hull City Council,23/07/2020,8205606,238.35,ASHTEAD PLANT HIRE CO LTD,01010551,Highways Operations,Street Scene Services
HCC,Hull City Council,23/07/2020,8205607,6.92,ASHTEAD PLANT HIRE CO LTD,01010551,Highways Operations,Street Scene Services
HCC,Hull City Council,23/07/2020,8205607,64.20,ASHTEAD PLANT HIRE CO LTD,01010551,Highways Operations,Street Scene Services
HCC,Hull City Council,23/07/2020,8205608,28.46,ASHTEAD PLANT HIRE CO LTD,01010551,Highways Operations,Street Scene Services
HCC,Hull City Council,23/07/2020,8205608,264.14,ASHTEAD PLANT HIRE CO LTD,01010551,Highways Operations,Street Scene Services
HCC,Hull City Council,23/07/2020,8205609,19.90,ASHTEAD PLANT HIRE CO LTD,01010551,Highways Operations,Street Scene Services
HCC,Hull City Council,23/07/2020,8205609,184.70,ASHTEAD PLANT HIRE CO LTD,01010551,Highways Operations,Street Scene Services
HCC,Hull City Council,23/07/2020,8205610,39.59,ASHTEAD PLANT HIRE CO LTD,01010551,Highways Operations,Street Scene Services
HCC,Hull City Council,23/07/2020,8205610,367.41,ASHTEAD PLANT HIRE CO LTD,01010551,Highways Operations,Street Scene Services
HCC,Hull City Council,23/07/2020,8205611,27.51,ASHTEAD PLANT HIRE CO LTD,01010551,Highways Operations,Street Scene Services
HCC,Hull City Council,23/07/2020,8205611,255.23,ASHTEAD PLANT HIRE CO LTD,01010551,Highways Operations,Street Scene Services
HCC,Hull City Council,23/07/2020,8205612,28.25,ASHTEAD PLANT HIRE CO LTD,01010551,Highways Operations,Street Scene Services
HCC,Hull City Council,23/07/2020,8205612,262.15,ASHTEAD PLANT HIRE CO LTD,01010551,Highways Operations,Street Scene Services
HCC,Hull City Council,23/07/2020,8205613,26.75,ASHTEAD PLANT HIRE CO LTD,01010551,Highways Operations,Street Scene Services
HCC,Hull City Council,23/07/2020,8205613,248.25,ASHTEAD PLANT HIRE CO LTD,01010551,Highways Operations,Street Scene Services
HCC,Hull City Council,23/07/2020,8205614,21.62,ASHTEAD PLANT HIRE CO LTD,01010551,Highways Operations,Street Scene Services
HCC,Hull City Council,23/07/2020,8205614,200.58,ASHTEAD PLANT HIRE CO LTD,01010551,Highways Operations,Street Scene Services
HCC,Hull City Council,29/07/2020,8220950,"90,053.00",ASPIRE ACADEMY,10083415,Schools Budget Contingency,Learning and Skills
HCC,Hull City Council,31/07/2020,8221434,625.00,ASPIRE PSYCHOLOGICAL SERVICES LTD,10142819,"Training - HR, Finance, Legal Town Clerk, Cheif Exec",Human Resources and Organisational Development
HCC,Hull City Council,15/07/2020,8187853,"3,250.00",ASTUN TECHNOLOGY LTD,10121356,Information and Data Management,Digital & ICT
HCC,Hull City Council,30/07/2020,8221211,"4,993.64",ATLAS LEISURE HOME LTD,10022709,ERDF - ICT,Economic Development and Regeneration
HCC,Hull City Council,13/07/2020,8188259,"72,028.32",AUTISM PLUS LTD,10048228,Agency - Supported Living,Adults Social Care
HCC,Hull City Council,13/07/2020,8188266,"6,275.20",AUTISM PLUS LTD,10048228,Agency - Supported Living,Adults Social Care
HCC,Hull City Council,13/07/2020,8188267,"5,683.20",AUTISM PLUS LTD,10048228,Agency - Supported Living,Adults Social Care
HCC,Hull City Council,13/07/2020,8188191,"29,661.12",AUTISM PLUS LTD,10048228,Agency Residential - Under 65,Adults Social Care
HCC,Hull City Council,13/07/2020,8188191,"-18,193.16",AUTISM PLUS LTD,10048228,Agency Residential - Under 65,Adults Social Care
HCC,Hull City Council,24/07/2020,8216500,"5,733.20",AUTISM PLUS LTD,10048228,Agency Day Care,Adults Social Care
HCC,Hull City Council,13/07/2020,8188086,"17,522.92",AVOCET TRUST,01270067,Agency Residential - Over 65,Adults Social Care
HCC,Hull City Council,13/07/2020,8188086,"-2,391.00",AVOCET TRUST,01270067,Agency Residential - Over 65,Adults Social Care
HCC,Hull City Council,13/07/2020,8188087,"19,358.24",AVOCET TRUST,01270067,Agency Residential - Over 65,Adults Social Care
HCC,Hull City Council,13/07/2020,8188087,"-1,276.88",AVOCET TRUST,01270067,Agency Residential - Over 65,Adults Social Care
HCC,Hull City Council,13/07/2020,8188088,"21,077.95",AVOCET TRUST,01270067,Agency Residential - Over 65,Adults Social Care
HCC,Hull City Council,13/07/2020,8188088,"-2,079.00",AVOCET TRUST,01270067,Agency Residential - Over 65,Adults Social Care
HCC,Hull City Council,13/07/2020,8188089,"5,821.36",AVOCET TRUST,01270067,Agency Residential - Over 65,Adults Social Care
HCC,Hull City Council,13/07/2020,8188089,-601.52,AVOCET TRUST,01270067,Agency Residential - Over 65,Adults Social Care
HCC,Hull City Council,13/07/2020,8188091,"6,816.08",AVOCET TRUST,01270067,Agency Residential - Over 65,Adults Social Care
HCC,Hull City Council,13/07/2020,8188241,"23,224.80",AVOCET TRUST,01270067,Agency - Supported Living,Adults Social Care
HCC,Hull City Council,13/07/2020,8188242,"9,118.96",AVOCET TRUST,01270067,Agency - Supported Living,Adults Social Care
HCC,Hull City Council,13/07/2020,8188243,"7,039.20",AVOCET TRUST,01270067,Agency - Supported Living,Adults Social Care
HCC,Hull City Council,13/07/2020,8188245,"5,838.00",AVOCET TRUST,01270067,Agency - Supported Living,Adults Social Care
HCC,Hull City Council,13/07/2020,8188030,"18,288.00",AVOCET TRUST,01270067,Agency Residential - Under 65,Adults Social Care
HCC,Hull City Council,13/07/2020,8188084,"33,981.88",AVOCET TRUST,01270067,Agency Residential - Under 65,Adults Social Care
HCC,Hull City Council,13/07/2020,8188084,"-2,350.48",AVOCET TRUST,01270067,Agency Residential - Under 65,Adults Social Care
HCC,Hull City Council,13/07/2020,8188085,"19,626.36",AVOCET TRUST,01270067,Agency Residential - Under 65,Adults Social Care
HCC,Hull City Council,13/07/2020,8188086,"30,069.18",AVOCET TRUST,01270067,Agency Residential - Under 65,Adults Social Care
HCC,Hull City Council,13/07/2020,8188086,"-5,469.39",AVOCET TRUST,01270067,Agency Residential - Under 65,Adults Social Care
HCC,Hull City Council,13/07/2020,8188086,"-2,456.60",AVOCET TRUST,01270067,Agency Residential - Under 65,Adults Social Care
HCC,Hull City Council,13/07/2020,8188087,"26,549.60",AVOCET TRUST,01270067,Agency Residential - Under 65,Adults Social Care
HCC,Hull City Council,13/07/2020,8188087,"-9,744.00",AVOCET TRUST,01270067,Agency Residential - Under 65,Adults Social Care
HCC,Hull City Council,13/07/2020,8188087,"-1,297.28",AVOCET TRUST,01270067,Agency Residential - Under 65,Adults Social Care
HCC,Hull City Council,13/07/2020,8188087,-226.61,AVOCET TRUST,01270067,Agency Residential - Under 65,Adults Social Care
HCC,Hull City Council,13/07/2020,8188088,"41,924.00",AVOCET TRUST,01270067,Agency Residential - Under 65,Adults Social Care
HCC,Hull City Council,13/07/2020,8188088,"-2,469.60",AVOCET TRUST,01270067,Agency Residential - Under 65,Adults Social Care
HCC,Hull City Council,13/07/2020,8188089,"15,601.56",AVOCET TRUST,01270067,Agency Residential - Under 65,Adults Social Care
HCC,Hull City Council,13/07/2020,8188090,"13,547.52",AVOCET TRUST,01270067,Agency Residential - Under 65,Adults Social Care
HCC,Hull City Council,13/07/2020,8188090,-423.00,AVOCET TRUST,01270067,Agency Residential - Under 65,Adults Social Care
HCC,Hull City Council,13/07/2020,8188091,"13,455.72",AVOCET TRUST,01270067,Agency Residential - Under 65,Adults Social Care
HCC,Hull City Council,13/07/2020,8188091,-423.00,AVOCET TRUST,01270067,Agency Residential - Under 65,Adults Social Care
HCC,Hull City Council,13/07/2020,8188154,"7,397.19",AVOCET TRUST,01270067,Agency Residential - Under 65,Adults Social Care
HCC,Hull City Council,07/07/2020,8182572,591.18,AVOIRA LIMITED,01180554,IT Transformation Programme - Block Unallocated,CAPITAL
HCC,Hull City Council,14/07/2020,8188431,"1,100.00",AW SOCIAL WORK LIMITED,10106574,DOLS/Best Interest Provision,Adults Social Care
HCC,Hull City Council,14/07/2020,8188432,"1,200.00",AW SOCIAL WORK LIMITED,10106574,DOLS/Best Interest Provision,Adults Social Care
HCC,Hull City Council,14/07/2020,8188433,"1,400.00",AW SOCIAL WORK LIMITED,10106574,DOLS/Best Interest Provision,Adults Social Care
HCC,Hull City Council,13/07/2020,8188134,"54,932.02",AYRUS LTD,10120161,Agency Residential - Over 65,Adults Social Care
HCC,Hull City Council,13/07/2020,8188134,"-7,841.18",AYRUS LTD,10120161,Agency Residential - Over 65,Adults Social Care
HCC,Hull City Council,07/07/2020,8056206,375.00,B & A SCAFFOLDING LTD,01020391,Dangerous Structures,Street Scene Services
HCC,Hull City Council,27/07/2020,8166993,19.04,B & Q FINANCIAL SERVICES,10007250,Early Years & Childcare,City Safe & Early Intervention
HCC,Hull City Council,07/07/2020,8184680,9.40,B & Q FINANCIAL SERVICES,10007250,Early Years & Childcare,City Safe & Early Intervention
HCC,Hull City Council,07/07/2020,8184776,48.88,B & Q FINANCIAL SERVICES,10007250,Early Years & Childcare,City Safe & Early Intervention
HCC,Hull City Council,08/07/2020,8185720,41.19,B & Q FINANCIAL SERVICES,10007250,Early Years & Childcare,City Safe & Early Intervention
HCC,Hull City Council,29/07/2020,8220814,15.03,B & Q FINANCIAL SERVICES,10007250,Early Years & Childcare,City Safe & Early Intervention
HCC,Hull City Council,29/07/2020,8220815,35.00,B & Q FINANCIAL SERVICES,10007250,Early Years & Childcare,City Safe & Early Intervention
HCC,Hull City Council,29/07/2020,8220816,16.45,B & Q FINANCIAL SERVICES,10007250,Early Years & Childcare,City Safe & Early Intervention
HCC,Hull City Council,07/07/2020,8182531,175.00,B & Q FINANCIAL SERVICES,10007250,Commissioning Budget (H&WB),City Safe & Early Intervention
HCC,Hull City Council,09/07/2020,8185907,47.77,B & Q FINANCIAL SERVICES,10007250,St.Andrew's C.E Primary School,Learning and Skills
HCC,Hull City Council,20/07/2020,8200418,33.00,B & Q FINANCIAL SERVICES,10007250,St.Andrew's C.E Primary School,Learning and Skills
HCC,Hull City Council,07/07/2020,8166029,465.38,BAKER ROSS LTD,01301751,Early Years & Childcare,City Safe & Early Intervention
HCC,Hull City Council,28/07/2020,8166031,524.83,BAKER ROSS LTD,01301751,Early Years & Childcare,City Safe & Early Intervention
HCC,Hull City Council,07/07/2020,8137786,167.25,BAKER ROSS LTD,01301751,Commissioning Budget (H&WB),City Safe & Early Intervention
HCC,Hull City Council,03/07/2020,8161685,382.21,BAKER ROSS LTD,01301751,Commissioning Budget (H&WB),City Safe & Early Intervention
HCC,Hull City Council,14/07/2020,8165980,"1,532.99",BAKER ROSS LTD,01301751,Commissioning Budget (H&WB),City Safe & Early Intervention
HCC,Hull City Council,07/07/2020,8166028,215.88,BAKER ROSS LTD,01301751,Commissioning Budget (H&WB),City Safe & Early Intervention
HCC,Hull City Council,07/07/2020,8166030,386.38,BAKER ROSS LTD,01301751,Commissioning Budget (H&WB),City Safe & Early Intervention
HCC,Hull City Council,06/07/2020,8169944,23.00,BAKER ROSS LTD,01301751,Commissioning Budget (H&WB),City Safe & Early Intervention
HCC,Hull City Council,14/07/2020,8185823,320.31,BAKER ROSS LTD,01301751,Commissioning Budget (H&WB),City Safe & Early Intervention
HCC,Hull City Council,14/07/2020,8185998,109.22,BAKER ROSS LTD,01301751,Commissioning Budget (H&WB),City Safe & Early Intervention
HCC,Hull City Council,10/07/2020,8186591,"1,101.81",BAKER ROSS LTD,01301751,Commissioning Budget (H&WB),City Safe & Early Intervention
HCC,Hull City Council,20/07/2020,8190455,3.29,BAKER ROSS LTD,01301751,Commissioning Budget (H&WB),City Safe & Early Intervention
HCC,Hull City Council,22/07/2020,8201688,548.13,BAKER ROSS LTD,01301751,Commissioning Budget (H&WB),City Safe & Early Intervention
HCC,Hull City Council,22/07/2020,8204129,"7,987.52",BANYA FAMILY PLACEMENT AGENCY LTD,10113736,Fostering Agency,Safeguarding
HCC,Hull City Council,23/07/2020,8205617,8.00,BAPP INDUSTRIAL SUPPLIES (HULL) LTD,01020011,Highways Operations,Street Scene Services
HCC,Hull City Council,13/07/2020,8188034,"2,096.08",BARCHESTER HEALTHCARE HOMES  LIMITED,01021053,Agency Residential - Over 65,Adults Social Care
HCC,Hull City Council,13/07/2020,8188034,-595.40,BARCHESTER HEALTHCARE HOMES  LIMITED,01021053,Agency Residential - Over 65,Adults Social Care
HCC,Hull City Council,13/07/2020,8188096,"22,158.49",BARCHESTER HEALTHCARE HOMES  LIMITED,01021053,Agency Residential - Over 65,Adults Social Care
HCC,Hull City Council,13/07/2020,8188096,"-6,569.72",BARCHESTER HEALTHCARE HOMES  LIMITED,01021053,Agency Residential - Over 65,Adults Social Care
HCC,Hull City Council,13/07/2020,8188096,"-1,602.64",BARCHESTER HEALTHCARE HOMES  LIMITED,01021053,Agency Residential - Over 65,Adults Social Care
HCC,Hull City Council,13/07/2020,8188098,"7,751.20",BARCHESTER HEALTHCARE HOMES  LIMITED,01021053,Agency Residential - Over 65,Adults Social Care
HCC,Hull City Council,13/07/2020,8188098,-579.40,BARCHESTER HEALTHCARE HOMES  LIMITED,01021053,Agency Residential - Over 65,Adults Social Care
HCC,Hull City Council,13/07/2020,8188096,"6,069.43",BARCHESTER HEALTHCARE HOMES  LIMITED,01021053,Agency Nursing Over 65,Adults Social Care
HCC,Hull City Council,13/07/2020,8188096,"12,287.57",BARCHESTER HEALTHCARE HOMES  LIMITED,01021053,Agency Nursing Over 65,Adults Social Care
HCC,Hull City Council,13/07/2020,8188096,"-1,208.64",BARCHESTER HEALTHCARE HOMES  LIMITED,01021053,Agency Nursing Over 65,Adults Social Care
HCC,Hull City Council,13/07/2020,8188097,"2,634.88",BARCHESTER HEALTHCARE HOMES  LIMITED,01021053,Agency Nursing Over 65,Adults Social Care
HCC,Hull City Council,13/07/2020,8188097,"-1,693.12",BARCHESTER HEALTHCARE HOMES  LIMITED,01021053,Agency Nursing Over 65,Adults Social Care
HCC,Hull City Council,13/07/2020,8188098,"6,283.87",BARCHESTER HEALTHCARE HOMES  LIMITED,01021053,Agency Nursing Over 65,Adults Social Care
HCC,Hull City Council,13/07/2020,8188098,"-1,766.96",BARCHESTER HEALTHCARE HOMES  LIMITED,01021053,Agency Nursing Over 65,Adults Social Care
HCC,Hull City Council,13/07/2020,8188097,"-2,070.49",BARCHESTER HEALTHCARE HOMES  LIMITED,01021053,Elderly Free Nursing Care,Adults Social Care
HCC,Hull City Council,13/07/2020,8188098,"5,624.20",BARCHESTER HEALTHCARE HOMES  LIMITED,01021053,Elderly Free Nursing Care,Adults Social Care
HCC,Hull City Council,13/07/2020,8188150,735.68,BARCHESTER HEALTHCARE HOMES  LIMITED,01021053,Elderly Free Nursing Care,Adults Social Care
HCC,Hull City Council,13/07/2020,8188096,"-10,973.03",BARCHESTER HEALTHCARE HOMES  LIMITED,01021053,Agency Nursing Under 65,Adults Social Care
HCC,Hull City Council,13/07/2020,8188097,"42,225.70",BARCHESTER HEALTHCARE HOMES  LIMITED,01021053,Agency Nursing Under 65,Adults Social Care
HCC,Hull City Council,13/07/2020,8188097,"-9,630.24",BARCHESTER HEALTHCARE HOMES  LIMITED,01021053,Agency Nursing Under 65,Adults Social Care
HCC,Hull City Council,13/07/2020,8188097,"-1,377.00",BARCHESTER HEALTHCARE HOMES  LIMITED,01021053,Agency Nursing Under 65,Adults Social Care
HCC,Hull City Council,13/07/2020,8188097,"-3,168.20",BARCHESTER HEALTHCARE HOMES  LIMITED,01021053,Agency Nursing Under 65,Adults Social Care
HCC,Hull City Council,13/07/2020,8188098,"27,495.56",BARCHESTER HEALTHCARE HOMES  LIMITED,01021053,Agency Nursing Under 65,Adults Social Care
HCC,Hull City Council,13/07/2020,8188098,"-7,344.60",BARCHESTER HEALTHCARE HOMES  LIMITED,01021053,Agency Nursing Under 65,Adults Social Care
HCC,Hull City Council,13/07/2020,8188098,"-1,623.60",BARCHESTER HEALTHCARE HOMES  LIMITED,01021053,Agency Nursing Under 65,Adults Social Care
HCC,Hull City Council,13/07/2020,8188150,"1,899.20",BARCHESTER HEALTHCARE HOMES  LIMITED,01021053,Agency Nursing Under 65,Adults Social Care
HCC,Hull City Council,13/07/2020,8188096,"1,434.80",BARCHESTER HEALTHCARE HOMES  LIMITED,01021053,Agency Residential - Under 65,Adults Social Care
HCC,Hull City Council,13/07/2020,8188097,"11,152.68",BARCHESTER HEALTHCARE HOMES  LIMITED,01021053,Agency Residential - Under 65,Adults Social Care
HCC,Hull City Council,13/07/2020,8188097,60.43,BARCHESTER HEALTHCARE HOMES  LIMITED,01021053,Agency Residential - Under 65,Adults Social Care
HCC,Hull City Council,13/07/2020,8188098,"12,270.44",BARCHESTER HEALTHCARE HOMES  LIMITED,01021053,Agency Residential - Under 65,Adults Social Care
HCC,Hull City Council,13/07/2020,8188098,"-1,899.20",BARCHESTER HEALTHCARE HOMES  LIMITED,01021053,Agency Residential - Under 65,Adults Social Care
HCC,Hull City Council,13/07/2020,8188098,-485.16,BARCHESTER HEALTHCARE HOMES  LIMITED,01021053,Agency Residential - Under 65,Adults Social Care
HCC,Hull City Council,23/07/2020,8205568,220.00,BARLOW (HULL) LTD,10087755,Early Years & Childcare,City Safe & Early Intervention
HCC,Hull City Council,23/07/2020,8205569,250.00,BARLOW (HULL) LTD,10087755,Early Years & Childcare,City Safe & Early Intervention
HCC,Hull City Council,01/07/2020,8160969,"1,002.00",BARNARDOS SERVICES LTD,01021012,SEN Statementing Costs,Learning and Skills
HCC,Hull City Council,20/07/2020,8198539,396.00,BARNARDOS SERVICES LTD,01021012,Fostering Agency,Safeguarding
HCC,Hull City Council,20/07/2020,8198541,364.20,BARNARDOS SERVICES LTD,01021012,Fostering Agency,Safeguarding
HCC,Hull City Council,22/07/2020,8203484,"14,908.16",BARNARDOS SERVICES LTD,01021012,Fostering Agency,Safeguarding
HCC,Hull City Council,15/07/2020,8192448,450.00,BASH (BANKSIDE ART SERVICES HULL) ARTS,10116560,Funding Of YOT's (YJB),City Safe & Early Intervention
HCC,Hull City Council,15/07/2020,8192449,900.00,BASH (BANKSIDE ART SERVICES HULL) ARTS,10116560,Funding Of YOT's (YJB),City Safe & Early Intervention
HCC,Hull City Council,15/07/2020,8192450,900.00,BASH (BANKSIDE ART SERVICES HULL) ARTS,10116560,Funding Of YOT's (YJB),City Safe & Early Intervention
HCC,Hull City Council,23/07/2020,8207483,"1,500.00",BAUER CORPORATE SERVICES,10006450,Early Years & Childcare,City Safe & Early Intervention
HCC,Hull City Council,23/07/2020,8207484,"1,190.00",BAUER CORPORATE SERVICES,10006450,Early Years & Childcare,City Safe & Early Intervention
HCC,Hull City Council,06/07/2020,8182423,"42,801.92",BAYLEA HOMECARE,01021242,Agency Home Care,Adults Social Care
HCC,Hull City Council,20/07/2020,8199574,"42,801.92",BAYLEA HOMECARE,01021242,Agency Home Care,Adults Social Care
HCC,Hull City Council,23/07/2020,8208657,"6,646.19",BAYLEA HOMECARE,01021242,Agency Home Care,Adults Social Care
HCC,Hull City Council,24/07/2020,8213502,"189,360.08",BAYLEA HOMECARE,01021242,Agency Home Care,Adults Social Care
HCC,Hull City Council,08/07/2020,8185846,"11,700.00",BAYLEA HOMECARE,01021242,Agency - Supported Living,Adults Social Care
HCC,Hull City Council,13/07/2020,8188275,"5,200.00",BAYLEA HOMECARE,01021242,Agency - Supported Living,Adults Social Care
HCC,Hull City Council,02/07/2020,8169039,389.17,BED WORLD,01324022,Fostering - Hull City Council,Safeguarding
HCC,Hull City Council,13/07/2020,8187909,315.83,BED WORLD,01324022,Fostering - Hull City Council,Safeguarding
HCC,Hull City Council,10/07/2020,8187913,190.00,BED WORLD,01324022,Fostering - Hull City Council,Safeguarding
HCC,Hull City Council,10/07/2020,8187915,455.83,BED WORLD,01324022,Fostering - Hull City Council,Safeguarding
HCC,Hull City Council,02/07/2020,8165990,80.00,BEDSPACE RESOURCE LTD,10128846,16 to 18 Year Old's,Safeguarding
HCC,Hull City Council,02/07/2020,8165991,80.00,BEDSPACE RESOURCE LTD,10128846,16 to 18 Year Old's,Safeguarding
HCC,Hull City Council,02/07/2020,8165992,80.00,BEDSPACE RESOURCE LTD,10128846,16 to 18 Year Old's,Safeguarding
HCC,Hull City Council,02/07/2020,8165994,80.00,BEDSPACE RESOURCE LTD,10128846,16 to 18 Year Old's,Safeguarding
HCC,Hull City Council,02/07/2020,8165995,80.00,BEDSPACE RESOURCE LTD,10128846,16 to 18 Year Old's,Safeguarding
HCC,Hull City Council,10/07/2020,8186577,80.00,BEDSPACE RESOURCE LTD,10128846,16 to 18 Year Old's,Safeguarding
HCC,Hull City Council,10/07/2020,8186579,80.00,BEDSPACE RESOURCE LTD,10128846,16 to 18 Year Old's,Safeguarding
HCC,Hull City Council,10/07/2020,8186580,80.00,BEDSPACE RESOURCE LTD,10128846,16 to 18 Year Old's,Safeguarding
HCC,Hull City Council,20/07/2020,8198506,80.00,BEDSPACE RESOURCE LTD,10128846,16 to 18 Year Old's,Safeguarding
HCC,Hull City Council,20/07/2020,8198511,80.00,BEDSPACE RESOURCE LTD,10128846,16 to 18 Year Old's,Safeguarding
HCC,Hull City Council,20/07/2020,8198514,80.00,BEDSPACE RESOURCE LTD,10128846,16 to 18 Year Old's,Safeguarding
HCC,Hull City Council,20/07/2020,8198516,80.00,BEDSPACE RESOURCE LTD,10128846,16 to 18 Year Old's,Safeguarding
HCC,Hull City Council,02/07/2020,8165990,"1,200.00",BEDSPACE RESOURCE LTD,10128846,16+ Supported Tenancy Accommodation,Safeguarding
HCC,Hull City Council,02/07/2020,8165991,"3,755.00",BEDSPACE RESOURCE LTD,10128846,16+ Supported Tenancy Accommodation,Safeguarding
HCC,Hull City Council,02/07/2020,8165992,765.00,BEDSPACE RESOURCE LTD,10128846,16+ Supported Tenancy Accommodation,Safeguarding
HCC,Hull City Council,02/07/2020,8165994,"4,154.00",BEDSPACE RESOURCE LTD,10128846,16+ Supported Tenancy Accommodation,Safeguarding
HCC,Hull City Council,02/07/2020,8165995,"3,755.00",BEDSPACE RESOURCE LTD,10128846,16+ Supported Tenancy Accommodation,Safeguarding
HCC,Hull City Council,10/07/2020,8186574,"3,755.00",BEDSPACE RESOURCE LTD,10128846,16+ Supported Tenancy Accommodation,Safeguarding
HCC,Hull City Council,10/07/2020,8186577,"3,755.00",BEDSPACE RESOURCE LTD,10128846,16+ Supported Tenancy Accommodation,Safeguarding
HCC,Hull City Council,10/07/2020,8186578,"1,186.86",BEDSPACE RESOURCE LTD,10128846,16+ Supported Tenancy Accommodation,Safeguarding
HCC,Hull City Council,10/07/2020,8186579,"1,200.00",BEDSPACE RESOURCE LTD,10128846,16+ Supported Tenancy Accommodation,Safeguarding
HCC,Hull City Council,10/07/2020,8186580,765.00,BEDSPACE RESOURCE LTD,10128846,16+ Supported Tenancy Accommodation,Safeguarding
HCC,Hull City Council,20/07/2020,8198506,"3,755.00",BEDSPACE RESOURCE LTD,10128846,16+ Supported Tenancy Accommodation,Safeguarding
HCC,Hull City Council,20/07/2020,8198511,"1,200.00",BEDSPACE RESOURCE LTD,10128846,16+ Supported Tenancy Accommodation,Safeguarding
HCC,Hull City Council,20/07/2020,8198514,765.00,BEDSPACE RESOURCE LTD,10128846,16+ Supported Tenancy Accommodation,Safeguarding
HCC,Hull City Council,20/07/2020,8198516,"3,755.00",BEDSPACE RESOURCE LTD,10128846,16+ Supported Tenancy Accommodation,Safeguarding
HCC,Hull City Council,13/07/2020,8188063,"31,764.24",BEECH LAWN RESIDENTIAL HOME,01270100,Agency Residential - Over 65,Adults Social Care
HCC,Hull City Council,13/07/2020,8188063,"-2,033.20",BEECH LAWN RESIDENTIAL HOME,01270100,Agency Residential - Over 65,Adults Social Care
HCC,Hull City Council,13/07/2020,8188063,"-13,020.47",BEECH LAWN RESIDENTIAL HOME,01270100,Agency Residential - Over 65,Adults Social Care
HCC,Hull City Council,29/07/2020,8220798,18.40,BELMONT TAXIS HULL LTD,01020469,Fostering - Hull City Council,Safeguarding
HCC,Hull City Council,29/07/2020,8220798,41.28,BELMONT TAXIS HULL LTD,01020469,"Transport - Other (CIN, CPP etc)",Safeguarding
HCC,Hull City Council,29/07/2020,8220798,122.04,BELMONT TAXIS HULL LTD,01020469,Transport - Looked After Children,Safeguarding
HCC,Hull City Council,03/07/2020,8182155,172.70,BELTON ALL SAINTS C OF E PRIMARY SCHOOL,10130144,Virtual School for LAC,Learning and Skills
HCC,Hull City Council,23/07/2020,8204510,"3,684.80",BERRY MARKETING SERVICES LIMITED,10104693,Digital and Online Provision,Major Projects & Infrastructure
HCC,Hull City Council,29/07/2020,8220744,206.06,BERTRAM LIBRARY SERVICES,10025353,Book Fund Capitalisation,CAPITAL
HCC,Hull City Council,29/07/2020,8220745,370.99,BERTRAM LIBRARY SERVICES,10025353,Book Fund Capitalisation,CAPITAL
HCC,Hull City Council,29/07/2020,8220746,18.63,BERTRAM LIBRARY SERVICES,10025353,Book Fund Capitalisation,CAPITAL
HCC,Hull City Council,29/07/2020,8220747,17.50,BERTRAM LIBRARY SERVICES,10025353,Book Fund Capitalisation,CAPITAL
HCC,Hull City Council,29/07/2020,8220748,375.25,BERTRAM LIBRARY SERVICES,10025353,Book Fund Capitalisation,CAPITAL
HCC,Hull City Council,29/07/2020,8220749,94.08,BERTRAM LIBRARY SERVICES,10025353,Book Fund Capitalisation,CAPITAL
HCC,Hull City Council,29/07/2020,8220750,310.26,BERTRAM LIBRARY SERVICES,10025353,Book Fund Capitalisation,CAPITAL
HCC,Hull City Council,29/07/2020,8220751,96.51,BERTRAM LIBRARY SERVICES,10025353,Book Fund Capitalisation,CAPITAL
HCC,Hull City Council,29/07/2020,8220752,692.29,BERTRAM LIBRARY SERVICES,10025353,Book Fund Capitalisation,CAPITAL
HCC,Hull City Council,29/07/2020,8220753,3.66,BERTRAM LIBRARY SERVICES,10025353,Book Fund Capitalisation,CAPITAL
HCC,Hull City Council,29/07/2020,8220754,13.96,BERTRAM LIBRARY SERVICES,10025353,Book Fund Capitalisation,CAPITAL
HCC,Hull City Council,29/07/2020,8220755,5.37,BERTRAM LIBRARY SERVICES,10025353,Book Fund Capitalisation,CAPITAL
HCC,Hull City Council,29/07/2020,8220756,47.69,BERTRAM LIBRARY SERVICES,10025353,Book Fund Capitalisation,CAPITAL
HCC,Hull City Council,29/07/2020,8220757,113.73,BERTRAM LIBRARY SERVICES,10025353,Book Fund Capitalisation,CAPITAL
HCC,Hull City Council,29/07/2020,8220758,6.51,BERTRAM LIBRARY SERVICES,10025353,Book Fund Capitalisation,CAPITAL
HCC,Hull City Council,29/07/2020,8220759,23.52,BERTRAM LIBRARY SERVICES,10025353,Book Fund Capitalisation,CAPITAL
HCC,Hull City Council,29/07/2020,8220760,25.48,BERTRAM LIBRARY SERVICES,10025353,Book Fund Capitalisation,CAPITAL
HCC,Hull City Council,29/07/2020,8220761,11.99,BERTRAM LIBRARY SERVICES,10025353,Book Fund Capitalisation,CAPITAL
HCC,Hull City Council,29/07/2020,8220762,11.65,BERTRAM LIBRARY SERVICES,10025353,Book Fund Capitalisation,CAPITAL
HCC,Hull City Council,29/07/2020,8220763,10.74,BERTRAM LIBRARY SERVICES,10025353,Book Fund Capitalisation,CAPITAL
HCC,Hull City Council,29/07/2020,8220764,60.60,BERTRAM LIBRARY SERVICES,10025353,Book Fund Capitalisation,CAPITAL
HCC,Hull City Council,29/07/2020,8220765,-5.37,BERTRAM LIBRARY SERVICES,10025353,Book Fund Capitalisation,CAPITAL
HCC,Hull City Council,29/07/2020,8220769,31.55,BERTRAM LIBRARY SERVICES,10025353,Book Fund Capitalisation,CAPITAL
HCC,Hull City Council,29/07/2020,8220895,96.63,BES UTILITIES,10065827,Humber LEP Core Costs,Humber Local Enterprise Partnership
HCC,Hull City Council,13/07/2020,8188064,"40,541.70",BEVERLEY COURT RESIDENTIAL HOME,01020889,Agency Residential - Over 65,Adults Social Care
HCC,Hull City Council,13/07/2020,8188064,"-8,910.96",BEVERLEY COURT RESIDENTIAL HOME,01020889,Agency Residential - Over 65,Adults Social Care
HCC,Hull City Council,31/07/2020,8221404,833.00,BEVERLEY GRAMMAR SCHOOL,10013037,HN Payments to other LAs,Learning and Skills
HCC,Hull City Council,03/07/2020,8182135,692.16,BEVERLEY HIGH SCHOOL,10037484,Virtual School for LAC,Learning and Skills
HCC,Hull City Council,31/07/2020,8221407,167.00,BEVERLEY HIGH SCHOOL,10037484,HN Payments to other LAs,Learning and Skills
HCC,Hull City Council,20/07/2020,8200379,"1,023.89",BEVERS PROPERTY MANAGEMENT (LTD),10140498,ERDF - ICT,Economic Development and Regeneration
HCC,Hull City Council,03/07/2020,8182071,3.79,BIFFA WASTE SERVICES LTD,01020445,Expenditure,Corporate Finance
HCC,Hull City Council,31/07/2020,8221341,3.03,BIFFA WASTE SERVICES LTD,01020445,Expenditure,Corporate Finance
HCC,Hull City Council,07/07/2020,8182546,"2,651.90",BIFFA WASTE SERVICES LTD,01020445,Trinity Market,Property & Assets
HCC,Hull City Council,13/07/2020,8188354,31.60,BIFFA WASTE SERVICES LTD,01020445,Centralised Budgets - Cleaning,Property & Assets
HCC,Hull City Council,29/07/2020,8220931,"20,788.00",BIGGIN HILL PRIMARY (ACADEMY),10070139,Schools Budget Contingency,Learning and Skills
HCC,Hull City Council,13/07/2020,8188017,"6,464.92",BISMOR CARE HOME LTD,01270787,Agency Residential - Over 65,Adults Social Care
HCC,Hull City Council,13/07/2020,8188017,"-2,205.24",BISMOR CARE HOME LTD,01270787,Agency Residential - Over 65,Adults Social Care
HCC,Hull City Council,10/07/2020,8185713,"1,520.00",BIZ KARTS LIMITED,10013879,East Hull Wheels,City Safe & Early Intervention
HCC,Hull City Council,07/07/2020,8184773,85.19,BLACKWELL UK LTD,01315810,Humber Field Unit,Economic Development and Regeneration
HCC,Hull City Council,13/07/2020,8188010,"2,152.36",BLEAK HOUSE LTD,01270124,Agency Residential - Over 65,Adults Social Care
HCC,Hull City Council,13/07/2020,8188010,-601.08,BLEAK HOUSE LTD,01270124,Agency Residential - Over 65,Adults Social Care
HCC,Hull City Council,13/07/2020,8188010,"6,723.28",BLEAK HOUSE LTD,01270124,Agency Residential - Under 65,Adults Social Care
HCC,Hull City Council,13/07/2020,8188010,-423.00,BLEAK HOUSE LTD,01270124,Agency Residential - Under 65,Adults Social Care
HCC,Hull City Council,13/07/2020,8188011,"8,781.88",BLEAK HOUSE LTD,01270124,Agency Residential - Under 65,Adults Social Care
HCC,Hull City Council,22/07/2020,8204498,"1,645.56",Blok�Fa�ade,10140292,ERDF - ICT,Economic Development and Regeneration
HCC,Hull City Council,22/07/2020,8201653,"1,400.45",BLOODFAST COURIERS,10063573,Coroner's Office,Customer Services & Transformation
HCC,Hull City Council,07/07/2020,8164955,"1,200.00",BLUE ORCHID ENTERPRISE SOLUTIONS LTD,10137681,ERDF - Business Growth,Economic Development and Regeneration
HCC,Hull City Council,07/07/2020,8164956,"1,200.00",BLUE ORCHID ENTERPRISE SOLUTIONS LTD,10137681,ERDF - Business Growth,Economic Development and Regeneration
HCC,Hull City Council,13/07/2020,8188028,"4,192.16",BLUEBELL HOUSE,01270128,Agency Residential - Over 65,Adults Social Care
HCC,Hull City Council,13/07/2020,8188028,"-1,504.60",BLUEBELL HOUSE,01270128,Agency Residential - Over 65,Adults Social Care
HCC,Hull City Council,20/07/2020,8199578,"1,462.08",BLUEBIRD CARE,10086171,Direct Payments,Adults Social Care
HCC,Hull City Council,06/07/2020,8182417,941.40,BLUEBIRD CARE,10086171,Agency Home Care,Adults Social Care
HCC,Hull City Council,10/07/2020,8187717,"1,123.32",BLUEBIRD CARE,10086171,Agency Home Care,Adults Social Care
HCC,Hull City Council,10/07/2020,8187718,"1,283.69",BLUEBIRD CARE,10086171,Agency Home Care,Adults Social Care
HCC,Hull City Council,10/07/2020,8187719,262.43,BLUEBIRD CARE,10086171,Agency Home Care,Adults Social Care
HCC,Hull City Council,10/07/2020,8187720,"1,497.76",BLUEBIRD CARE,10086171,Agency Home Care,Adults Social Care
HCC,Hull City Council,10/07/2020,8187721,"1,123.32",BLUEBIRD CARE,10086171,Agency Home Care,Adults Social Care
HCC,Hull City Council,10/07/2020,8187722,115.85,BLUEBIRD CARE,10086171,Agency Home Care,Adults Social Care
HCC,Hull City Council,10/07/2020,8187723,305.80,BLUEBIRD CARE,10086171,Agency Home Care,Adults Social Care
HCC,Hull City Council,10/07/2020,8187724,"1,123.32",BLUEBIRD CARE,10086171,Agency Home Care,Adults Social Care
HCC,Hull City Council,10/07/2020,8187725,613.40,BLUEBIRD CARE,10086171,Agency Home Care,Adults Social Care
HCC,Hull City Council,10/07/2020,8187726,"1,252.95",BLUEBIRD CARE,10086171,Agency Home Care,Adults Social Care
HCC,Hull City Council,10/07/2020,8187728,485.40,BLUEBIRD CARE,10086171,Agency Home Care,Adults Social Care
HCC,Hull City Council,10/07/2020,8187729,363.76,BLUEBIRD CARE,10086171,Agency Home Care,Adults Social Care
HCC,Hull City Council,10/07/2020,8187730,"1,139.83",BLUEBIRD CARE,10086171,Agency Home Care,Adults Social Care
HCC,Hull City Council,10/07/2020,8187731,"1,206.07",BLUEBIRD CARE,10086171,Agency Home Care,Adults Social Care
HCC,Hull City Council,10/07/2020,8187732,"1,141.95",BLUEBIRD CARE,10086171,Agency Home Care,Adults Social Care
HCC,Hull City Council,10/07/2020,8187733,"1,123.32",BLUEBIRD CARE,10086171,Agency Home Care,Adults Social Care
HCC,Hull City Council,10/07/2020,8187734,"1,691.47",BLUEBIRD CARE,10086171,Agency Home Care,Adults Social Care
HCC,Hull City Council,10/07/2020,8187735,258.84,BLUEBIRD CARE,10086171,Agency Home Care,Adults Social Care
HCC,Hull City Council,10/07/2020,8187736,"1,497.76",BLUEBIRD CARE,10086171,Agency Home Care,Adults Social Care
HCC,Hull City Council,10/07/2020,8187737,"1,142.48",BLUEBIRD CARE,10086171,Agency Home Care,Adults Social Care
HCC,Hull City Council,10/07/2020,8187738,218.90,BLUEBIRD CARE,10086171,Agency Home Care,Adults Social Care
HCC,Hull City Council,10/07/2020,8187739,198.60,BLUEBIRD CARE,10086171,Agency Home Care,Adults Social Care
HCC,Hull City Council,10/07/2020,8187740,"1,240.13",BLUEBIRD CARE,10086171,Agency Home Care,Adults Social Care
HCC,Hull City Council,10/07/2020,8187741,242.38,BLUEBIRD CARE,10086171,Agency Home Care,Adults Social Care
HCC,Hull City Council,13/07/2020,8188301,941.40,BLUEBIRD CARE,10086171,Agency Home Care,Adults Social Care
HCC,Hull City Council,20/07/2020,8199566,941.40,BLUEBIRD CARE,10086171,Agency Home Care,Adults Social Care
HCC,Hull City Council,23/07/2020,8208613,96.12,BLUEBIRD CARE,10086171,Agency Home Care,Adults Social Care
HCC,Hull City Council,23/07/2020,8208614,93.27,BLUEBIRD CARE,10086171,Agency Home Care,Adults Social Care
HCC,Hull City Council,23/07/2020,8208615,33.10,BLUEBIRD CARE,10086171,Agency Home Care,Adults Social Care
HCC,Hull City Council,23/07/2020,8208616,112.67,BLUEBIRD CARE,10086171,Agency Home Care,Adults Social Care
HCC,Hull City Council,23/07/2020,8208617,"1,576.85",BLUEBIRD CARE,10086171,Agency Home Care,Adults Social Care
HCC,Hull City Council,24/07/2020,8213514,941.40,BLUEBIRD CARE,10086171,Agency Home Care,Adults Social Care
HCC,Hull City Council,24/07/2020,8198578,70.00,BLUESTORM DESIGN & MARKETING LTD,01322183,RGF - Inward Investment - Green Port Growth Programme,Economic Development and Regeneration
HCC,Hull City Council,16/07/2020,8188417,280.00,BLUESTORM DESIGN & MARKETING LTD,01322183,Local,Major Projects & Infrastructure
HCC,Hull City Council,16/07/2020,8188418,360.00,BLUESTORM DESIGN & MARKETING LTD,01322183,Local,Major Projects & Infrastructure
HCC,Hull City Council,16/07/2020,8188419,70.00,BLUESTORM DESIGN & MARKETING LTD,01322183,Local,Major Projects & Infrastructure
HCC,Hull City Council,16/07/2020,8188420,"4,933.00",BLUESTORM DESIGN & MARKETING LTD,01322183,Local,Major Projects & Infrastructure
HCC,Hull City Council,16/07/2020,8188421,160.00,BLUESTORM DESIGN & MARKETING LTD,01322183,Local,Major Projects & Infrastructure
HCC,Hull City Council,16/07/2020,8188422,986.50,BLUESTORM DESIGN & MARKETING LTD,01322183,Local,Major Projects & Infrastructure
HCC,Hull City Council,16/07/2020,8188423,110.00,BLUESTORM DESIGN & MARKETING LTD,01322183,Local,Major Projects & Infrastructure
HCC,Hull City Council,16/07/2020,8188424,"6,500.00",BLUESTORM DESIGN & MARKETING LTD,01322183,Local,Major Projects & Infrastructure
HCC,Hull City Council,16/07/2020,8188425,"7,484.32",BLUESTORM DESIGN & MARKETING LTD,01322183,Local,Major Projects & Infrastructure
HCC,Hull City Council,16/07/2020,8188426,70.00,BLUESTORM DESIGN & MARKETING LTD,01322183,Local,Major Projects & Infrastructure
HCC,Hull City Council,06/07/2020,8182208,3.16,BOC LIMITED,01020117,Expenditure,Corporate Finance
HCC,Hull City Council,24/07/2020,8216512,"2,063.88",BODMIN ROAD CHURCH,01333181,Commissioning Team,Adults Social Care
HCC,Hull City Council,31/07/2020,8220730,300.00,BONUS ELECTRICAL LTD,01020123,St Lighting Operations,Major Projects & Infrastructure
HCC,Hull City Council,13/07/2020,8188177,"3,972.00",BOURNEMOUTH BOROUGH COUNCIL,01332532,Agency Residential - Under 65,Adults Social Care
HCC,Hull City Council,13/07/2020,8188177,-423.00,BOURNEMOUTH BOROUGH COUNCIL,01332532,Agency Residential - Under 65,Adults Social Care
HCC,Hull City Council,29/07/2020,8220875,476.49,BOX-IT HUMBERSIDE,10034829,Welfare Rights Team,Customer Services & Transformation
HCC,Hull City Council,03/07/2020,8182153,261.00,BOYTON PRIMARY SCHOOL,10128052,Virtual School for LAC,Learning and Skills
HCC,Hull City Council,21/07/2020,8198711,"3,102.44",REDACTED,REDACTED,Computer Refunds,Corporate Finance
HCC,Hull City Council,21/07/2020,8200400,"3,864.29",REDACTED,REDACTED,Computer Refunds,Corporate Finance
HCC,Hull City Council,21/07/2020,8198716,"5,974.40",REDACTED,REDACTED,Computer Refunds,Corporate Finance
HCC,Hull City Council,24/07/2020,8213478,"10,000.00",REDACTED,REDACTED,Computer Refunds,Corporate Finance
HCC,Hull City Council,21/07/2020,8200402,359.25,REDACTED,REDACTED,Computer Refunds,Corporate Finance
HCC,Hull City Council,10/07/2020,8187797,"10,000.00",REDACTED,REDACTED,Computer Refunds,Corporate Finance
HCC,Hull City Council,21/07/2020,8198712,"1,153.84",REDACTED,REDACTED,Computer Refunds,Corporate Finance
HCC,Hull City Council,21/07/2020,8198713,"1,164.07",REDACTED,REDACTED,Computer Refunds,Corporate Finance
HCC,Hull City Council,31/07/2020,8221151,456.07,REDACTED,REDACTED,Computer Refunds,Corporate Finance
HCC,Hull City Council,24/07/2020,8213480,718.50,REDACTED,REDACTED,Computer Refunds,Corporate Finance
HCC,Hull City Council,21/07/2020,8198714,"7,590.93",REDACTED,REDACTED,Computer Refunds,Corporate Finance
HCC,Hull City Council,24/07/2020,8213479,"10,000.00",REDACTED,REDACTED,Computer Refunds,Corporate Finance
HCC,Hull City Council,21/07/2020,8198715,496.20,REDACTED,REDACTED,Computer Refunds,Corporate Finance
HCC,Hull City Council,21/07/2020,8200401,320.31,REDACTED,REDACTED,Computer Refunds,Corporate Finance
HCC,Hull City Council,31/07/2020,8221152,704.75,REDACTED,REDACTED,Computer Refunds,Corporate Finance
HCC,Hull City Council,10/07/2020,8184821,"10,000.00",REDACTED,REDACTED,Computer Refunds,Corporate Finance
HCC,Hull City Council,10/07/2020,8184822,"10,000.00",REDACTED,REDACTED,Computer Refunds,Corporate Finance
HCC,Hull City Council,10/07/2020,8187799,"10,000.00",REDACTED,REDACTED,Computer Refunds,Corporate Finance
HCC,Hull City Council,10/07/2020,8187798,"10,000.00",REDACTED,REDACTED,Computer Refunds,Corporate Finance
HCC,Hull City Council,30/07/2020,8221127,"1,000.00",BRANSHOLME COMMUNITY ARTS ENTERPRISE LTD,10113950,Commissioning Budget (H&WB),City Safe & Early Intervention
HCC,Hull City Council,29/07/2020,8220938,"13,484.00",BRICKNELL PRIMARY (ACADEMY),10073241,Schools Budget Contingency,Learning and Skills
HCC,Hull City Council,02/07/2020,8181947,"1,000.00",BRIDGES HULL LTD,10080917,Commissioning Budget (H&WB),City Safe & Early Intervention
HCC,Hull City Council,07/07/2020,8183562,"20,160.00",BRIDGES HULL LTD,10080917,Commissioning Budget (H&WB),City Safe & Early Intervention
HCC,Hull City Council,29/07/2020,8220966,"180,251.00",BRIDGEVIEW SCHOOL,10100360,Schools Budget Contingency,Learning and Skills
HCC,Hull City Council,31/07/2020,8221403,528.00,BRIDLINGTON SCHOOL,10010529,HN Payments to other LAs,Learning and Skills
HCC,Hull City Council,13/07/2020,8188374,63.65,BRITISH BINS,10122340,Communications & Marketing,Economic Development and Regeneration
HCC,Hull City Council,13/07/2020,8152604,43.30,BRITISH GAS BUSINESS,10054508,Thornton Court,Adults Social Care
HCC,Hull City Council,13/07/2020,8152605,12.46,BRITISH GAS BUSINESS,10054508,Thornton Court,Adults Social Care
HCC,Hull City Council,13/07/2020,8152606,21.12,BRITISH GAS BUSINESS,10054508,Thornton Court,Adults Social Care
HCC,Hull City Council,27/07/2020,8187949,2.45,BRITISH GAS BUSINESS,10054508,Shared Tenancies - Expenditure,Neighbourhoods & Housing
HCC,Hull City Council,24/07/2020,8213498,440.08,BRITISH GAS BUSINESS,10054508,Communal Areas,Neighbourhoods & Housing
HCC,Hull City Council,24/07/2020,8213499,"1,240.23",BRITISH GAS BUSINESS,10054508,Communal Areas,Neighbourhoods & Housing
HCC,Hull City Council,02/07/2020,8168980,55.30,BRITISH GAS BUSINESS,10054508,R&M - Citywide,Neighbourhoods & Housing
HCC,Hull City Council,02/07/2020,8168986,57.47,BRITISH GAS BUSINESS,10054508,R&M - Citywide,Neighbourhoods & Housing
HCC,Hull City Council,02/07/2020,8168988,28.74,BRITISH GAS BUSINESS,10054508,R&M - Citywide,Neighbourhoods & Housing
HCC,Hull City Council,02/07/2020,8168988,27.55,BRITISH GAS BUSINESS,10054508,R&M - Citywide,Neighbourhoods & Housing
HCC,Hull City Council,13/07/2020,8187951,144.37,BRITISH GAS BUSINESS,10054508,R&M - Citywide,Neighbourhoods & Housing
HCC,Hull City Council,24/07/2020,8213486,487.45,BRITISH GAS BUSINESS,10054508,R&M - Citywide,Neighbourhoods & Housing
HCC,Hull City Council,24/07/2020,8213487,29.88,BRITISH GAS BUSINESS,10054508,R&M - Citywide,Neighbourhoods & Housing
HCC,Hull City Council,27/07/2020,8213488,1.11,BRITISH GAS BUSINESS,10054508,R&M - Citywide,Neighbourhoods & Housing
HCC,Hull City Council,24/07/2020,8213491,78.58,BRITISH GAS BUSINESS,10054508,R&M - Citywide,Neighbourhoods & Housing
HCC,Hull City Council,24/07/2020,8213491,65.18,BRITISH GAS BUSINESS,10054508,R&M - Citywide,Neighbourhoods & Housing
HCC,Hull City Council,03/07/2020,8182051,13.73,BRITISH GAS BUSINESS,10054508,Energy,Property & Assets
HCC,Hull City Council,03/07/2020,8182052,11.44,BRITISH GAS BUSINESS,10054508,Energy,Property & Assets
HCC,Hull City Council,14/07/2020,8187998,10.99,BRITISH GAS BUSINESS,10054508,Energy,Property & Assets
HCC,Hull City Council,17/07/2020,8198633,26.27,BRITISH GAS BUSINESS,10054508,Energy,Property & Assets
HCC,Hull City Council,17/07/2020,8198634,14.60,BRITISH GAS BUSINESS,10054508,Energy,Property & Assets
HCC,Hull City Council,27/07/2020,8215486,5.60,BRITISH GAS BUSINESS,10054508,Energy,Property & Assets
HCC,Hull City Council,27/07/2020,8215487,10.39,BRITISH GAS BUSINESS,10054508,Energy,Property & Assets
HCC,Hull City Council,29/07/2020,8220862,70.00,BRITISH PARKING ASSOCIATION,10000736,Parking - Off Street,Street Scene Services
HCC,Hull City Council,22/07/2020,8205518,552.21,BRITISH TELECOMMUNICATIONS PLC,01020194,Unified Communications and Security,Digital & ICT
HCC,Hull City Council,20/07/2020,8198825,15.00,BROADMAN LTD,01020284,Expenditure,Corporate Finance
HCC,Hull City Council,20/07/2020,8198826,9.00,BROADMAN LTD,01020284,Expenditure,Corporate Finance
HCC,Hull City Council,20/07/2020,8198827,9.00,BROADMAN LTD,01020284,Expenditure,Corporate Finance
HCC,Hull City Council,20/07/2020,8198828,21.00,BROADMAN LTD,01020284,Expenditure,Corporate Finance
HCC,Hull City Council,20/07/2020,8198829,6.00,BROADMAN LTD,01020284,Expenditure,Corporate Finance
HCC,Hull City Council,20/07/2020,8198830,6.00,BROADMAN LTD,01020284,Expenditure,Corporate Finance
HCC,Hull City Council,27/07/2020,8185983,"14,200.00",BROOKFIELD HOUSE,10120435,Residential Agency,Safeguarding
HCC,Hull City Council,06/07/2020,8182422,"10,301.53",BROTHERS RECRUITMENT LTD (T/A SURE HEALTHCARE),10134615,Agency Home Care,Adults Social Care
HCC,Hull City Council,13/07/2020,8188306,"10,301.53",BROTHERS RECRUITMENT LTD (T/A SURE HEALTHCARE),10134615,Agency Home Care,Adults Social Care
HCC,Hull City Council,20/07/2020,8199568,"10,301.53",BROTHERS RECRUITMENT LTD (T/A SURE HEALTHCARE),10134615,Agency Home Care,Adults Social Care
HCC,Hull City Council,23/07/2020,8208502,"1,008.00",BROTHERS RECRUITMENT LTD (T/A SURE HEALTHCARE),10134615,Agency Home Care,Adults Social Care
HCC,Hull City Council,23/07/2020,8208503,"1,008.00",BROTHERS RECRUITMENT LTD (T/A SURE HEALTHCARE),10134615,Agency Home Care,Adults Social Care
HCC,Hull City Council,23/07/2020,8208504,"1,008.00",BROTHERS RECRUITMENT LTD (T/A SURE HEALTHCARE),10134615,Agency Home Care,Adults Social Care
HCC,Hull City Council,23/07/2020,8208505,288.00,BROTHERS RECRUITMENT LTD (T/A SURE HEALTHCARE),10134615,Agency Home Care,Adults Social Care
HCC,Hull City Council,23/07/2020,8208506,162.00,BROTHERS RECRUITMENT LTD (T/A SURE HEALTHCARE),10134615,Agency Home Care,Adults Social Care
HCC,Hull City Council,23/07/2020,8208507,659.75,BROTHERS RECRUITMENT LTD (T/A SURE HEALTHCARE),10134615,Agency Home Care,Adults Social Care
HCC,Hull City Council,24/07/2020,8213519,"10,301.53",BROTHERS RECRUITMENT LTD (T/A SURE HEALTHCARE),10134615,Agency Home Care,Adults Social Care
HCC,Hull City Council,13/07/2020,8188347,71.40,BROWNS BOOKS FOR STUDENTS,01120059,Business & Apprenticeships,City Safe & Early Intervention
HCC,Hull City Council,30/07/2020,8221110,129.89,BROWNS BOOKS FOR STUDENTS,01120059,3 & 4 Yr Olds EEF - PVI,Learning and Skills
HCC,Hull City Council,27/07/2020,8218527,"1,000.00",BUBBLE 'N' SQUEAK,10143204,ERDF - ICT,Economic Development and Regeneration
HCC,Hull City Council,13/07/2020,8188172,"2,858.52",BUCKLAND CARE LTD,10111726,Agency Nursing Over 65,Adults Social Care
HCC,Hull City Council,13/07/2020,8188172,-586.08,BUCKLAND CARE LTD,10111726,Agency Nursing Over 65,Adults Social Care
HCC,Hull City Council,29/07/2020,8220932,"3,617.00",BUDE PARK PRIMARY (ACADEMY),10070141,Schools Budget Contingency,Learning and Skills
HCC,Hull City Council,02/07/2020,8158607,432.74,BULB ENERGY LTD,10138677,R&M - Citywide,Neighbourhoods & Housing
HCC,Hull City Council,13/07/2020,8188100,"105,852.63",BUPA  CARE HOMES,01270186,Agency Residential - Over 65,Adults Social Care
HCC,Hull City Council,13/07/2020,8188100,"-3,855.60",BUPA  CARE HOMES,01270186,Agency Residential - Over 65,Adults Social Care
HCC,Hull City Council,13/07/2020,8188100,"-2,033.20",BUPA  CARE HOMES,01270186,Agency Residential - Over 65,Adults Social Care
HCC,Hull City Council,13/07/2020,8188100,"-37,428.90",BUPA  CARE HOMES,01270186,Agency Residential - Over 65,Adults Social Care
HCC,Hull City Council,13/07/2020,8188101,"3,684.80",BUPA  CARE HOMES,01270186,Agency Residential - Over 65,Adults Social Care
HCC,Hull City Council,13/07/2020,8188168,"2,200.00",BUPA  CARE HOMES,01270186,Agency Residential - Over 65,Adults Social Care
HCC,Hull City Council,13/07/2020,8188168,-559.00,BUPA  CARE HOMES,01270186,Agency Residential - Over 65,Adults Social Care
HCC,Hull City Council,13/07/2020,8188099,"15,899.60",BUPA  CARE HOMES,01270186,Agency Residential - Under 65,Adults Social Care
HCC,Hull City Council,13/07/2020,8188102,"7,369.60",BUPA  CARE HOMES,01270186,Agency Residential - Under 65,Adults Social Care
HCC,Hull City Council,13/07/2020,8188074,"39,673.37",BURLINGTON LOVEL LTD,10035400,Agency Residential - Over 65,Adults Social Care
HCC,Hull City Council,13/07/2020,8188074,"-2,329.59",BURLINGTON LOVEL LTD,10035400,Agency Residential - Over 65,Adults Social Care
HCC,Hull City Council,13/07/2020,8188148,"41,559.45",BURLINGTON LOVEL LTD,10035400,Agency Residential - Over 65,Adults Social Care
HCC,Hull City Council,13/07/2020,8188148,"-7,998.80",BURLINGTON LOVEL LTD,10035400,Agency Residential - Over 65,Adults Social Care
HCC,Hull City Council,13/07/2020,8188148,"-2,033.20",BURLINGTON LOVEL LTD,10035400,Agency Residential - Over 65,Adults Social Care
HCC,Hull City Council,13/07/2020,8188148,"-12,935.60",BURLINGTON LOVEL LTD,10035400,Agency Residential - Over 65,Adults Social Care
HCC,Hull City Council,13/07/2020,8188404,"42,031.09",BURLINGTON LOVEL LTD,10035400,Agency Residential - Over 65,Adults Social Care
HCC,Hull City Council,13/07/2020,8188404,"3,323.60",BURLINGTON LOVEL LTD,10035400,Agency Residential - Over 65,Adults Social Care
HCC,Hull City Council,13/07/2020,8188404,"-9,884.94",BURLINGTON LOVEL LTD,10035400,Agency Residential - Over 65,Adults Social Care
HCC,Hull City Council,06/07/2020,8182416,"5,028.00",BURLINGTON LOVEL LTD,10035400,Agency Home Care,Adults Social Care
HCC,Hull City Council,13/07/2020,8188300,"5,028.00",BURLINGTON LOVEL LTD,10035400,Agency Home Care,Adults Social Care
HCC,Hull City Council,20/07/2020,8199565,"5,028.00",BURLINGTON LOVEL LTD,10035400,Agency Home Care,Adults Social Care
HCC,Hull City Council,24/07/2020,8213513,"5,028.00",BURLINGTON LOVEL LTD,10035400,Agency Home Care,Adults Social Care
HCC,Hull City Council,13/07/2020,8188148,"20,892.51",BURLINGTON LOVEL LTD,10035400,Agency Nursing Over 65,Adults Social Care
HCC,Hull City Council,13/07/2020,8188148,"-5,403.76",BURLINGTON LOVEL LTD,10035400,Agency Nursing Over 65,Adults Social Care
HCC,Hull City Council,13/07/2020,8188148,"-2,331.65",BURLINGTON LOVEL LTD,10035400,Agency Nursing Over 65,Adults Social Care
HCC,Hull City Council,13/07/2020,8188148,"-5,577.04",BURLINGTON LOVEL LTD,10035400,Agency Nursing Over 65,Adults Social Care
HCC,Hull City Council,13/07/2020,8188201,"10,571.43",BURLINGTON LOVEL LTD,10035400,Agency Nursing Over 65,Adults Social Care
HCC,Hull City Council,13/07/2020,8188201,"-1,520.70",BURLINGTON LOVEL LTD,10035400,Agency Nursing Over 65,Adults Social Care
HCC,Hull City Council,13/07/2020,8188148,"2,881.43",BURLINGTON LOVEL LTD,10035400,Elderly Free Nursing Care,Adults Social Care
HCC,Hull City Council,13/07/2020,8188201,"1,944.30",BURLINGTON LOVEL LTD,10035400,Elderly Free Nursing Care,Adults Social Care
HCC,Hull City Council,13/07/2020,8188201,"-1,944.30",BURLINGTON LOVEL LTD,10035400,Elderly Free Nursing Care,Adults Social Care
HCC,Hull City Council,13/07/2020,8188148,"4,703.19",BURLINGTON LOVEL LTD,10035400,Agency Nursing Under 65,Adults Social Care
HCC,Hull City Council,13/07/2020,8188148,"-2,669.99",BURLINGTON LOVEL LTD,10035400,Agency Nursing Under 65,Adults Social Care
HCC,Hull City Council,13/07/2020,8188148,-423.00,BURLINGTON LOVEL LTD,10035400,Agency Nursing Under 65,Adults Social Care
HCC,Hull City Council,13/07/2020,8188074,"1,899.20",BURLINGTON LOVEL LTD,10035400,Agency Residential - Under 65,Adults Social Care
HCC,Hull City Council,13/07/2020,8188074,-423.00,BURLINGTON LOVEL LTD,10035400,Agency Residential - Under 65,Adults Social Care
HCC,Hull City Council,13/07/2020,8188148,"7,669.41",BURLINGTON LOVEL LTD,10035400,Agency Residential - Under 65,Adults Social Care
HCC,Hull City Council,13/07/2020,8188148,"-4,257.69",BURLINGTON LOVEL LTD,10035400,Agency Residential - Under 65,Adults Social Care
HCC,Hull City Council,13/07/2020,8188148,"6,218.28",BURLINGTON LOVEL LTD,10035400,Agency Residential - Under 65,Adults Social Care
HCC,Hull City Council,13/07/2020,8188148,"-1,360.32",BURLINGTON LOVEL LTD,10035400,Agency Residential - Under 65,Adults Social Care
HCC,Hull City Council,13/07/2020,8188055,"8,811.88",BURNSIDE CARE LTD,10128136,Agency Nursing Under 65,Adults Social Care
HCC,Hull City Council,03/07/2020,8182161,"3,261.00",BURTON UPON STATHER PRIMARY SCHOOL,10139676,Virtual School for LAC,Learning and Skills
HCC,Hull City Council,03/07/2020,8070529,188.00,BUSINESS IT SUPPORT LIMITED,10068636,S3 - Domestic Refuse Collection,Street Scene Services
HCC,Hull City Council,31/07/2020,8219655,268.62,BUTTERFLIES PRE-SCHOOL & PRIORY KIDS CLUB,01331232,3 & 4 Yr Olds EEF - PVI,Learning and Skills
HCC,Hull City Council,31/07/2020,8219656,512.82,BUTTERFLIES PRE-SCHOOL & PRIORY KIDS CLUB,01331232,Deprived 2 Year Olds EEF,Learning and Skills
HCC,Hull City Council,07/07/2020,8184695,"1,050.00",C E A TOWNE (SHIP RIGGERS) LTD,01306552,Christmas lighting scheme,Major Projects & Infrastructure
HCC,Hull City Council,20/07/2020,8198808,534.06,C FEWSTER & SON FUNERAL SERVICES LIMITED,01060342,Coroner's Office,Customer Services & Transformation
HCC,Hull City Council,20/07/2020,8198809,174.42,C M ALLOTT & SON,01270029,Coroner's Office,Customer Services & Transformation
HCC,Hull City Council,31/07/2020,8219707,520.00,C STUDENT SERVICES,10142828,Care Leavers,Safeguarding
HCC,Hull City Council,24/07/2020,8216498,"9,900.00",C.K. FOODS (PROCESSING) LTD,10140761,ERDF - ICT,Economic Development and Regeneration
HCC,Hull City Council,24/07/2020,8210494,414.00,CA TRAFFIC MONITORING,10055731,Safety Camera ATCs,CAPITAL
HCC,Hull City Council,02/07/2020,8181980,14.61,CALOR GAS LIMITED,01081038,Expenditure,Corporate Finance
HCC,Hull City Council,22/07/2020,8203881,"69,792.86",CAMBIAN CHILDCARE LIMITED,10069168,Residential Agency,Safeguarding
HCC,Hull City Council,14/07/2020,8188437,834.00,CAPITA TRAVEL AND EVENTS,10037563,Tourism Administration,Major Projects & Infrastructure
HCC,Hull City Council,14/07/2020,8188438,7.00,CAPITA TRAVEL AND EVENTS,10037563,Tourism Administration,Major Projects & Infrastructure
HCC,Hull City Council,14/07/2020,8188439,-125.00,CAPITA TRAVEL AND EVENTS,10037563,Fostering - Hull City Council,Safeguarding
HCC,Hull City Council,14/07/2020,8188440,-7.00,CAPITA TRAVEL AND EVENTS,10037563,Fostering - Hull City Council,Safeguarding
HCC,Hull City Council,14/07/2020,8188437,55.50,CAPITA TRAVEL AND EVENTS,10037563,Localities West - Team 1,Safeguarding
HCC,Hull City Council,14/07/2020,8188438,3.50,CAPITA TRAVEL AND EVENTS,10037563,Localities West - Team 1,Safeguarding
HCC,Hull City Council,22/07/2020,8204327,"3,276.00",CAPSTONE FOSTER CARE,10139548,Fostering Agency,Safeguarding
HCC,Hull City Council,23/07/2020,8210481,"3,900.00",CARBON ELECTRIC LTD,10101791,ERDF � Finance for Growth,Economic Development and Regeneration
HCC,Hull City Council,22/07/2020,8204507,154.00,CARDIAC SCIENCE HOLDINGS (UK) LTD,10023195,Expenditure,Corporate Finance
HCC,Hull City Council,22/07/2020,8204509,154.00,CARDIAC SCIENCE HOLDINGS (UK) LTD,10023195,Expenditure,Corporate Finance
HCC,Hull City Council,02/07/2020,8165989,"3,129.00",CARE 2 INDEPENDENCE,10140191,16+ Supported Tenancy Accommodation,Safeguarding
HCC,Hull City Council,14/07/2020,8186565,"3,066.00",CARE 2 INDEPENDENCE,10140191,16+ Supported Tenancy Accommodation,Safeguarding
HCC,Hull City Council,22/07/2020,8198491,"3,066.00",CARE 2 INDEPENDENCE,10140191,16+ Supported Tenancy Accommodation,Safeguarding
HCC,Hull City Council,23/07/2020,8208655,"3,677.14",CARE MARK (EAST RIDING),10064794,Agency Home Care,Adults Social Care
HCC,Hull City Council,24/07/2020,8213503,"55,847.04",CARE MARK (EAST RIDING),10064794,Agency Home Care,Adults Social Care
HCC,Hull City Council,24/07/2020,8213511,"7,186.20",CARE MARK (EAST RIDING),10064794,Agency Home Care,Adults Social Care
HCC,Hull City Council,08/07/2020,8073096,"9,890.57",CARE MONITORING 2000 LIMITED,10101233,Agency Home Care,Adults Social Care
HCC,Hull City Council,13/07/2020,8188185,"4,365.56",CARE PLUS HOMES,10034133,Agency Residential - Over 65,Adults Social Care
HCC,Hull City Council,13/07/2020,8188185,"-1,518.64",CARE PLUS HOMES,10034133,Agency Residential - Over 65,Adults Social Care
HCC,Hull City Council,22/07/2020,8138816,"-40,167.64",CARE TODAY CHILDRENS SERVICE,10118576,Residential Agency,Safeguarding
HCC,Hull City Council,22/07/2020,8158324,"33,960.00",CARE TODAY CHILDRENS SERVICE,10118576,Residential Agency,Safeguarding
HCC,Hull City Council,22/07/2020,8204165,"33,960.00",CARE TODAY CHILDRENS SERVICE,10118576,Residential Agency,Safeguarding
HCC,Hull City Council,13/07/2020,8188103,"56,076.83",CARE UK LTD,10049854,Agency Residential - Over 65,Adults Social Care
HCC,Hull City Council,13/07/2020,8188103,-290.46,CARE UK LTD,10049854,Agency Residential - Over 65,Adults Social Care
HCC,Hull City Council,13/07/2020,8188103,"-31,405.77",CARE UK LTD,10049854,Agency Residential - Over 65,Adults Social Care
HCC,Hull City Council,13/07/2020,8188103,-720.97,CARE UK LTD,10049854,Agency Nursing Over 65,Adults Social Care
HCC,Hull City Council,13/07/2020,8188103,458.80,CARE UK LTD,10049854,Agency Nursing Over 65,Adults Social Care
HCC,Hull City Council,13/07/2020,8188103,"-2,093.92",CARE UK LTD,10049854,Elderly Free Nursing Care,Adults Social Care
HCC,Hull City Council,13/07/2020,8188103,"5,831.60",CARE UK LTD,10049854,Agency Residential - Under 65,Adults Social Care
HCC,Hull City Council,13/07/2020,8188103,-372.72,CARE UK LTD,10049854,Agency Residential - Under 65,Adults Social Care
HCC,Hull City Council,13/07/2020,8188016,"10,491.10",CARETECH COMMUNITY SERVICES (FRANKLIN HOMES LTD),01300516,Agency Residential - Under 65,Adults Social Care
HCC,Hull City Council,13/07/2020,8188173,"3,000.00",CARING HOMES GROUP,10102622,Agency Nursing Over 65,Adults Social Care
HCC,Hull City Council,13/07/2020,8188173,-996.32,CARING HOMES GROUP,10102622,Agency Nursing Over 65,Adults Social Care
HCC,Hull City Council,13/07/2020,8188173,735.68,CARING HOMES GROUP,10102622,Elderly Free Nursing Care,Adults Social Care
HCC,Hull City Council,13/07/2020,8188173,"-1,777.04",CARING HOMES GROUP,10102622,Elderly Free Nursing Care,Adults Social Care
HCC,Hull City Council,13/07/2020,8188187,"8,582.60",CARMAND LTD,10121787,Agency Residential - Under 65,Adults Social Care
HCC,Hull City Council,13/07/2020,8188187,-514.32,CARMAND LTD,10121787,Agency Residential - Under 65,Adults Social Care
HCC,Hull City Council,14/07/2020,8188435,"8,463.58",CARR HOUSE RESCUE CENTRE,01010593,Environmental Regulation,Health and Wellbeing
HCC,Hull City Council,14/07/2020,8188435,-171.00,CARR HOUSE RESCUE CENTRE,01010593,Environmental Regulation,Health and Wellbeing
HCC,Hull City Council,28/07/2020,8218748,648.00,CARTER BROWN  - THE EXPERT SERVICE LIMITED,10100811,Comm & S/work General,Safeguarding
HCC,Hull City Council,13/07/2020,8188257,"18,237.12",CASCADE LIVING SOLUTIONS LTD,10059091,Agency - Supported Living,Adults Social Care
HCC,Hull City Council,13/07/2020,8188035,"18,298.76",CASCADE LIVING SOLUTIONS LTD,10059091,Agency Residential - Under 65,Adults Social Care
HCC,Hull City Council,24/07/2020,8216513,"2,209.76",CASE TRAINING SERVICES,01270193,Commissioning Team,Adults Social Care
HCC,Hull City Council,10/07/2020,8187626,840.00,CASE TRAINING SERVICES,01270193,Agency Day Care,Adults Social Care
HCC,Hull City Council,10/07/2020,8187627,"1,440.00",CASE TRAINING SERVICES,01270193,Agency Day Care,Adults Social Care
HCC,Hull City Council,10/07/2020,8187628,990.00,CASE TRAINING SERVICES,01270193,Agency Day Care,Adults Social Care
HCC,Hull City Council,10/07/2020,8187629,540.00,CASE TRAINING SERVICES,01270193,Agency Day Care,Adults Social Care
HCC,Hull City Council,10/07/2020,8187630,840.00,CASE TRAINING SERVICES,01270193,Agency Day Care,Adults Social Care
HCC,Hull City Council,10/07/2020,8187631,420.00,CASE TRAINING SERVICES,01270193,Agency Day Care,Adults Social Care
HCC,Hull City Council,10/07/2020,8187632,600.00,CASE TRAINING SERVICES,01270193,Agency Day Care,Adults Social Care
HCC,Hull City Council,10/07/2020,8187633,870.00,CASE TRAINING SERVICES,01270193,Agency Day Care,Adults Social Care
HCC,Hull City Council,10/07/2020,8187634,840.00,CASE TRAINING SERVICES,01270193,Agency Day Care,Adults Social Care
HCC,Hull City Council,10/07/2020,8187635,900.00,CASE TRAINING SERVICES,01270193,Agency Day Care,Adults Social Care
HCC,Hull City Council,10/07/2020,8187636,600.00,CASE TRAINING SERVICES,01270193,Agency Day Care,Adults Social Care
HCC,Hull City Council,10/07/2020,8187637,840.00,CASE TRAINING SERVICES,01270193,Agency Day Care,Adults Social Care
HCC,Hull City Council,10/07/2020,8187638,"1,140.00",CASE TRAINING SERVICES,01270193,Agency Day Care,Adults Social Care
HCC,Hull City Council,10/07/2020,8187639,"1,200.00",CASE TRAINING SERVICES,01270193,Agency Day Care,Adults Social Care
HCC,Hull City Council,10/07/2020,8187640,"1,440.00",CASE TRAINING SERVICES,01270193,Agency Day Care,Adults Social Care
HCC,Hull City Council,10/07/2020,8187641,"1,140.00",CASE TRAINING SERVICES,01270193,Agency Day Care,Adults Social Care
HCC,Hull City Council,10/07/2020,8187642,300.00,CASE TRAINING SERVICES,01270193,Agency Day Care,Adults Social Care
HCC,Hull City Council,10/07/2020,8187643,900.00,CASE TRAINING SERVICES,01270193,Agency Day Care,Adults Social Care
HCC,Hull City Council,10/07/2020,8187644,"1,440.00",CASE TRAINING SERVICES,01270193,Agency Day Care,Adults Social Care
HCC,Hull City Council,10/07/2020,8187645,"1,140.00",CASE TRAINING SERVICES,01270193,Agency Day Care,Adults Social Care
HCC,Hull City Council,10/07/2020,8187646,870.00,CASE TRAINING SERVICES,01270193,Agency Day Care,Adults Social Care
HCC,Hull City Council,10/07/2020,8187647,"1,140.00",CASE TRAINING SERVICES,01270193,Agency Day Care,Adults Social Care
HCC,Hull City Council,10/07/2020,8187648,600.00,CASE TRAINING SERVICES,01270193,Agency Day Care,Adults Social Care
HCC,Hull City Council,10/07/2020,8187649,540.00,CASE TRAINING SERVICES,01270193,Agency Day Care,Adults Social Care
HCC,Hull City Council,10/07/2020,8187650,840.00,CASE TRAINING SERVICES,01270193,Agency Day Care,Adults Social Care
HCC,Hull City Council,10/07/2020,8187651,570.00,CASE TRAINING SERVICES,01270193,Agency Day Care,Adults Social Care
HCC,Hull City Council,10/07/2020,8187652,"1,140.00",CASE TRAINING SERVICES,01270193,Agency Day Care,Adults Social Care
HCC,Hull City Council,10/07/2020,8187653,300.00,CASE TRAINING SERVICES,01270193,Agency Day Care,Adults Social Care
HCC,Hull City Council,10/07/2020,8187654,840.00,CASE TRAINING SERVICES,01270193,Agency Day Care,Adults Social Care
HCC,Hull City Council,10/07/2020,8187655,675.00,CASE TRAINING SERVICES,01270193,Agency Day Care,Adults Social Care
HCC,Hull City Council,10/07/2020,8187656,840.00,CASE TRAINING SERVICES,01270193,Agency Day Care,Adults Social Care
HCC,Hull City Council,10/07/2020,8187657,600.00,CASE TRAINING SERVICES,01270193,Agency Day Care,Adults Social Care
HCC,Hull City Council,10/07/2020,8187658,450.00,CASE TRAINING SERVICES,01270193,Agency Day Care,Adults Social Care
HCC,Hull City Council,10/07/2020,8187659,900.00,CASE TRAINING SERVICES,01270193,Agency Day Care,Adults Social Care
HCC,Hull City Council,10/07/2020,8187660,"1,440.00",CASE TRAINING SERVICES,01270193,Agency Day Care,Adults Social Care
HCC,Hull City Council,10/07/2020,8187661,900.00,CASE TRAINING SERVICES,01270193,Agency Day Care,Adults Social Care
HCC,Hull City Council,10/07/2020,8187662,690.00,CASE TRAINING SERVICES,01270193,Agency Day Care,Adults Social Care
HCC,Hull City Council,10/07/2020,8187663,840.00,CASE TRAINING SERVICES,01270193,Agency Day Care,Adults Social Care
HCC,Hull City Council,10/07/2020,8187664,840.00,CASE TRAINING SERVICES,01270193,Agency Day Care,Adults Social Care
HCC,Hull City Council,10/07/2020,8187665,540.00,CASE TRAINING SERVICES,01270193,Agency Day Care,Adults Social Care
HCC,Hull City Council,10/07/2020,8187666,"1,320.00",CASE TRAINING SERVICES,01270193,Agency Day Care,Adults Social Care
HCC,Hull City Council,10/07/2020,8187667,840.00,CASE TRAINING SERVICES,01270193,Agency Day Care,Adults Social Care
HCC,Hull City Council,10/07/2020,8187668,600.00,CASE TRAINING SERVICES,01270193,Agency Day Care,Adults Social Care
HCC,Hull City Council,10/07/2020,8187669,840.00,CASE TRAINING SERVICES,01270193,Agency Day Care,Adults Social Care
HCC,Hull City Council,10/07/2020,8187670,840.00,CASE TRAINING SERVICES,01270193,Agency Day Care,Adults Social Care
HCC,Hull City Council,10/07/2020,8187671,900.00,CASE TRAINING SERVICES,01270193,Agency Day Care,Adults Social Care
HCC,Hull City Council,10/07/2020,8187672,900.00,CASE TRAINING SERVICES,01270193,Agency Day Care,Adults Social Care
HCC,Hull City Council,10/07/2020,8187673,840.00,CASE TRAINING SERVICES,01270193,Agency Day Care,Adults Social Care
HCC,Hull City Council,10/07/2020,8187674,540.00,CASE TRAINING SERVICES,01270193,Agency Day Care,Adults Social Care
HCC,Hull City Council,10/07/2020,8187675,300.00,CASE TRAINING SERVICES,01270193,Agency Day Care,Adults Social Care
HCC,Hull City Council,10/07/2020,8187676,240.00,CASE TRAINING SERVICES,01270193,Agency Day Care,Adults Social Care
HCC,Hull City Council,10/07/2020,8187677,840.00,CASE TRAINING SERVICES,01270193,Agency Day Care,Adults Social Care
HCC,Hull City Council,10/07/2020,8187678,"1,440.00",CASE TRAINING SERVICES,01270193,Agency Day Care,Adults Social Care
HCC,Hull City Council,10/07/2020,8187679,600.00,CASE TRAINING SERVICES,01270193,Agency Day Care,Adults Social Care
HCC,Hull City Council,10/07/2020,8187680,540.00,CASE TRAINING SERVICES,01270193,Agency Day Care,Adults Social Care
HCC,Hull City Council,10/07/2020,8187681,540.00,CASE TRAINING SERVICES,01270193,Agency Day Care,Adults Social Care
HCC,Hull City Council,10/07/2020,8187682,540.00,CASE TRAINING SERVICES,01270193,Agency Day Care,Adults Social Care
HCC,Hull City Council,10/07/2020,8187683,"1,140.00",CASE TRAINING SERVICES,01270193,Agency Day Care,Adults Social Care
HCC,Hull City Council,10/07/2020,8187684,"1,140.00",CASE TRAINING SERVICES,01270193,Agency Day Care,Adults Social Care
HCC,Hull City Council,10/07/2020,8187685,540.00,CASE TRAINING SERVICES,01270193,Agency Day Care,Adults Social Care
HCC,Hull City Council,10/07/2020,8187686,600.00,CASE TRAINING SERVICES,01270193,Agency Day Care,Adults Social Care
HCC,Hull City Council,10/07/2020,8187687,570.00,CASE TRAINING SERVICES,01270193,Agency Day Care,Adults Social Care
HCC,Hull City Council,10/07/2020,8187688,300.00,CASE TRAINING SERVICES,01270193,Agency Day Care,Adults Social Care
HCC,Hull City Council,10/07/2020,8187689,900.00,CASE TRAINING SERVICES,01270193,Agency Day Care,Adults Social Care
HCC,Hull City Council,10/07/2020,8187690,600.00,CASE TRAINING SERVICES,01270193,Agency Day Care,Adults Social Care
HCC,Hull City Council,10/07/2020,8187691,540.00,CASE TRAINING SERVICES,01270193,Agency Day Care,Adults Social Care
HCC,Hull City Council,10/07/2020,8187692,840.00,CASE TRAINING SERVICES,01270193,Agency Day Care,Adults Social Care
HCC,Hull City Council,10/07/2020,8187693,"1,140.00",CASE TRAINING SERVICES,01270193,Agency Day Care,Adults Social Care
HCC,Hull City Council,10/07/2020,8187694,840.00,CASE TRAINING SERVICES,01270193,Agency Day Care,Adults Social Care
HCC,Hull City Council,23/07/2020,8208556,540.00,CASE TRAINING SERVICES,01270193,Agency Day Care,Adults Social Care
HCC,Hull City Council,23/07/2020,8208482,"4,560.00",CASE TRAINING SERVICES,01270193,Post 16 Top Up Fund,Learning and Skills
HCC,Hull City Council,20/07/2020,8198656,4.49,CASH REGISTER SERVICES (HUMBS),01270194,Expenditure,Corporate Finance
HCC,Hull City Council,20/07/2020,8198660,11.70,CASH REGISTER SERVICES (HUMBS),01270194,Expenditure,Corporate Finance
HCC,Hull City Council,20/07/2020,8198661,11.70,CASH REGISTER SERVICES (HUMBS),01270194,Expenditure,Corporate Finance
HCC,Hull City Council,20/07/2020,8198662,7.20,CASH REGISTER SERVICES (HUMBS),01270194,Expenditure,Corporate Finance
HCC,Hull City Council,23/07/2020,8205635,29.14,CASPIAN GROUP LTD,01030033,Highways Operations,Street Scene Services
HCC,Hull City Council,20/07/2020,8200366,291.10,CATZERO LIMITED,10052474,CLLD ESF,Economic Development and Regeneration
HCC,Hull City Council,03/07/2020,8182128,"3,366.82",CBA SADOFSKYS LTD,10002087,ERDF - ICT,Economic Development and Regeneration
HCC,Hull City Council,29/07/2020,8220880,"1,836.73",CDW LTD,10020007,Enterprise Infrastructure,Digital & ICT
HCC,Hull City Council,16/07/2020,8198444,"37,179.71",CEDAR HOUSE SCHOOL,10134969,Independent Schools,Learning and Skills
HCC,Hull City Council,13/07/2020,8188122,"18,990.34",CEDARFOSS HOMES LTD,10088656,Agency Residential - Over 65,Adults Social Care
HCC,Hull City Council,13/07/2020,8188122,"-4,189.72",CEDARFOSS HOMES LTD,10088656,Agency Residential - Over 65,Adults Social Care
HCC,Hull City Council,13/07/2020,8188122,"12,678.74",CEDARFOSS HOMES LTD,10088656,Agency Residential - Under 65,Adults Social Care
HCC,Hull City Council,13/07/2020,8188122,"1,271.34",CEDARFOSS HOMES LTD,10088656,Agency Residential - Under 65,Adults Social Care
HCC,Hull City Council,24/07/2020,8216501,"4,524.00",CEDARFOSS HOMES LTD,10088656,Agency Day Care,Adults Social Care
HCC,Hull City Council,01/07/2020,8054096,"4,355.00",CELLAR SYSTEMS,01300217,IT Transformation Programme - Block Unallocated,CAPITAL
HCC,Hull City Council,01/07/2020,8054096,"1,395.00",CELLAR SYSTEMS,01300217,Unified Communications and Security,Digital & ICT
HCC,Hull City Council,07/07/2020,8184713,324.00,CELLMARK,10093829,Localities North - Team 1,Safeguarding
HCC,Hull City Council,13/07/2020,8188401,324.00,CELLMARK,10093829,Localities West - Team 1,Safeguarding
HCC,Hull City Council,09/07/2020,8185941,142.06,CELLOGLAS LTD,01313398,Printing,Town Clerks Service
HCC,Hull City Council,09/07/2020,8185936,298.11,CELLOGLAS LTD,01313398,Externally Commissioned Print,Town Clerks Service
HCC,Hull City Council,09/07/2020,8185937,-35.07,CELLOGLAS LTD,01313398,Externally Commissioned Print,Town Clerks Service
HCC,Hull City Council,14/07/2020,8190443,60.00,CELLOGLAS LTD,01313398,Externally Commissioned Print,Town Clerks Service
HCC,Hull City Council,14/07/2020,8190444,135.66,CELLOGLAS LTD,01313398,Externally Commissioned Print,Town Clerks Service
HCC,Hull City Council,09/07/2020,8186566,414.00,CENTRAL MANCHESTER UNIVERSITY HOSPITALS NHS FOUNDATION TRUST,10072190,CHCP - Sexual Health,Health and Wellbeing
HCC,Hull City Council,09/07/2020,8186568,-30.00,CENTRAL MANCHESTER UNIVERSITY HOSPITALS NHS FOUNDATION TRUST,10072190,CHCP - Sexual Health,Health and Wellbeing
HCC,Hull City Council,14/07/2020,8187908,184.11,CERIDIAN UK LTD,10051063,Digital Transformation,Digital & ICT
HCC,Hull City Council,15/07/2020,8196469,"436,502.33",CGL,10061885,Subs. Missuse Community,Health and Wellbeing
HCC,Hull City Council,15/07/2020,8196468,"12,500.00",CGL,10061885,Nicotine Replacement Therapy,Health and Wellbeing
HCC,Hull City Council,15/07/2020,8182115,"30,416.67",CGL,10061885,Smoking Cessation,Health and Wellbeing
HCC,Hull City Council,20/07/2020,8198485,"2,615.20",CHANNELS & CHOICES,10109220,Residential Agency,Safeguarding
HCC,Hull City Council,22/07/2020,8204103,"15,200.00",CHANNELS & CHOICES,10109220,Residential Agency,Safeguarding
HCC,Hull City Council,22/07/2020,8204104,"5,960.00",CHANNELS & CHOICES,10109220,Fostering Agency,Safeguarding
HCC,Hull City Council,22/07/2020,8205528,"1,575.00",CHEADLE ROYAL SCHOOL PRIORY,10113895,Independent Hospital Schools,Learning and Skills
HCC,Hull City Council,22/07/2020,8205529,"2,012.50",CHEADLE ROYAL SCHOOL PRIORY,10113895,Independent Hospital Schools,Learning and Skills
HCC,Hull City Council,29/07/2020,8220905,"1,087.80",CHERUB DAY NURSERIES LTD,01031587,Deprived 2 Year Olds EEF,Learning and Skills
HCC,Hull City Council,13/07/2020,8182556,785.00,CHILD AND FAMILY PLAY THERAPY LTD,10070459,Adoption - Regional Adoption Agency,Safeguarding
HCC,Hull City Council,02/07/2020,8182005,"4,500.00",CHILD DYNAMIX,10022822,Commissioning Budget (H&WB),City Safe & Early Intervention
HCC,Hull City Council,03/07/2020,8182133,830.00,CHILD DYNAMIX,10022822,Commissioning Budget (H&WB),City Safe & Early Intervention
HCC,Hull City Council,07/07/2020,8182595,"1,575.00",CHILD DYNAMIX,10022822,Commissioning Budget (H&WB),City Safe & Early Intervention
HCC,Hull City Council,07/07/2020,8183559,"53,550.00",CHILD DYNAMIX,10022822,Commissioning Budget (H&WB),City Safe & Early Intervention
HCC,Hull City Council,20/07/2020,8200325,400.00,CHILD DYNAMIX,10022822,Localities East - Team 4,Safeguarding
HCC,Hull City Council,01/07/2020,8167116,44.00,CHILD DYNAMIX,10022822,Under 8's West Locality,Safeguarding
HCC,Hull City Council,01/07/2020,8167119,44.00,CHILD DYNAMIX,10022822,Under 8's West Locality,Safeguarding
HCC,Hull City Council,01/07/2020,8167121,44.00,CHILD DYNAMIX,10022822,Under 8's West Locality,Safeguarding
HCC,Hull City Council,01/07/2020,8167124,44.00,CHILD DYNAMIX,10022822,Under 8's West Locality,Safeguarding
HCC,Hull City Council,01/07/2020,8167125,44.00,CHILD DYNAMIX,10022822,Under 8's West Locality,Safeguarding
HCC,Hull City Council,01/07/2020,8167129,44.00,CHILD DYNAMIX,10022822,Under 8's West Locality,Safeguarding
HCC,Hull City Council,01/07/2020,8167130,44.00,CHILD DYNAMIX,10022822,Under 8's West Locality,Safeguarding
HCC,Hull City Council,01/07/2020,8167131,44.00,CHILD DYNAMIX,10022822,Under 8's West Locality,Safeguarding
HCC,Hull City Council,01/07/2020,8167132,44.00,CHILD DYNAMIX,10022822,Under 8's West Locality,Safeguarding
HCC,Hull City Council,16/07/2020,8196520,8.40,CHILD DYNAMIX,10022822,Under 8's West Locality,Safeguarding
HCC,Hull City Council,16/07/2020,8196521,35.90,CHILD DYNAMIX,10022822,Under 8's West Locality,Safeguarding
HCC,Hull City Council,07/07/2020,8182581,432.90,CHILD DYNAMIX,10022822,Under 8's East Locality,Safeguarding
HCC,Hull City Council,07/07/2020,8182582,493.50,CHILD DYNAMIX,10022822,Under 8's East Locality,Safeguarding
HCC,Hull City Council,29/07/2020,8220952,"5,916.00",CHRISTOPHER PICKERING PRIMARY (ACADEMY),10086769,Schools Budget Contingency,Learning and Skills
HCC,Hull City Council,22/07/2020,8204121,"4,800.00",CHRYSALIS CONSORTIUM LIMITED,10112275,Fostering Agency,Safeguarding
HCC,Hull City Council,09/07/2020,8185893,369.23,CHUBB FIRE & SECURITY LTD,01031703,St.Andrew's C.E Primary School,Learning and Skills
HCC,Hull City Council,07/07/2020,7693191,"1,666.67",CIPD ENTERPRISES LTD,10003727,Humber LEP Core Costs,Humber Local Enterprise Partnership
HCC,Hull City Council,08/07/2020,8185820,350.00,CITY AND GUILDS,01030091,Vocational,City Safe & Early Intervention
HCC,Hull City Council,31/07/2020,8221435,135.00,CITY AND GUILDS,01030091,Training  - CYPs,Human Resources and Organisational Development
HCC,Hull City Council,09/07/2020,8186601,18.28,CITY CABS,01317498,Homelessness Preventative Fund,Neighbourhoods & Housing
HCC,Hull City Council,09/07/2020,8186603,36.23,CITY CABS,01317498,Homelessness Preventative Fund,Neighbourhoods & Housing
HCC,Hull City Council,09/07/2020,8186604,55.97,CITY CABS,01317498,Homelessness Preventative Fund,Neighbourhoods & Housing
HCC,Hull City Council,09/07/2020,8186606,92.17,CITY CABS,01317498,Homelessness Preventative Fund,Neighbourhoods & Housing
HCC,Hull City Council,09/07/2020,8186607,46.48,CITY CABS,01317498,Homelessness Preventative Fund,Neighbourhoods & Housing
HCC,Hull City Council,09/07/2020,8186601,22.02,CITY CABS,01317498,North Locality Pod 7,Safeguarding
HCC,Hull City Council,09/07/2020,8186603,43.63,CITY CABS,01317498,North Locality Pod 7,Safeguarding
HCC,Hull City Council,09/07/2020,8186604,67.40,CITY CABS,01317498,North Locality Pod 7,Safeguarding
HCC,Hull City Council,09/07/2020,8186606,110.98,CITY CABS,01317498,North Locality Pod 7,Safeguarding
HCC,Hull City Council,09/07/2020,8186607,55.97,CITY CABS,01317498,North Locality Pod 7,Safeguarding
HCC,Hull City Council,09/07/2020,8186601,14.25,CITY CABS,01317498,SECTION 17 - Disability Children & Families Team,Safeguarding
HCC,Hull City Council,09/07/2020,8186603,28.24,CITY CABS,01317498,SECTION 17 - Disability Children & Families Team,Safeguarding
HCC,Hull City Council,09/07/2020,8186604,43.63,CITY CABS,01317498,SECTION 17 - Disability Children & Families Team,Safeguarding
HCC,Hull City Council,09/07/2020,8186606,71.84,CITY CABS,01317498,SECTION 17 - Disability Children & Families Team,Safeguarding
HCC,Hull City Council,09/07/2020,8186607,36.23,CITY CABS,01317498,SECTION 17 - Disability Children & Families Team,Safeguarding
HCC,Hull City Council,09/07/2020,8186601,7.19,CITY CABS,01317498,"Transport - Other (CIN, CPP etc)",Safeguarding
HCC,Hull City Council,09/07/2020,8186603,14.25,CITY CABS,01317498,"Transport - Other (CIN, CPP etc)",Safeguarding
HCC,Hull City Council,09/07/2020,8186604,22.02,CITY CABS,01317498,"Transport - Other (CIN, CPP etc)",Safeguarding
HCC,Hull City Council,09/07/2020,8186606,36.25,CITY CABS,01317498,"Transport - Other (CIN, CPP etc)",Safeguarding
HCC,Hull City Council,09/07/2020,8186607,18.28,CITY CABS,01317498,"Transport - Other (CIN, CPP etc)",Safeguarding
HCC,Hull City Council,09/07/2020,8186601,36.26,CITY CABS,01317498,Transport - Looked After Children,Safeguarding
HCC,Hull City Council,09/07/2020,8186603,71.85,CITY CABS,01317498,Transport - Looked After Children,Safeguarding
HCC,Hull City Council,09/07/2020,8186604,110.98,CITY CABS,01317498,Transport - Looked After Children,Safeguarding
HCC,Hull City Council,09/07/2020,8186606,182.76,CITY CABS,01317498,Transport - Looked After Children,Safeguarding
HCC,Hull City Council,09/07/2020,8186607,92.18,CITY CABS,01317498,Transport - Looked After Children,Safeguarding
HCC,Hull City Council,16/07/2020,8198531,3.69,CITY ELECTRICAL FACTORS LTD,01030921,Bridges and Underpasses M&E,Street Scene Services
HCC,Hull City Council,16/07/2020,8198532,7.33,CITY ELECTRICAL FACTORS LTD,01030921,Bridges and Underpasses M&E,Street Scene Services
HCC,Hull City Council,16/07/2020,8198534,32.85,CITY ELECTRICAL FACTORS LTD,01030921,Bridges and Underpasses M&E,Street Scene Services
HCC,Hull City Council,16/07/2020,8198535,17.80,CITY ELECTRICAL FACTORS LTD,01030921,Bridges and Underpasses M&E,Street Scene Services
HCC,Hull City Council,16/07/2020,8198536,36.75,CITY ELECTRICAL FACTORS LTD,01030921,Bridges and Underpasses M&E,Street Scene Services
HCC,Hull City Council,16/07/2020,8198560,50.00,CITY ELECTRICAL FACTORS LTD,01030921,Bridges and Underpasses M&E,Street Scene Services
HCC,Hull City Council,16/07/2020,8198561,50.00,CITY ELECTRICAL FACTORS LTD,01030921,Bridges and Underpasses M&E,Street Scene Services
HCC,Hull City Council,17/07/2020,8198600,16.66,CITY ELECTRICAL FACTORS LTD,01030921,Bridges and Underpasses M&E,Street Scene Services
HCC,Hull City Council,23/07/2020,8205597,25.30,CITY ELECTRICAL FACTORS LTD,01030921,Bridges and Underpasses M&E,Street Scene Services
HCC,Hull City Council,07/07/2020,8182543,"27,083.33",CITY HEALTH CARE PARTNERSHIP CIC,10053746,BCF - End of Life,Adults Social Care
HCC,Hull City Council,02/07/2020,8182011,"493,333.33",CITY HEALTH CARE PARTNERSHIP CIC,10053746,0-5 Health Visiting Services,Health and Wellbeing
HCC,Hull City Council,02/07/2020,8182012,"31,250.00",CITY HEALTH CARE PARTNERSHIP CIC,10053746,0-5 Health Visiting Services,Health and Wellbeing
HCC,Hull City Council,02/07/2020,8182010,"200,000.00",CITY HEALTH CARE PARTNERSHIP CIC,10053746,CHCP - Sexual Health,Health and Wellbeing
HCC,Hull City Council,08/07/2020,8184842,"10,767.31",CITY HEALTH CARE PARTNERSHIP CIC,10053746,CHCP - Sexual Health,Health and Wellbeing
HCC,Hull City Council,08/07/2020,8184845,"8,287.20",CITY HEALTH CARE PARTNERSHIP CIC,10053746,CHCP - Sexual Health,Health and Wellbeing
HCC,Hull City Council,13/07/2020,8188126,"1,899.20",CITY HEALTHCARE LTD,10105540,Agency Residential - Over 65,Adults Social Care
HCC,Hull City Council,13/07/2020,8188126,"1,060.11",CITY HEALTHCARE LTD,10105540,Agency Residential - Over 65,Adults Social Care
HCC,Hull City Council,13/07/2020,8188126,"4,066.40",CITY HEALTHCARE LTD,10105540,Agency Residential - Under 65,Adults Social Care
HCC,Hull City Council,13/07/2020,8188126,-354.60,CITY HEALTHCARE LTD,10105540,Agency Residential - Under 65,Adults Social Care
HCC,Hull City Council,14/07/2020,8185887,50.00,CITY JUNK LTD,10119464,Management Fee HRA Areas,Neighbourhoods & Housing
HCC,Hull City Council,14/07/2020,8185886,771.99,CITY JUNK LTD,10119464,Management Fee - Estate Management,Neighbourhoods & Housing
HCC,Hull City Council,15/07/2020,8191525,"1,517.85",CIVICA ELECTION SERVICES LIMITED,01312907,Election Office,Town Clerks Service
HCC,Hull City Council,14/07/2020,8148604,"1,500.00",CIVICA UK LIMITED,10031726,Customer Enablement Programme,CAPITAL
HCC,Hull City Council,30/07/2020,8221122,"6,000.00",CIVICA UK LIMITED,10031726,Revenues & Benefits Client,Corporate Finance
HCC,Hull City Council,30/07/2020,8221124,462.82,CIVICA UK LIMITED,10031726,Revenues & Benefits Client,Corporate Finance
HCC,Hull City Council,30/07/2020,8221125,750.00,CIVICA UK LIMITED,10031726,Revenues & Benefits Client,Corporate Finance
HCC,Hull City Council,15/07/2020,8192447,"24,264.00",CIVICA UK LIMITED,10031726,Revenues & Benefits Contract,Corporate Finance
HCC,Hull City Council,23/07/2020,8205565,"473,745.12",CIVICA UK LIMITED,10031726,Revenues & Benefits Contract,Corporate Finance
HCC,Hull City Council,30/07/2020,8221126,"2,158.38",CIVICA UK LIMITED,10031726,Development and Operational Services,Digital & ICT
HCC,Hull City Council,09/07/2020,8136571,351.81,CLARION HOUSING ASSOCIATION,10057526,Homelessness Preventative Fund,Neighbourhoods & Housing
HCC,Hull City Council,29/07/2020,8220940,"12,800.00",CLEEVE PRIMARY (ACADEMY),10073465,Schools Budget Contingency,Learning and Skills
HCC,Hull City Council,20/07/2020,7962304,600.00,CLIENT MARKETING LTD,10137425,ERDF - Business Growth,Economic Development and Regeneration
HCC,Hull City Council,08/07/2020,8185818,"1,000.00",CLIENT MARKETING LTD,10137425,ERDF - Business Growth,Economic Development and Regeneration
HCC,Hull City Council,14/07/2020,8188443,"1,500.00",CLIENT MARKETING LTD,10137425,ERDF - Business Growth,Economic Development and Regeneration
HCC,Hull City Council,31/07/2020,8221340,24.59,COBUS LTD,01230622,Wansbeck Children's Home,Safeguarding
HCC,Hull City Council,31/07/2020,8221343,16.14,COBUS LTD,01230622,Kinloss Garth (RCC),Safeguarding
HCC,Hull City Council,31/07/2020,8221324,"119,547.76",COLAS LIMITED,01280074,Micro Surfacing Programme,CAPITAL
HCC,Hull City Council,13/07/2020,8188312,"59,208.69",COLAS SIAC LIMITED.,10139247,Stoneferry Road Corridor,CAPITAL
HCC,Hull City Council,27/07/2020,8217489,417.00,COMMUNITY ACCORD,10057564,SEN Statementing Costs,Learning and Skills
HCC,Hull City Council,27/07/2020,8217491,396.00,COMMUNITY ACCORD,10057564,SEN Statementing Costs,Learning and Skills
HCC,Hull City Council,27/07/2020,8217492,60.00,COMMUNITY ACCORD,10057564,SEN Statementing Costs,Learning and Skills
HCC,Hull City Council,27/07/2020,8217493,207.00,COMMUNITY ACCORD,10057564,SEN Statementing Costs,Learning and Skills
HCC,Hull City Council,27/07/2020,8217494,375.00,COMMUNITY ACCORD,10057564,SEN Statementing Costs,Learning and Skills
HCC,Hull City Council,02/07/2020,8169030,"4,557.61",COMMUNITY HEALTH PARTNERSHIPS,10078647,WILBERFORCE HEALTH CENTRE,Adults Social Care
HCC,Hull City Council,02/07/2020,8169031,"20,446.78",COMMUNITY HEALTH PARTNERSHIPS,10078647,WILBERFORCE HEALTH CENTRE,Adults Social Care
HCC,Hull City Council,06/07/2020,8182480,"20,446.78",COMMUNITY HEALTH PARTNERSHIPS,10078647,WILBERFORCE HEALTH CENTRE,Adults Social Care
HCC,Hull City Council,06/07/2020,8182481,"4,557.61",COMMUNITY HEALTH PARTNERSHIPS,10078647,WILBERFORCE HEALTH CENTRE,Adults Social Care
HCC,Hull City Council,13/07/2020,8188195,"2,095.80",COMMUNITY INTERGRATED CARE - OLDER PEOPLES SERVICE,10136952,Agency Residential - Over 65,Adults Social Care
HCC,Hull City Council,13/07/2020,8188195,"-1,121.76",COMMUNITY INTERGRATED CARE - OLDER PEOPLES SERVICE,10136952,Agency Residential - Over 65,Adults Social Care
HCC,Hull City Council,30/07/2020,8221136,"1,000.00",COMMUNITY TRIUMPH,10061022,Commissioning Budget (H&WB),City Safe & Early Intervention
HCC,Hull City Council,22/07/2020,8201660,59.95,COMPACT FOODS,10073110,Flavourz Guildhall Cafe,Property & Assets
HCC,Hull City Council,22/07/2020,8201663,45.96,COMPACT FOODS,10073110,Flavourz Guildhall Cafe,Property & Assets
HCC,Hull City Council,22/07/2020,8201665,85.66,COMPACT FOODS,10073110,Flavourz Guildhall Cafe,Property & Assets
HCC,Hull City Council,22/07/2020,8201667,60.93,COMPACT FOODS,10073110,Flavourz Guildhall Cafe,Property & Assets
HCC,Hull City Council,29/07/2020,8220925,"54,360.00",COMPASS ACADEMY,10059322,Schools Budget Contingency,Learning and Skills
HCC,Hull City Council,22/07/2020,8204127,"50,906.27",COMPASS FOSTERING NORTH LIMITED,10113467,Fostering Agency,Safeguarding
HCC,Hull City Council,08/07/2020,8134554,"12,564.97",COMPENDIUM REGENERATION LTD C/O LOVELL PARTNERSHIPS LTD,10110704,Childrens Homes Reprovision/New Build,CAPITAL
HCC,Hull City Council,14/07/2020,8188411,"38,640.72",COMPENDIUM REGENERATION LTD C/O LOVELL PARTNERSHIPS LTD,10110704,Childrens Homes Reprovision/New Build,CAPITAL
HCC,Hull City Council,20/07/2020,8195450,165.00,COMPLETE BUSINESS SOLUTIONS LIMITED,10065046,HR Advisory Team,Human Resources and Organisational Development
HCC,Hull City Council,28/07/2020,8205520,"24,996.18",COMPLETE WEED CONTROL,10000024,S3- Environmental Services,Street Scene Services
HCC,Hull City Council,20/07/2020,8200338,69.40,CONCEPT PRESENTATION SOLUTIONS LTD,01310585,Central Training,Human Resources and Organisational Development
HCC,Hull City Council,08/07/2020,8184808,264.72,CONFIDENTIAL,10045304,Adoption - Post Order Support Team,Safeguarding
HCC,Hull City Council,22/07/2020,8201644,264.72,CONFIDENTIAL,10045304,Adoption - Post Order Support Team,Safeguarding
HCC,Hull City Council,22/07/2020,8203956,"16,800.00",CONTINUUM SUPPORT LTD,10082268,Residential Agency,Safeguarding
HCC,Hull City Council,10/07/2020,8185964,"5,777.10",CONTINUUM SUPPORT LTD,10082268,16+ Supported Tenancy Accommodation,Safeguarding
HCC,Hull City Council,10/07/2020,8185990,"4,814.25",CONTINUUM SUPPORT LTD,10082268,16+ Supported Tenancy Accommodation,Safeguarding
HCC,Hull City Council,15/07/2020,8050854,522.05,CORAM VOICE,10075743,Care Leavers,Safeguarding
HCC,Hull City Council,01/07/2020,8166018,20.00,CORELOGIC UK,10131089,Hull Warm Homes,CAPITAL
HCC,Hull City Council,16/07/2020,8198487,20.00,CORELOGIC UK,10131089,Hull Warm Homes,CAPITAL
HCC,Hull City Council,28/07/2020,8218659,300.00,CORNERHOUSE (YORKSHIRE),01010971,Commissioning Budget (H&WB),City Safe & Early Intervention
HCC,Hull City Council,22/07/2020,8203591,"6,440.00",CORNERSTONE (NORTH EAST) ADOPTION & FOSTERING SERVICE,10020594,Fostering Agency,Safeguarding
HCC,Hull City Council,09/07/2020,8185898,84.74,CORONA ENERGY,10061258,St.Andrew's C.E Primary School,Learning and Skills
HCC,Hull City Council,16/07/2020,8168993,38.83,CORONA ENERGY,10061258,Sheltered Housing,Neighbourhoods & Housing
HCC,Hull City Council,16/07/2020,8168996,553.83,CORONA ENERGY,10061258,Sheltered Housing,Neighbourhoods & Housing
HCC,Hull City Council,16/07/2020,8179945,"1,255.30",CORONA ENERGY,10061258,Sheltered Housing,Neighbourhoods & Housing
HCC,Hull City Council,16/07/2020,8180952,790.61,CORONA ENERGY,10061258,Sheltered Housing,Neighbourhoods & Housing
HCC,Hull City Council,16/07/2020,8181961,751.13,CORONA ENERGY,10061258,Sheltered Housing,Neighbourhoods & Housing
HCC,Hull City Council,16/07/2020,8181962,350.32,CORONA ENERGY,10061258,Sheltered Housing,Neighbourhoods & Housing
HCC,Hull City Council,16/07/2020,8181963,18.48,CORONA ENERGY,10061258,Sheltered Housing,Neighbourhoods & Housing
HCC,Hull City Council,16/07/2020,8181964,53.09,CORONA ENERGY,10061258,Sheltered Housing,Neighbourhoods & Housing
HCC,Hull City Council,16/07/2020,8181967,22.11,CORONA ENERGY,10061258,Sheltered Housing,Neighbourhoods & Housing
HCC,Hull City Council,16/07/2020,8181969,774.07,CORONA ENERGY,10061258,Sheltered Housing,Neighbourhoods & Housing
HCC,Hull City Council,16/07/2020,8181976,101.70,CORONA ENERGY,10061258,Sheltered Housing,Neighbourhoods & Housing
HCC,Hull City Council,16/07/2020,8181977,44.42,CORONA ENERGY,10061258,Sheltered Housing,Neighbourhoods & Housing
HCC,Hull City Council,16/07/2020,8181979,42.94,CORONA ENERGY,10061258,Sheltered Housing,Neighbourhoods & Housing
HCC,Hull City Council,16/07/2020,8168994,531.56,CORONA ENERGY,10061258,Communal Areas,Neighbourhoods & Housing
HCC,Hull City Council,16/07/2020,8168997,"1,935.38",CORONA ENERGY,10061258,Communal Areas,Neighbourhoods & Housing
HCC,Hull City Council,16/07/2020,8179944,"1,948.47",CORONA ENERGY,10061258,Communal Areas,Neighbourhoods & Housing
HCC,Hull City Council,16/07/2020,8180944,831.30,CORONA ENERGY,10061258,Communal Areas,Neighbourhoods & Housing
HCC,Hull City Council,16/07/2020,8180945,29.03,CORONA ENERGY,10061258,Communal Areas,Neighbourhoods & Housing
HCC,Hull City Council,16/07/2020,8180948,"2,001.71",CORONA ENERGY,10061258,Communal Areas,Neighbourhoods & Housing
HCC,Hull City Council,16/07/2020,8181973,"1,155.18",CORONA ENERGY,10061258,Communal Areas,Neighbourhoods & Housing
HCC,Hull City Council,16/07/2020,8168989,102.84,CORONA ENERGY,10061258,Learning Disability Houses,Neighbourhoods & Housing
HCC,Hull City Council,16/07/2020,8168991,44.01,CORONA ENERGY,10061258,Learning Disability Houses,Neighbourhoods & Housing
HCC,Hull City Council,16/07/2020,8181972,45.70,CORONA ENERGY,10061258,Learning Disability Houses,Neighbourhoods & Housing
HCC,Hull City Council,16/07/2020,8168998,35.33,CORONA ENERGY,10061258,Energy,Property & Assets
HCC,Hull City Council,16/07/2020,8180946,143.38,CORONA ENERGY,10061258,Energy,Property & Assets
HCC,Hull City Council,16/07/2020,8181966,158.56,CORONA ENERGY,10061258,Energy,Property & Assets
HCC,Hull City Council,16/07/2020,8181970,53.82,CORONA ENERGY,10061258,Energy,Property & Assets
HCC,Hull City Council,16/07/2020,8181974,198.57,CORONA ENERGY,10061258,Energy,Property & Assets
HCC,Hull City Council,31/07/2020,8221396,583.00,COTTINGHAM CROXBY PRIMARY SCHOOL,01332964,HN Payments to other LAs,Learning and Skills
HCC,Hull City Council,03/07/2020,8182140,584.00,COTTINGHAM HIGH SCHOOL AND SIXTH FORM COLLEGE,10069410,Virtual School for LAC,Learning and Skills
HCC,Hull City Council,31/07/2020,8221412,"1,250.00",COTTINGHAM HIGH SCHOOL AND SIXTH FORM COLLEGE,10069410,HN Payments to other LAs,Learning and Skills
HCC,Hull City Council,13/07/2020,8188083,"48,628.11",COUNTRY COURT RESIDENTIAL HOME,01030938,Agency Residential - Over 65,Adults Social Care
HCC,Hull City Council,13/07/2020,8188083,"-15,881.90",COUNTRY COURT RESIDENTIAL HOME,01030938,Agency Residential - Over 65,Adults Social Care
HCC,Hull City Council,13/07/2020,8188083,"2,033.20",COUNTRY COURT RESIDENTIAL HOME,01030938,Agency Residential - Under 65,Adults Social Care
HCC,Hull City Council,13/07/2020,8188182,"2,604.00",COUNTRYWIDE CARE HOMES LTD,10129154,Agency Nursing Under 65,Adults Social Care
HCC,Hull City Council,02/07/2020,8169017,22.44,COUNTRYWISE WATER COOLERS LTD,01030873,Financial Assurance,Corporate Finance
HCC,Hull City Council,02/07/2020,8168946,18.46,COUNTRYWISE WATER COOLERS LTD,01030873,TPC - Manager,Corporate Finance
HCC,Hull City Council,03/07/2020,8182180,22.44,COUNTRYWISE WATER COOLERS LTD,01030873,Debt Management - Banking,Corporate Finance
HCC,Hull City Council,29/07/2020,8220941,"12,643.00",CRAVEN PRIMARY (ACADEMY),10073977,Schools Budget Contingency,Learning and Skills
HCC,Hull City Council,23/07/2020,8208631,"1,125.00",CREATIVE DAY SERVICES LTD,10088886,Agency Day Care,Adults Social Care
HCC,Hull City Council,23/07/2020,8208632,450.00,CREATIVE DAY SERVICES LTD,10088886,Agency Day Care,Adults Social Care
HCC,Hull City Council,23/07/2020,8208633,675.00,CREATIVE DAY SERVICES LTD,10088886,Agency Day Care,Adults Social Care
HCC,Hull City Council,23/07/2020,8208634,900.00,CREATIVE DAY SERVICES LTD,10088886,Agency Day Care,Adults Social Care
HCC,Hull City Council,23/07/2020,8208635,225.00,CREATIVE DAY SERVICES LTD,10088886,Agency Day Care,Adults Social Care
HCC,Hull City Council,23/07/2020,8208636,675.00,CREATIVE DAY SERVICES LTD,10088886,Agency Day Care,Adults Social Care
HCC,Hull City Council,23/07/2020,8208637,450.00,CREATIVE DAY SERVICES LTD,10088886,Agency Day Care,Adults Social Care
HCC,Hull City Council,23/07/2020,8208638,675.00,CREATIVE DAY SERVICES LTD,10088886,Agency Day Care,Adults Social Care
HCC,Hull City Council,23/07/2020,8208639,450.00,CREATIVE DAY SERVICES LTD,10088886,Agency Day Care,Adults Social Care
HCC,Hull City Council,23/07/2020,8208640,225.00,CREATIVE DAY SERVICES LTD,10088886,Agency Day Care,Adults Social Care
HCC,Hull City Council,23/07/2020,8208641,"1,125.00",CREATIVE DAY SERVICES LTD,10088886,Agency Day Care,Adults Social Care
HCC,Hull City Council,23/07/2020,8208642,450.00,CREATIVE DAY SERVICES LTD,10088886,Agency Day Care,Adults Social Care
HCC,Hull City Council,23/07/2020,8208643,675.00,CREATIVE DAY SERVICES LTD,10088886,Agency Day Care,Adults Social Care
HCC,Hull City Council,23/07/2020,8208644,450.00,CREATIVE DAY SERVICES LTD,10088886,Agency Day Care,Adults Social Care
HCC,Hull City Council,23/07/2020,8208645,225.00,CREATIVE DAY SERVICES LTD,10088886,Agency Day Care,Adults Social Care
HCC,Hull City Council,23/07/2020,8208646,900.00,CREATIVE DAY SERVICES LTD,10088886,Agency Day Care,Adults Social Care
HCC,Hull City Council,23/07/2020,8208647,450.00,CREATIVE DAY SERVICES LTD,10088886,Agency Day Care,Adults Social Care
HCC,Hull City Council,23/07/2020,8208648,675.00,CREATIVE DAY SERVICES LTD,10088886,Agency Day Care,Adults Social Care
HCC,Hull City Council,23/07/2020,8208649,"1,125.00",CREATIVE DAY SERVICES LTD,10088886,Agency Day Care,Adults Social Care
HCC,Hull City Council,23/07/2020,8208650,450.00,CREATIVE DAY SERVICES LTD,10088886,Agency Day Care,Adults Social Care
HCC,Hull City Council,23/07/2020,8208651,450.00,CREATIVE DAY SERVICES LTD,10088886,Agency Day Care,Adults Social Care
HCC,Hull City Council,23/07/2020,8208652,900.00,CREATIVE DAY SERVICES LTD,10088886,Agency Day Care,Adults Social Care
HCC,Hull City Council,23/07/2020,8208653,675.00,CREATIVE DAY SERVICES LTD,10088886,Agency Day Care,Adults Social Care
HCC,Hull City Council,23/07/2020,8208654,"1,125.00",CREATIVE DAY SERVICES LTD,10088886,Agency Day Care,Adults Social Care
HCC,Hull City Council,01/07/2020,8167011,462.08,CROMWELL POLYTHENE LTD,10058397,Waste Development & Recycling,Street Scene Services
HCC,Hull City Council,01/07/2020,8167112,"4,669.44",CROMWELL POLYTHENE LTD,10058397,Waste Development & Recycling,Street Scene Services
HCC,Hull City Council,13/07/2020,8188036,"3,842.20",CROWN CARE GROUP,10112941,Agency Residential - Over 65,Adults Social Care
HCC,Hull City Council,31/07/2020,8221339,184.00,CRYSTAL SURFACE HULL,10100560,Expenditure,Corporate Finance
HCC,Hull City Council,31/07/2020,8221356,247.90,CSL (COMMUNICATIONS) LTD,10002507,Security,Street Scene Services
HCC,Hull City Council,24/07/2020,8205492,52.45,REDACTED,REDACTED,Computer Refunds,Corporate Finance
HCC,Hull City Council,28/07/2020,8217501,24.85,REDACTED,REDACTED,Computer Refunds,Corporate Finance
HCC,Hull City Council,10/07/2020,8185827,166.98,REDACTED,REDACTED,Computer Refunds,Corporate Finance
HCC,Hull City Council,03/07/2020,8168947,37.81,REDACTED,REDACTED,Computer Refunds,Corporate Finance
HCC,Hull City Council,07/07/2020,8182192,44.87,REDACTED,REDACTED,Computer Refunds,Corporate Finance
HCC,Hull City Council,03/07/2020,8168972,"1,053.56",REDACTED,REDACTED,Computer Refunds,Corporate Finance
HCC,Hull City Council,14/07/2020,8187883,83.88,REDACTED,REDACTED,Computer Refunds,Corporate Finance
HCC,Hull City Council,10/07/2020,8185841,115.93,REDACTED,REDACTED,Computer Refunds,Corporate Finance
HCC,Hull City Council,03/07/2020,8168970,14.11,REDACTED,REDACTED,Computer Refunds,Corporate Finance
HCC,Hull City Council,10/07/2020,8185839,608.47,REDACTED,REDACTED,Computer Refunds,Corporate Finance
HCC,Hull City Council,28/07/2020,8217517,25.86,REDACTED,REDACTED,Computer Refunds,Corporate Finance
HCC,Hull City Council,28/07/2020,8217515,298.13,REDACTED,REDACTED,Computer Refunds,Corporate Finance
HCC,Hull City Council,07/07/2020,8182203,218.77,REDACTED,REDACTED,Computer Refunds,Corporate Finance
HCC,Hull City Council,14/07/2020,8187896,140.34,REDACTED,REDACTED,Computer Refunds,Corporate Finance
HCC,Hull City Council,15/07/2020,8195478,146.19,REDACTED,REDACTED,Computer Refunds,Corporate Finance
HCC,Hull City Council,21/07/2020,8198721,163.16,REDACTED,REDACTED,Computer Refunds,Corporate Finance
HCC,Hull City Council,24/07/2020,8205515,50.72,REDACTED,REDACTED,Computer Refunds,Corporate Finance
HCC,Hull City Council,28/07/2020,8217516,241.85,REDACTED,REDACTED,Computer Refunds,Corporate Finance
HCC,Hull City Council,03/07/2020,8168971,298.55,REDACTED,REDACTED,Computer Refunds,Corporate Finance
HCC,Hull City Council,10/07/2020,8185840,22.60,REDACTED,REDACTED,Computer Refunds,Corporate Finance
HCC,Hull City Council,14/07/2020,8187894,141.88,REDACTED,REDACTED,Computer Refunds,Corporate Finance
HCC,Hull City Council,24/07/2020,8205513,162.71,REDACTED,REDACTED,Computer Refunds,Corporate Finance
HCC,Hull City Council,03/07/2020,8168968,284.02,REDACTED,REDACTED,Computer Refunds,Corporate Finance
HCC,Hull City Council,14/07/2020,8187895,141.66,REDACTED,REDACTED,Computer Refunds,Corporate Finance
HCC,Hull City Council,21/07/2020,8198748,563.29,REDACTED,REDACTED,Computer Refunds,Corporate Finance
HCC,Hull City Council,24/07/2020,8205514,7.37,REDACTED,REDACTED,Computer Refunds,Corporate Finance
HCC,Hull City Council,10/07/2020,8185837,190.65,REDACTED,REDACTED,Computer Refunds,Corporate Finance
HCC,Hull City Council,28/07/2020,8217513,"1,131.93",REDACTED,REDACTED,Computer Refunds,Corporate Finance
HCC,Hull City Council,10/07/2020,8185838,114.02,REDACTED,REDACTED,Computer Refunds,Corporate Finance
HCC,Hull City Council,21/07/2020,8198746,525.16,REDACTED,REDACTED,Computer Refunds,Corporate Finance
HCC,Hull City Council,24/07/2020,8048212,150.00,REDACTED,REDACTED,Computer Refunds,Corporate Finance
HCC,Hull City Council,03/07/2020,8168969,173.90,REDACTED,REDACTED,Computer Refunds,Corporate Finance
HCC,Hull City Council,03/07/2020,8168966,307.80,REDACTED,REDACTED,Computer Refunds,Corporate Finance
HCC,Hull City Council,21/07/2020,8198747,"1,697.83",REDACTED,REDACTED,Computer Refunds,Corporate Finance
HCC,Hull City Council,21/07/2020,8198744,179.86,REDACTED,REDACTED,Computer Refunds,Corporate Finance
HCC,Hull City Council,24/07/2020,8205511,629.73,REDACTED,REDACTED,Computer Refunds,Corporate Finance
HCC,Hull City Council,24/07/2020,8205512,44.26,REDACTED,REDACTED,Computer Refunds,Corporate Finance
HCC,Hull City Council,24/07/2020,8205509,121.65,REDACTED,REDACTED,Computer Refunds,Corporate Finance
HCC,Hull City Council,07/07/2020,8182201,57.81,REDACTED,REDACTED,Computer Refunds,Corporate Finance
HCC,Hull City Council,15/07/2020,8195501,38.60,REDACTED,REDACTED,Computer Refunds,Corporate Finance
HCC,Hull City Council,28/07/2020,8217514,24.08,REDACTED,REDACTED,Computer Refunds,Corporate Finance
HCC,Hull City Council,28/07/2020,8217511,23.75,REDACTED,REDACTED,Computer Refunds,Corporate Finance
HCC,Hull City Council,10/07/2020,8185835,56.03,REDACTED,REDACTED,Computer Refunds,Corporate Finance
HCC,Hull City Council,15/07/2020,8195499,93.63,REDACTED,REDACTED,Computer Refunds,Corporate Finance
HCC,Hull City Council,24/07/2020,8205510,55.41,REDACTED,REDACTED,Computer Refunds,Corporate Finance
HCC,Hull City Council,14/07/2020,8187892,57.36,REDACTED,REDACTED,Computer Refunds,Corporate Finance
HCC,Hull City Council,07/07/2020,8048104,70.86,REDACTED,REDACTED,Computer Refunds,Corporate Finance
HCC,Hull City Council,31/07/2020,8221156,181.39,REDACTED,REDACTED,Computer Refunds,Corporate Finance
HCC,Hull City Council,10/07/2020,8185836,15.73,REDACTED,REDACTED,Computer Refunds,Corporate Finance
HCC,Hull City Council,21/07/2020,8055933,96.58,REDACTED,REDACTED,Computer Refunds,Corporate Finance
HCC,Hull City Council,21/07/2020,8198745,28.00,REDACTED,REDACTED,Computer Refunds,Corporate Finance
HCC,Hull City Council,21/07/2020,8055921,29.95,REDACTED,REDACTED,Computer Refunds,Corporate Finance
HCC,Hull City Council,28/07/2020,8217512,59.95,REDACTED,REDACTED,Computer Refunds,Corporate Finance
HCC,Hull City Council,28/07/2020,8217509,27.53,REDACTED,REDACTED,Computer Refunds,Corporate Finance
HCC,Hull City Council,24/07/2020,8205507,367.10,REDACTED,REDACTED,Computer Refunds,Corporate Finance
HCC,Hull City Council,21/07/2020,8198742,20.40,REDACTED,REDACTED,Computer Refunds,Corporate Finance
HCC,Hull City Council,03/07/2020,8168967,6.80,REDACTED,REDACTED,Computer Refunds,Corporate Finance
HCC,Hull City Council,21/07/2020,8198743,318.94,REDACTED,REDACTED,Computer Refunds,Corporate Finance
HCC,Hull City Council,21/07/2020,8198740,226.89,REDACTED,REDACTED,Computer Refunds,Corporate Finance
HCC,Hull City Council,31/07/2020,8221170,348.55,REDACTED,REDACTED,Computer Refunds,Corporate Finance
HCC,Hull City Council,15/07/2020,8195500,175.21,REDACTED,REDACTED,Computer Refunds,Corporate Finance
HCC,Hull City Council,14/07/2020,8187893,233.53,REDACTED,REDACTED,Computer Refunds,Corporate Finance
HCC,Hull City Council,31/07/2020,8221168,9.96,REDACTED,REDACTED,Computer Refunds,Corporate Finance
HCC,Hull City Council,21/07/2020,8048009,112.52,REDACTED,REDACTED,Computer Refunds,Corporate Finance
HCC,Hull City Council,21/07/2020,8159680,47.69,REDACTED,REDACTED,Computer Refunds,Corporate Finance
HCC,Hull City Council,10/07/2020,8185833,46.79,REDACTED,REDACTED,Computer Refunds,Corporate Finance
HCC,Hull City Council,15/07/2020,8195497,67.54,REDACTED,REDACTED,Computer Refunds,Corporate Finance
HCC,Hull City Council,21/07/2020,8198741,39.08,REDACTED,REDACTED,Computer Refunds,Corporate Finance
HCC,Hull City Council,14/07/2020,8168964,65.33,REDACTED,REDACTED,Computer Refunds,Corporate Finance
HCC,Hull City Council,24/07/2020,8205508,102.04,REDACTED,REDACTED,Computer Refunds,Corporate Finance
HCC,Hull City Council,03/07/2020,8168965,70.39,REDACTED,REDACTED,Computer Refunds,Corporate Finance
HCC,Hull City Council,28/07/2020,8217510,307.11,REDACTED,REDACTED,Computer Refunds,Corporate Finance
HCC,Hull City Council,03/07/2020,8168962,103.72,REDACTED,REDACTED,Computer Refunds,Corporate Finance
HCC,Hull City Council,21/07/2020,8198738,180.12,REDACTED,REDACTED,Computer Refunds,Corporate Finance
HCC,Hull City Council,21/07/2020,8198739,123.29,REDACTED,REDACTED,Computer Refunds,Corporate Finance
HCC,Hull City Council,21/07/2020,8138892,115.34,REDACTED,REDACTED,Computer Refunds,Corporate Finance
HCC,Hull City Council,10/07/2020,8185834,109.40,REDACTED,REDACTED,Computer Refunds,Corporate Finance
HCC,Hull City Council,24/07/2020,8205505,130.69,REDACTED,REDACTED,Computer Refunds,Corporate Finance
HCC,Hull City Council,14/07/2020,8187890,207.01,REDACTED,REDACTED,Computer Refunds,Corporate Finance
HCC,Hull City Council,24/07/2020,8205506,62.92,REDACTED,REDACTED,Computer Refunds,Corporate Finance
HCC,Hull City Council,21/07/2020,8198736,75.11,REDACTED,REDACTED,Computer Refunds,Corporate Finance
HCC,Hull City Council,21/07/2020,8198737,150.59,REDACTED,REDACTED,Computer Refunds,Corporate Finance
HCC,Hull City Council,28/07/2020,8217507,61.07,REDACTED,REDACTED,Computer Refunds,Corporate Finance
HCC,Hull City Council,21/07/2020,8198734,369.51,REDACTED,REDACTED,Computer Refunds,Corporate Finance
HCC,Hull City Council,15/07/2020,8195498,74.68,REDACTED,REDACTED,Computer Refunds,Corporate Finance
HCC,Hull City Council,21/07/2020,8055683,81.81,REDACTED,REDACTED,Computer Refunds,Corporate Finance
HCC,Hull City Council,31/07/2020,8221169,186.15,REDACTED,REDACTED,Computer Refunds,Corporate Finance
HCC,Hull City Council,03/07/2020,8168963,"4,619.04",REDACTED,REDACTED,Computer Refunds,Corporate Finance
HCC,Hull City Council,21/07/2020,8198735,24.08,REDACTED,REDACTED,Computer Refunds,Corporate Finance
HCC,Hull City Council,10/07/2020,8185831,44.51,REDACTED,REDACTED,Computer Refunds,Corporate Finance
HCC,Hull City Council,31/07/2020,8221166,36.77,REDACTED,REDACTED,Computer Refunds,Corporate Finance
HCC,Hull City Council,03/07/2020,8168960,95.41,REDACTED,REDACTED,Computer Refunds,Corporate Finance
HCC,Hull City Council,03/07/2020,8168961,97.36,REDACTED,REDACTED,Computer Refunds,Corporate Finance
HCC,Hull City Council,10/07/2020,8185832,59.21,REDACTED,REDACTED,Computer Refunds,Corporate Finance
HCC,Hull City Council,31/07/2020,8221167,82.20,REDACTED,REDACTED,Computer Refunds,Corporate Finance
HCC,Hull City Council,07/07/2020,8055529,115.73,REDACTED,REDACTED,Computer Refunds,Corporate Finance
HCC,Hull City Council,24/07/2020,8205503,80.00,REDACTED,REDACTED,Computer Refunds,Corporate Finance
HCC,Hull City Council,14/07/2020,8047963,102.89,REDACTED,REDACTED,Computer Refunds,Corporate Finance
HCC,Hull City Council,15/07/2020,8195495,33.00,REDACTED,REDACTED,Computer Refunds,Corporate Finance
HCC,Hull City Council,21/07/2020,8047964,646.22,REDACTED,REDACTED,Computer Refunds,Corporate Finance
HCC,Hull City Council,24/07/2020,8205504,63.24,REDACTED,REDACTED,Computer Refunds,Corporate Finance
HCC,Hull City Council,28/07/2020,8217508,990.44,REDACTED,REDACTED,Computer Refunds,Corporate Finance
HCC,Hull City Council,07/07/2020,8070316,32.05,REDACTED,REDACTED,Computer Refunds,Corporate Finance
HCC,Hull City Council,14/07/2020,8187891,"1,785.11",REDACTED,REDACTED,Computer Refunds,Corporate Finance
HCC,Hull City Council,24/07/2020,8205501,73.90,REDACTED,REDACTED,Computer Refunds,Corporate Finance
HCC,Hull City Council,03/07/2020,8168958,59.21,REDACTED,REDACTED,Computer Refunds,Corporate Finance
HCC,Hull City Council,31/07/2020,8221164,37.18,REDACTED,REDACTED,Computer Refunds,Corporate Finance
HCC,Hull City Council,21/07/2020,8055475,150.00,REDACTED,REDACTED,Computer Refunds,Corporate Finance
HCC,Hull City Council,15/07/2020,8195496,156.13,REDACTED,REDACTED,Computer Refunds,Corporate Finance
HCC,Hull City Council,03/07/2020,8168959,229.21,REDACTED,REDACTED,Computer Refunds,Corporate Finance
HCC,Hull City Council,28/07/2020,8217505,261.48,REDACTED,REDACTED,Computer Refunds,Corporate Finance
HCC,Hull City Council,03/07/2020,8168956,81.46,REDACTED,REDACTED,Computer Refunds,Corporate Finance
HCC,Hull City Council,03/07/2020,8168957,162.00,REDACTED,REDACTED,Computer Refunds,Corporate Finance
HCC,Hull City Council,24/07/2020,8205502,25.88,REDACTED,REDACTED,Computer Refunds,Corporate Finance
HCC,Hull City Council,14/07/2020,8187888,43.31,REDACTED,REDACTED,Computer Refunds,Corporate Finance
HCC,Hull City Council,15/07/2020,8195493,30.59,REDACTED,REDACTED,Computer Refunds,Corporate Finance
HCC,Hull City Council,14/07/2020,8187889,7.03,REDACTED,REDACTED,Computer Refunds,Corporate Finance
HCC,Hull City Council,03/07/2020,8168954,38.25,REDACTED,REDACTED,Computer Refunds,Corporate Finance
HCC,Hull City Council,14/07/2020,8187886,15.30,REDACTED,REDACTED,Computer Refunds,Corporate Finance
HCC,Hull City Council,14/07/2020,8187887,17.92,REDACTED,REDACTED,Computer Refunds,Corporate Finance
HCC,Hull City Council,21/07/2020,8198732,57.67,REDACTED,REDACTED,Computer Refunds,Corporate Finance
HCC,Hull City Council,28/07/2020,8217506,97.98,REDACTED,REDACTED,Computer Refunds,Corporate Finance
HCC,Hull City Council,24/07/2020,8205499,"3,717.44",REDACTED,REDACTED,Computer Refunds,Corporate Finance
HCC,Hull City Council,15/07/2020,8195494,141.00,REDACTED,REDACTED,Computer Refunds,Corporate Finance
HCC,Hull City Council,10/07/2020,8185829,84.80,REDACTED,REDACTED,Computer Refunds,Corporate Finance
HCC,Hull City Council,15/07/2020,8195491,21.00,REDACTED,REDACTED,Computer Refunds,Corporate Finance
HCC,Hull City Council,24/07/2020,8205500,71.40,REDACTED,REDACTED,Computer Refunds,Corporate Finance
HCC,Hull City Council,14/07/2020,8047947,65.07,REDACTED,REDACTED,Computer Refunds,Corporate Finance
HCC,Hull City Council,10/07/2020,8185830,13.00,REDACTED,REDACTED,Computer Refunds,Corporate Finance
HCC,Hull City Council,07/07/2020,8047948,73.94,REDACTED,REDACTED,Computer Refunds,Corporate Finance
HCC,Hull City Council,07/07/2020,8182202,28.51,REDACTED,REDACTED,Computer Refunds,Corporate Finance
HCC,Hull City Council,07/07/2020,8182199,154.87,REDACTED,REDACTED,Computer Refunds,Corporate Finance
HCC,Hull City Council,03/07/2020,8168955,87.82,REDACTED,REDACTED,Computer Refunds,Corporate Finance
HCC,Hull City Council,28/07/2020,8217503,75.92,REDACTED,REDACTED,Computer Refunds,Corporate Finance
HCC,Hull City Council,31/07/2020,8221165,30.59,REDACTED,REDACTED,Computer Refunds,Corporate Finance
HCC,Hull City Council,21/07/2020,8198733,160.00,REDACTED,REDACTED,Computer Refunds,Corporate Finance
HCC,Hull City Council,10/07/2020,8185828,167.86,REDACTED,REDACTED,Computer Refunds,Corporate Finance
HCC,Hull City Council,03/07/2020,8168952,74.96,REDACTED,REDACTED,Computer Refunds,Corporate Finance
HCC,Hull City Council,07/07/2020,8182200,339.55,REDACTED,REDACTED,Computer Refunds,Corporate Finance
HCC,Hull City Council,21/07/2020,8198730,29.06,REDACTED,REDACTED,Computer Refunds,Corporate Finance
HCC,Hull City Council,15/07/2020,8195492,122.80,REDACTED,REDACTED,Computer Refunds,Corporate Finance
HCC,Hull City Council,21/07/2020,8198731,232.45,REDACTED,REDACTED,Computer Refunds,Corporate Finance
HCC,Hull City Council,28/07/2020,8217504,62.44,REDACTED,REDACTED,Computer Refunds,Corporate Finance
HCC,Hull City Council,28/07/2020,8217502,207.10,REDACTED,REDACTED,Computer Refunds,Corporate Finance
HCC,Hull City Council,31/07/2020,8221162,248.12,REDACTED,REDACTED,Computer Refunds,Corporate Finance
HCC,Hull City Council,15/07/2020,8195489,438.78,REDACTED,REDACTED,Computer Refunds,Corporate Finance
HCC,Hull City Council,07/07/2020,8070253,64.81,REDACTED,REDACTED,Computer Refunds,Corporate Finance
HCC,Hull City Council,21/07/2020,8055178,150.00,REDACTED,REDACTED,Computer Refunds,Corporate Finance
HCC,Hull City Council,15/07/2020,8195490,784.21,REDACTED,REDACTED,Computer Refunds,Corporate Finance
HCC,Hull City Council,03/07/2020,8168953,569.41,REDACTED,REDACTED,Computer Refunds,Corporate Finance
HCC,Hull City Council,15/07/2020,8195487,87.85,REDACTED,REDACTED,Computer Refunds,Corporate Finance
HCC,Hull City Council,21/07/2020,8055189,150.00,REDACTED,REDACTED,Computer Refunds,Corporate Finance
HCC,Hull City Council,07/07/2020,8182197,104.00,REDACTED,REDACTED,Computer Refunds,Corporate Finance
HCC,Hull City Council,21/07/2020,8198728,22.90,REDACTED,REDACTED,Computer Refunds,Corporate Finance
HCC,Hull City Council,31/07/2020,8221163,284.59,REDACTED,REDACTED,Computer Refunds,Corporate Finance
HCC,Hull City Council,21/07/2020,8055398,150.00,REDACTED,REDACTED,Computer Refunds,Corporate Finance
HCC,Hull City Council,07/07/2020,8182198,818.58,REDACTED,REDACTED,Computer Refunds,Corporate Finance
HCC,Hull City Council,03/07/2020,8168950,12.25,REDACTED,REDACTED,Computer Refunds,Corporate Finance
HCC,Hull City Council,31/07/2020,8221160,591.04,REDACTED,REDACTED,Computer Refunds,Corporate Finance
HCC,Hull City Council,07/07/2020,8182195,34.77,REDACTED,REDACTED,Computer Refunds,Corporate Finance
HCC,Hull City Council,21/07/2020,8198729,65.57,REDACTED,REDACTED,Computer Refunds,Corporate Finance
HCC,Hull City Council,07/07/2020,7675339,105.04,REDACTED,REDACTED,Computer Refunds,Corporate Finance
HCC,Hull City Council,07/07/2020,8182196,59.21,REDACTED,REDACTED,Computer Refunds,Corporate Finance
HCC,Hull City Council,31/07/2020,8221161,185.62,REDACTED,REDACTED,Computer Refunds,Corporate Finance
HCC,Hull City Council,24/07/2020,8205497,146.59,REDACTED,REDACTED,Computer Refunds,Corporate Finance
HCC,Hull City Council,15/07/2020,8195488,20.00,REDACTED,REDACTED,Computer Refunds,Corporate Finance
HCC,Hull City Council,21/07/2020,8070146,150.00,REDACTED,REDACTED,Computer Refunds,Corporate Finance
HCC,Hull City Council,24/07/2020,8205498,820.33,REDACTED,REDACTED,Computer Refunds,Corporate Finance
HCC,Hull City Council,21/07/2020,7470182,49.24,REDACTED,REDACTED,Computer Refunds,Corporate Finance
HCC,Hull City Council,15/07/2020,8195485,22.00,REDACTED,REDACTED,Computer Refunds,Corporate Finance
HCC,Hull City Council,15/07/2020,8195486,20.00,REDACTED,REDACTED,Computer Refunds,Corporate Finance
HCC,Hull City Council,14/07/2020,8187884,80.00,REDACTED,REDACTED,Computer Refunds,Corporate Finance
HCC,Hull City Council,15/07/2020,8195483,112.00,REDACTED,REDACTED,Computer Refunds,Corporate Finance
HCC,Hull City Council,15/07/2020,8195484,384.00,REDACTED,REDACTED,Computer Refunds,Corporate Finance
HCC,Hull City Council,31/07/2020,8221158,27.63,REDACTED,REDACTED,Computer Refunds,Corporate Finance
HCC,Hull City Council,14/07/2020,8187885,357.93,REDACTED,REDACTED,Computer Refunds,Corporate Finance
HCC,Hull City Council,31/07/2020,8221159,"1,509.12",REDACTED,REDACTED,Computer Refunds,Corporate Finance
HCC,Hull City Council,21/07/2020,8070111,150.00,REDACTED,REDACTED,Computer Refunds,Corporate Finance
HCC,Hull City Council,03/07/2020,8168951,110.00,REDACTED,REDACTED,Computer Refunds,Corporate Finance
HCC,Hull City Council,15/07/2020,8195481,30.59,REDACTED,REDACTED,Computer Refunds,Corporate Finance
HCC,Hull City Council,07/07/2020,8182193,43.61,REDACTED,REDACTED,Computer Refunds,Corporate Finance
HCC,Hull City Council,24/07/2020,8205495,44.03,REDACTED,REDACTED,Computer Refunds,Corporate Finance
HCC,Hull City Council,03/07/2020,8168948,243.21,REDACTED,REDACTED,Computer Refunds,Corporate Finance
HCC,Hull City Council,24/07/2020,8205496,11.51,REDACTED,REDACTED,Computer Refunds,Corporate Finance
HCC,Hull City Council,15/07/2020,8195482,97.36,REDACTED,REDACTED,Computer Refunds,Corporate Finance
HCC,Hull City Council,14/07/2020,8046746,608.25,REDACTED,REDACTED,Computer Refunds,Corporate Finance
HCC,Hull City Council,21/07/2020,8198727,44.45,REDACTED,REDACTED,Computer Refunds,Corporate Finance
HCC,Hull City Council,03/07/2020,8168949,259.67,REDACTED,REDACTED,Computer Refunds,Corporate Finance
HCC,Hull City Council,15/07/2020,8195479,346.63,REDACTED,REDACTED,Computer Refunds,Corporate Finance
HCC,Hull City Council,15/07/2020,8195480,367.62,REDACTED,REDACTED,Computer Refunds,Corporate Finance
HCC,Hull City Council,07/07/2020,8182194,93.58,REDACTED,REDACTED,Computer Refunds,Corporate Finance
HCC,Hull City Council,21/07/2020,8198724,70.39,REDACTED,REDACTED,Computer Refunds,Corporate Finance
HCC,Hull City Council,31/07/2020,8221157,45.44,REDACTED,REDACTED,Computer Refunds,Corporate Finance
HCC,Hull City Council,21/07/2020,8198725,245.96,REDACTED,REDACTED,Computer Refunds,Corporate Finance
HCC,Hull City Council,24/07/2020,8205493,34.97,REDACTED,REDACTED,Computer Refunds,Corporate Finance
HCC,Hull City Council,21/07/2020,8198722,73.57,REDACTED,REDACTED,Computer Refunds,Corporate Finance
HCC,Hull City Council,24/07/2020,8205494,62.39,REDACTED,REDACTED,Computer Refunds,Corporate Finance
HCC,Hull City Council,14/07/2020,8160919,81.46,REDACTED,REDACTED,Computer Refunds,Corporate Finance
HCC,Hull City Council,21/07/2020,8198723,46.78,REDACTED,REDACTED,Computer Refunds,Corporate Finance
HCC,Hull City Council,10/07/2020,8187802,570.99,CUBITTS CONSTRUCTION CO.,01030670,Disabled Facilities Grant,CAPITAL
HCC,Hull City Council,17/07/2020,8198557,"4,322.73",CUBITTS CONSTRUCTION CO.,01030670,Disabled Facilities Grant,CAPITAL
HCC,Hull City Council,24/07/2020,8213482,"1,440.91",CUBITTS CONSTRUCTION CO.,01030670,Disabled Facilities Grant,CAPITAL
HCC,Hull City Council,28/07/2020,8217523,86.40,CUSTOM BUSINESS EQUIPMENT & SUPPLIES LTD,01030236,Expenditure,Corporate Finance
HCC,Hull City Council,02/07/2020,8169045,176.76,CUSTOM BUSINESS EQUIPMENT & SUPPLIES LTD,01030236,CSC Operations,Customer Services & Transformation
HCC,Hull City Council,28/07/2020,8218617,155.25,CUSTOM BUSINESS EQUIPMENT & SUPPLIES LTD,01030236,Central Training,Human Resources and Organisational Development
HCC,Hull City Council,30/07/2020,8196489,47.46,CUSTOM BUSINESS EQUIPMENT & SUPPLIES LTD,01030236,Integrated Physical & Sensory Service (IPAS),Learning and Skills
HCC,Hull City Council,28/07/2020,8218617,51.75,CUSTOM BUSINESS EQUIPMENT & SUPPLIES LTD,01030236,16-Practice Management,Neighbourhoods & Housing
HCC,Hull City Council,23/07/2020,8206478,"1,000.00",CVENT EUROPE LTD,10125408,Digital and Online Provision,Major Projects & Infrastructure
HCC,Hull City Council,10/07/2020,8161937,"18,576.00",D3 OFFICE GROUP LTD,01150251,Supporting Independence,Adults Social Care
HCC,Hull City Council,31/07/2020,8221437,"9,625.50",DARTINGTON HALL TRUST,01335373,Training - ASC,Human Resources and Organisational Development
HCC,Hull City Council,28/07/2020,8218736,440.31,DAVID BRIGGS ASSOCIATES LTD,01303085,Comm & S/work General,Safeguarding
HCC,Hull City Council,28/07/2020,8218737,245.70,DAVID BRIGGS ASSOCIATES LTD,01303085,Comm & S/work General,Safeguarding
HCC,Hull City Council,28/07/2020,8218627,"1,049.00",DAVIES SPORTS,01327299,Commissioning Budget (H&WB),City Safe & Early Intervention
HCC,Hull City Council,06/07/2020,8182220,74.46,DECATHLON UK LTD,10139019,Expenditure,Corporate Finance
HCC,Hull City Council,22/07/2020,8204420,69.96,DECATHLON UK LTD,10139019,Expenditure,Corporate Finance
HCC,Hull City Council,13/07/2020,8188066,"2,380.00",DELBROOK HOUSE RES HOME,01270288,Agency Residential - Over 65,Adults Social Care
HCC,Hull City Council,13/07/2020,8188066,"15,905.52",DELBROOK HOUSE RES HOME,01270288,Agency Residential - Under 65,Adults Social Care
HCC,Hull City Council,13/07/2020,8188066,"-8,311.52",DELBROOK HOUSE RES HOME,01270288,Agency Residential - Under 65,Adults Social Care
HCC,Hull City Council,13/07/2020,8188066,-423.00,DELBROOK HOUSE RES HOME,01270288,Agency Residential - Under 65,Adults Social Care
HCC,Hull City Council,03/07/2020,8147594,411.00,DELTA SECURITY,10012469,Preston Road High Dependency Unit,Adults Social Care
HCC,Hull City Council,15/07/2020,8195504,90.39,DENIS RAWLINS LTD,01270875,Ferensway Transport Interchange,Street Scene Services
HCC,Hull City Council,13/07/2020,8188076,"10,032.00",DESMOND HOUSE,01040756,Agency Residential - Over 65,Adults Social Care
HCC,Hull City Council,13/07/2020,8188076,"-1,788.40",DESMOND HOUSE,01040756,Agency Residential - Over 65,Adults Social Care
HCC,Hull City Council,13/07/2020,8188076,"20,668.24",DESMOND HOUSE,01040756,Agency Residential - Under 65,Adults Social Care
HCC,Hull City Council,13/07/2020,8188076,"-1,289.00",DESMOND HOUSE,01040756,Agency Residential - Under 65,Adults Social Care
HCC,Hull City Council,06/07/2020,8182424,"38,872.96",DH HOMECARE,10001236,Agency Home Care,Adults Social Care
HCC,Hull City Council,20/07/2020,8199573,"38,872.96",DH HOMECARE,10001236,Agency Home Care,Adults Social Care
HCC,Hull City Council,23/07/2020,8208674,"1,178.62",DH HOMECARE,10001236,Agency Home Care,Adults Social Care
HCC,Hull City Council,23/07/2020,8208675,"3,920.98",DH HOMECARE,10001236,Agency Home Care,Adults Social Care
HCC,Hull City Council,24/07/2020,8213500,"147,767.76",DH HOMECARE,10001236,Agency Home Care,Adults Social Care
HCC,Hull City Council,24/07/2020,8213512,"14,385.00",DH HOMECARE,10001236,Agency Home Care,Adults Social Care
HCC,Hull City Council,29/07/2020,8201668,520.00,DISCLOSURE & BARRING SERVICE,10068920,Head of Community Care Services,Adults Social Care
HCC,Hull City Council,29/07/2020,8201668,40.00,DISCLOSURE & BARRING SERVICE,10068920,Early Years & Childcare,City Safe & Early Intervention
HCC,Hull City Council,29/07/2020,8201668,40.00,DISCLOSURE & BARRING SERVICE,10068920,Early Years & Childcare,City Safe & Early Intervention
HCC,Hull City Council,29/07/2020,8201668,40.00,DISCLOSURE & BARRING SERVICE,10068920,Transactional HR Team,Human Resources and Organisational Development
HCC,Hull City Council,29/07/2020,8201668,440.00,DISCLOSURE & BARRING SERVICE,10068920,Transactional HR Team,Human Resources and Organisational Development
HCC,Hull City Council,29/07/2020,8201668,"1,520.00",DISCLOSURE & BARRING SERVICE,10068920,Transactional HR Team,Human Resources and Organisational Development
HCC,Hull City Council,29/07/2020,8201668,40.00,DISCLOSURE & BARRING SERVICE,10068920,Education Psychology Service,Learning and Skills
HCC,Hull City Council,29/07/2020,8201668,80.00,DISCLOSURE & BARRING SERVICE,10068920,Integrated Physical & Sensory Service (IPAS),Learning and Skills
HCC,Hull City Council,29/07/2020,8201668,200.00,DISCLOSURE & BARRING SERVICE,10068920,Music Service Main Budget,Learning and Skills
HCC,Hull City Council,29/07/2020,8201668,400.00,DISCLOSURE & BARRING SERVICE,10068920,"Facilities, Building Cleaning",Property & Assets
HCC,Hull City Council,29/07/2020,8201668,240.00,DISCLOSURE & BARRING SERVICE,10068920,School Meals Overheads,Property & Assets
HCC,Hull City Council,29/07/2020,8201668,40.00,DISCLOSURE & BARRING SERVICE,10068920,Children & Familes Disability Team (Non Grant),Safeguarding
HCC,Hull City Council,29/07/2020,8201668,"1,840.00",DISCLOSURE & BARRING SERVICE,10068920,Fostering - Hull City Council,Safeguarding
HCC,Hull City Council,29/07/2020,8201668,80.00,DISCLOSURE & BARRING SERVICE,10068920,Pause Project,Safeguarding
HCC,Hull City Council,29/07/2020,8201668,80.00,DISCLOSURE & BARRING SERVICE,10068920,Permenancy Team 3,Safeguarding
HCC,Hull City Council,29/07/2020,8201668,160.00,DISCLOSURE & BARRING SERVICE,10068920,Localities East - Team 5,Safeguarding
HCC,Hull City Council,29/07/2020,8201668,80.00,DISCLOSURE & BARRING SERVICE,10068920,Localities West - Team 5,Safeguarding
HCC,Hull City Council,29/07/2020,8201668,120.00,DISCLOSURE & BARRING SERVICE,10068920,Children's Homes Resources,Safeguarding
HCC,Hull City Council,29/07/2020,8201668,40.00,DISCLOSURE & BARRING SERVICE,10068920,Operational Transport - Education Transport,Street Scene Services
HCC,Hull City Council,29/07/2020,8201668,40.00,DISCLOSURE & BARRING SERVICE,10068920,Operational Transport - Adults Transport,Street Scene Services
HCC,Hull City Council,03/07/2020,8182217,180.00,DISRUPTIVE INNOVATORS NETWORK LTD,10126394,Business Core,Neighbourhoods & Housing
HCC,Hull City Council,29/07/2020,8220930,"20,960.00",DORCHESTER PRIMARY (ACADEMY),10070051,Schools Budget Contingency,Learning and Skills
HCC,Hull City Council,24/07/2020,8216514,"1,256.64",DOVE HOUSE HOSPICE,01310671,Commissioning Team,Adults Social Care
HCC,Hull City Council,07/07/2020,8182637,40.00,DRAGONFLY SIGN & DISPLAY LIMITED,10142973,Technology,City Safe & Early Intervention
HCC,Hull City Council,03/07/2020,8182122,500.45,DRIFFIELD JUNIOR SCHOOL,01333692,Virtual School for LAC,Learning and Skills
HCC,Hull City Council,31/07/2020,8221397,835.00,DRIFFIELD JUNIOR SCHOOL,01333692,HN Payments to other LAs,Learning and Skills
HCC,Hull City Council,27/07/2020,8218546,320.00,DRYDEN LINE MARKING,01040677,Development & Design,Major Projects & Infrastructure
HCC,Hull City Council,01/07/2020,8167128,"17,133.45",DRYDEN LINE MARKING,01040677,Road Markings,Major Projects & Infrastructure
HCC,Hull City Council,24/07/2020,8216547,"4,420.36",DRYDEN LINE MARKING,01040677,Road Markings,Major Projects & Infrastructure
HCC,Hull City Council,23/07/2020,8205618,275.00,DRYDEN LINE MARKING,01040677,Highways Operations,Street Scene Services
HCC,Hull City Council,13/07/2020,8188293,801.64,DSG RETAIL LTD,01040438,Integrated Physical & Sensory Service (IPAS),Learning and Skills
HCC,Hull City Council,29/07/2020,8221066,450.00,DTA PUBLICATIONS,10081139,Development Management,Economic Development and Regeneration
HCC,Hull City Council,01/07/2020,8160876,152.70,DULUX DECORATOR CENTRES,01130289,Bursary,City Safe & Early Intervention
HCC,Hull City Council,13/07/2020,8188355,81.95,DULUX DECORATOR CENTRES,01130289,Bursary,City Safe & Early Intervention
HCC,Hull City Council,31/07/2020,8221409,"1,833.00",DUNSWELL PRIMARY SCHOOL,10063424,HN Payments to other LAs,Learning and Skills
HCC,Hull City Council,07/07/2020,8182428,43.00,DVLA,01318705,Pathway Team,Safeguarding
HCC,Hull City Council,10/07/2020,8182593,43.00,DVLA,01318705,Pathway Team,Safeguarding
HCC,Hull City Council,28/07/2020,8198668,43.00,DVLA,01318705,Pathway Team,Safeguarding
HCC,Hull City Council,28/07/2020,8200501,43.00,DVLA,01318705,Pathway Team,Safeguarding
HCC,Hull City Council,28/07/2020,8200358,43.00,DVLA,01318705,Care Leavers,Safeguarding
HCC,Hull City Council,28/07/2020,8200359,43.00,DVLA,01318705,Care Leavers,Safeguarding
HCC,Hull City Council,17/07/2020,8198604,214.50,DWF LAW LLP,10138408,Ings Renewal Programme,CAPITAL
HCC,Hull City Council,22/07/2020,8190504,"1,000.00",DYNAMIC PEOPLE SOLUTIONS LIMITED,10143035,ERDF - ICT,Economic Development and Regeneration
HCC,Hull City Council,07/07/2020,8184756,538.48,DYNNIQ UK LTD,10069840,Footways Greenwood Avenue East Side,CAPITAL
HCC,Hull City Council,07/07/2020,8182540,670.30,DYNNIQ UK LTD,10069840,Traffic Signals,Street Scene Services
HCC,Hull City Council,07/07/2020,8184747,"5,106.95",DYNNIQ UK LTD,10069840,Traffic Signals,Street Scene Services
HCC,Hull City Council,07/07/2020,8184748,"4,628.91",DYNNIQ UK LTD,10069840,Traffic Signals,Street Scene Services
HCC,Hull City Council,07/07/2020,8184758,175.02,DYNNIQ UK LTD,10069840,Traffic Signals,Street Scene Services
HCC,Hull City Council,07/07/2020,8184759,29.17,DYNNIQ UK LTD,10069840,Traffic Signals,Street Scene Services
HCC,Hull City Council,07/07/2020,8184760,538.48,DYNNIQ UK LTD,10069840,Traffic Signals,Street Scene Services
HCC,Hull City Council,07/07/2020,8184763,538.48,DYNNIQ UK LTD,10069840,Traffic Signals,Street Scene Services
HCC,Hull City Council,07/07/2020,8184764,538.48,DYNNIQ UK LTD,10069840,Traffic Signals,Street Scene Services
HCC,Hull City Council,15/07/2020,8191506,675.00,E W BROWN & SON LTD,01020296,National Assistance Act,Customer Services & Transformation
HCC,Hull City Council,02/07/2020,8168973,17.21,E.ON UK PLC,10008763,R&M - Citywide,Neighbourhoods & Housing
HCC,Hull City Council,02/07/2020,8168974,658.23,E.ON UK PLC,10008763,R&M - Citywide,Neighbourhoods & Housing
HCC,Hull City Council,02/07/2020,8168975,226.91,E.ON UK PLC,10008763,R&M - Citywide,Neighbourhoods & Housing
HCC,Hull City Council,24/07/2020,8213490,60.21,E.ON UK PLC,10008763,R&M - Citywide,Neighbourhoods & Housing
HCC,Hull City Council,24/07/2020,8213490,36.00,E.ON UK PLC,10008763,R&M - Citywide,Neighbourhoods & Housing
HCC,Hull City Council,13/07/2020,8187994,147.30,E.ON UK PLC,10008763,Energy,Property & Assets
HCC,Hull City Council,24/07/2020,8214492,42.13,E.ON UK PLC,10008763,Energy,Property & Assets
HCC,Hull City Council,24/07/2020,8215482,1.84,E.ON UK PLC,10008763,Energy,Property & Assets
HCC,Hull City Council,24/07/2020,8215483,9.16,E.ON UK PLC,10008763,Energy,Property & Assets
HCC,Hull City Council,24/07/2020,8215484,10.02,E.ON UK PLC,10008763,Energy,Property & Assets
HCC,Hull City Council,24/07/2020,8215485,58.80,E.ON UK PLC,10008763,Energy,Property & Assets
HCC,Hull City Council,06/07/2020,8182228,178.91,EARLY YEARS ALLIANCE,10131628,Gateway Protection Programme-Refugees,Learning and Skills
HCC,Hull City Council,06/07/2020,8182228,178.92,EARLY YEARS ALLIANCE,10131628,Gateway Protection Programme-Refugees,Learning and Skills
HCC,Hull City Council,06/07/2020,8182229,178.91,EARLY YEARS ALLIANCE,10131628,Gateway Protection Programme-Refugees,Learning and Skills
HCC,Hull City Council,06/07/2020,8182229,178.92,EARLY YEARS ALLIANCE,10131628,Gateway Protection Programme-Refugees,Learning and Skills
HCC,Hull City Council,06/07/2020,8182230,127.54,EARLY YEARS ALLIANCE,10131628,Gateway Protection Programme-Refugees,Learning and Skills
HCC,Hull City Council,20/07/2020,8187855,55.90,EARLY YEARS RESOURCES,01131025,Music Service Main Budget,Learning and Skills
HCC,Hull City Council,22/07/2020,8202483,"8,100.00",EARTHSENSE SYSTEMS LIMITED,10140233,Pollution Watch - Smart City,CAPITAL
HCC,Hull City Council,10/07/2020,8187742,240.00,EAST HULL COMMUNITY FARM,01050492,Agency Day Care,Adults Social Care
HCC,Hull City Council,10/07/2020,8187743,240.00,EAST HULL COMMUNITY FARM,01050492,Agency Day Care,Adults Social Care
HCC,Hull City Council,10/07/2020,8187744,240.00,EAST HULL COMMUNITY FARM,01050492,Agency Day Care,Adults Social Care
HCC,Hull City Council,10/07/2020,8187745,240.00,EAST HULL COMMUNITY FARM,01050492,Agency Day Care,Adults Social Care
HCC,Hull City Council,10/07/2020,8187746,240.00,EAST HULL COMMUNITY FARM,01050492,Agency Day Care,Adults Social Care
HCC,Hull City Council,10/07/2020,8187747,240.00,EAST HULL COMMUNITY FARM,01050492,Agency Day Care,Adults Social Care
HCC,Hull City Council,10/07/2020,8187748,240.00,EAST HULL COMMUNITY FARM,01050492,Agency Day Care,Adults Social Care
HCC,Hull City Council,10/07/2020,8187749,240.00,EAST HULL COMMUNITY FARM,01050492,Agency Day Care,Adults Social Care
HCC,Hull City Council,10/07/2020,8187750,240.00,EAST HULL COMMUNITY FARM,01050492,Agency Day Care,Adults Social Care
HCC,Hull City Council,10/07/2020,8187751,480.00,EAST HULL COMMUNITY FARM,01050492,Agency Day Care,Adults Social Care
HCC,Hull City Council,10/07/2020,8187752,480.00,EAST HULL COMMUNITY FARM,01050492,Agency Day Care,Adults Social Care
HCC,Hull City Council,10/07/2020,8187753,480.00,EAST HULL COMMUNITY FARM,01050492,Agency Day Care,Adults Social Care
HCC,Hull City Council,10/07/2020,8187754,480.00,EAST HULL COMMUNITY FARM,01050492,Agency Day Care,Adults Social Care
HCC,Hull City Council,10/07/2020,8187755,480.00,EAST HULL COMMUNITY FARM,01050492,Agency Day Care,Adults Social Care
HCC,Hull City Council,10/07/2020,8187756,480.00,EAST HULL COMMUNITY FARM,01050492,Agency Day Care,Adults Social Care
HCC,Hull City Council,10/07/2020,8187757,720.00,EAST HULL COMMUNITY FARM,01050492,Agency Day Care,Adults Social Care
HCC,Hull City Council,10/07/2020,8187758,720.00,EAST HULL COMMUNITY FARM,01050492,Agency Day Care,Adults Social Care
HCC,Hull City Council,10/07/2020,8187759,960.00,EAST HULL COMMUNITY FARM,01050492,Agency Day Care,Adults Social Care
HCC,Hull City Council,10/07/2020,8187760,120.00,EAST HULL COMMUNITY FARM,01050492,Agency Day Care,Adults Social Care
HCC,Hull City Council,06/07/2020,8182267,179.38,EAST HULL COMMUNITY TRANSPORT,01328196,Home to School Transport - Special,Learning and Skills
HCC,Hull City Council,06/07/2020,8182267,956.45,EAST HULL COMMUNITY TRANSPORT,01328196,Home to School Transport - Special,Learning and Skills
HCC,Hull City Council,06/07/2020,8182267,"1,523.42",EAST HULL COMMUNITY TRANSPORT,01328196,Home to School Transport - Special,Learning and Skills
HCC,Hull City Council,06/07/2020,8182268,161.67,EAST HULL COMMUNITY TRANSPORT,01328196,Home to School Transport - Special,Learning and Skills
HCC,Hull City Council,06/07/2020,8182268,861.99,EAST HULL COMMUNITY TRANSPORT,01328196,Home to School Transport - Special,Learning and Skills
HCC,Hull City Council,06/07/2020,8182268,"1,372.94",EAST HULL COMMUNITY TRANSPORT,01328196,Home to School Transport - Special,Learning and Skills
HCC,Hull City Council,06/07/2020,8182269,161.67,EAST HULL COMMUNITY TRANSPORT,01328196,Home to School Transport - Special,Learning and Skills
HCC,Hull City Council,06/07/2020,8182269,861.99,EAST HULL COMMUNITY TRANSPORT,01328196,Home to School Transport - Special,Learning and Skills
HCC,Hull City Council,06/07/2020,8182269,"1,372.94",EAST HULL COMMUNITY TRANSPORT,01328196,Home to School Transport - Special,Learning and Skills
HCC,Hull City Council,06/07/2020,8182270,161.67,EAST HULL COMMUNITY TRANSPORT,01328196,Home to School Transport - Special,Learning and Skills
HCC,Hull City Council,06/07/2020,8182270,861.99,EAST HULL COMMUNITY TRANSPORT,01328196,Home to School Transport - Special,Learning and Skills
HCC,Hull City Council,06/07/2020,8182270,"1,372.94",EAST HULL COMMUNITY TRANSPORT,01328196,Home to School Transport - Special,Learning and Skills
HCC,Hull City Council,06/07/2020,8182271,171.82,EAST HULL COMMUNITY TRANSPORT,01328196,Home to School Transport - Special,Learning and Skills
HCC,Hull City Council,06/07/2020,8182271,916.10,EAST HULL COMMUNITY TRANSPORT,01328196,Home to School Transport - Special,Learning and Skills
HCC,Hull City Council,06/07/2020,8182271,"1,459.13",EAST HULL COMMUNITY TRANSPORT,01328196,Home to School Transport - Special,Learning and Skills
HCC,Hull City Council,06/07/2020,8182272,181.26,EAST HULL COMMUNITY TRANSPORT,01328196,Home to School Transport - Special,Learning and Skills
HCC,Hull City Council,06/07/2020,8182272,966.43,EAST HULL COMMUNITY TRANSPORT,01328196,Home to School Transport - Special,Learning and Skills
HCC,Hull City Council,06/07/2020,8182272,"1,539.30",EAST HULL COMMUNITY TRANSPORT,01328196,Home to School Transport - Special,Learning and Skills
HCC,Hull City Council,06/07/2020,8182273,179.44,EAST HULL COMMUNITY TRANSPORT,01328196,Home to School Transport - Special,Learning and Skills
HCC,Hull City Council,06/07/2020,8182273,956.76,EAST HULL COMMUNITY TRANSPORT,01328196,Home to School Transport - Special,Learning and Skills
HCC,Hull City Council,06/07/2020,8182273,"1,523.89",EAST HULL COMMUNITY TRANSPORT,01328196,Home to School Transport - Special,Learning and Skills
HCC,Hull City Council,06/07/2020,8182274,191.46,EAST HULL COMMUNITY TRANSPORT,01328196,Home to School Transport - Special,Learning and Skills
HCC,Hull City Council,06/07/2020,8182274,"1,020.84",EAST HULL COMMUNITY TRANSPORT,01328196,Home to School Transport - Special,Learning and Skills
HCC,Hull City Council,06/07/2020,8182274,"1,625.97",EAST HULL COMMUNITY TRANSPORT,01328196,Home to School Transport - Special,Learning and Skills
HCC,Hull City Council,06/07/2020,8182275,192.89,EAST HULL COMMUNITY TRANSPORT,01328196,Home to School Transport - Special,Learning and Skills
HCC,Hull City Council,06/07/2020,8182275,"1,028.48",EAST HULL COMMUNITY TRANSPORT,01328196,Home to School Transport - Special,Learning and Skills
HCC,Hull City Council,06/07/2020,8182275,"1,638.12",EAST HULL COMMUNITY TRANSPORT,01328196,Home to School Transport - Special,Learning and Skills
HCC,Hull City Council,06/07/2020,8182276,196.35,EAST HULL COMMUNITY TRANSPORT,01328196,Home to School Transport - Special,Learning and Skills
HCC,Hull City Council,06/07/2020,8182276,"1,046.92",EAST HULL COMMUNITY TRANSPORT,01328196,Home to School Transport - Special,Learning and Skills
HCC,Hull City Council,06/07/2020,8182276,"1,667.49",EAST HULL COMMUNITY TRANSPORT,01328196,Home to School Transport - Special,Learning and Skills
HCC,Hull City Council,06/07/2020,8182277,163.11,EAST HULL COMMUNITY TRANSPORT,01328196,Home to School Transport - Special,Learning and Skills
HCC,Hull City Council,06/07/2020,8182277,869.70,EAST HULL COMMUNITY TRANSPORT,01328196,Home to School Transport - Special,Learning and Skills
HCC,Hull City Council,06/07/2020,8182277,"1,385.23",EAST HULL COMMUNITY TRANSPORT,01328196,Home to School Transport - Special,Learning and Skills
HCC,Hull City Council,06/07/2020,8182278,202.25,EAST HULL COMMUNITY TRANSPORT,01328196,Home to School Transport - Special,Learning and Skills
HCC,Hull City Council,06/07/2020,8182278,"1,078.35",EAST HULL COMMUNITY TRANSPORT,01328196,Home to School Transport - Special,Learning and Skills
HCC,Hull City Council,06/07/2020,8182278,"1,717.57",EAST HULL COMMUNITY TRANSPORT,01328196,Home to School Transport - Special,Learning and Skills
HCC,Hull City Council,06/07/2020,8182279,182.93,EAST HULL COMMUNITY TRANSPORT,01328196,Home to School Transport - Special,Learning and Skills
HCC,Hull City Council,06/07/2020,8182279,975.35,EAST HULL COMMUNITY TRANSPORT,01328196,Home to School Transport - Special,Learning and Skills
HCC,Hull City Council,06/07/2020,8182279,"1,553.50",EAST HULL COMMUNITY TRANSPORT,01328196,Home to School Transport - Special,Learning and Skills
HCC,Hull City Council,06/07/2020,8182280,163.11,EAST HULL COMMUNITY TRANSPORT,01328196,Home to School Transport - Special,Learning and Skills
HCC,Hull City Council,06/07/2020,8182280,869.70,EAST HULL COMMUNITY TRANSPORT,01328196,Home to School Transport - Special,Learning and Skills
HCC,Hull City Council,06/07/2020,8182280,"1,385.23",EAST HULL COMMUNITY TRANSPORT,01328196,Home to School Transport - Special,Learning and Skills
HCC,Hull City Council,06/07/2020,8182281,177.63,EAST HULL COMMUNITY TRANSPORT,01328196,Home to School Transport - Special,Learning and Skills
HCC,Hull City Council,06/07/2020,8182281,947.08,EAST HULL COMMUNITY TRANSPORT,01328196,Home to School Transport - Special,Learning and Skills
HCC,Hull City Council,06/07/2020,8182281,"1,508.49",EAST HULL COMMUNITY TRANSPORT,01328196,Home to School Transport - Special,Learning and Skills
HCC,Hull City Council,06/07/2020,8182282,174.17,EAST HULL COMMUNITY TRANSPORT,01328196,Home to School Transport - Special,Learning and Skills
HCC,Hull City Council,06/07/2020,8182282,928.64,EAST HULL COMMUNITY TRANSPORT,01328196,Home to School Transport - Special,Learning and Skills
HCC,Hull City Council,06/07/2020,8182282,"1,479.12",EAST HULL COMMUNITY TRANSPORT,01328196,Home to School Transport - Special,Learning and Skills
HCC,Hull City Council,06/07/2020,8182283,137.02,EAST HULL COMMUNITY TRANSPORT,01328196,Home to School Transport - Special,Learning and Skills
HCC,Hull City Council,06/07/2020,8182283,730.55,EAST HULL COMMUNITY TRANSPORT,01328196,Home to School Transport - Special,Learning and Skills
HCC,Hull City Council,06/07/2020,8182283,"1,163.60",EAST HULL COMMUNITY TRANSPORT,01328196,Home to School Transport - Special,Learning and Skills
HCC,Hull City Council,23/07/2020,8211478,102.95,EAST HULL COMMUNITY TRANSPORT,01328196,Home to School Transport - Special,Learning and Skills
HCC,Hull City Council,23/07/2020,8211478,696.60,EAST HULL COMMUNITY TRANSPORT,01328196,Home to School Transport - Special,Learning and Skills
HCC,Hull City Council,23/07/2020,8211478,721.31,EAST HULL COMMUNITY TRANSPORT,01328196,Home to School Transport - Special,Learning and Skills
HCC,Hull City Council,23/07/2020,8211479,88.84,EAST HULL COMMUNITY TRANSPORT,01328196,Home to School Transport - Special,Learning and Skills
HCC,Hull City Council,23/07/2020,8211479,601.14,EAST HULL COMMUNITY TRANSPORT,01328196,Home to School Transport - Special,Learning and Skills
HCC,Hull City Council,23/07/2020,8211479,622.45,EAST HULL COMMUNITY TRANSPORT,01328196,Home to School Transport - Special,Learning and Skills
HCC,Hull City Council,23/07/2020,8211480,96.42,EAST HULL COMMUNITY TRANSPORT,01328196,Home to School Transport - Special,Learning and Skills
HCC,Hull City Council,23/07/2020,8211480,652.39,EAST HULL COMMUNITY TRANSPORT,01328196,Home to School Transport - Special,Learning and Skills
HCC,Hull City Council,23/07/2020,8211480,675.51,EAST HULL COMMUNITY TRANSPORT,01328196,Home to School Transport - Special,Learning and Skills
HCC,Hull City Council,23/07/2020,8211481,108.13,EAST HULL COMMUNITY TRANSPORT,01328196,Home to School Transport - Special,Learning and Skills
HCC,Hull City Council,23/07/2020,8211481,731.64,EAST HULL COMMUNITY TRANSPORT,01328196,Home to School Transport - Special,Learning and Skills
HCC,Hull City Council,23/07/2020,8211481,757.57,EAST HULL COMMUNITY TRANSPORT,01328196,Home to School Transport - Special,Learning and Skills
HCC,Hull City Council,23/07/2020,8211482,101.16,EAST HULL COMMUNITY TRANSPORT,01328196,Home to School Transport - Special,Learning and Skills
HCC,Hull City Council,23/07/2020,8211482,684.46,EAST HULL COMMUNITY TRANSPORT,01328196,Home to School Transport - Special,Learning and Skills
HCC,Hull City Council,23/07/2020,8211482,708.72,EAST HULL COMMUNITY TRANSPORT,01328196,Home to School Transport - Special,Learning and Skills
HCC,Hull City Council,23/07/2020,8211483,81.58,EAST HULL COMMUNITY TRANSPORT,01328196,Home to School Transport - Special,Learning and Skills
HCC,Hull City Council,23/07/2020,8211483,552.02,EAST HULL COMMUNITY TRANSPORT,01328196,Home to School Transport - Special,Learning and Skills
HCC,Hull City Council,23/07/2020,8211483,571.59,EAST HULL COMMUNITY TRANSPORT,01328196,Home to School Transport - Special,Learning and Skills
HCC,Hull City Council,23/07/2020,8211484,116.06,EAST HULL COMMUNITY TRANSPORT,01328196,Home to School Transport - Special,Learning and Skills
HCC,Hull City Council,23/07/2020,8211484,785.32,EAST HULL COMMUNITY TRANSPORT,01328196,Home to School Transport - Special,Learning and Skills
HCC,Hull City Council,23/07/2020,8211484,813.17,EAST HULL COMMUNITY TRANSPORT,01328196,Home to School Transport - Special,Learning and Skills
HCC,Hull City Council,23/07/2020,8211485,114.02,EAST HULL COMMUNITY TRANSPORT,01328196,Home to School Transport - Special,Learning and Skills
HCC,Hull City Council,23/07/2020,8211485,771.49,EAST HULL COMMUNITY TRANSPORT,01328196,Home to School Transport - Special,Learning and Skills
HCC,Hull City Council,23/07/2020,8211485,798.84,EAST HULL COMMUNITY TRANSPORT,01328196,Home to School Transport - Special,Learning and Skills
HCC,Hull City Council,23/07/2020,8211486,113.17,EAST HULL COMMUNITY TRANSPORT,01328196,Home to School Transport - Special,Learning and Skills
HCC,Hull City Council,23/07/2020,8211486,765.77,EAST HULL COMMUNITY TRANSPORT,01328196,Home to School Transport - Special,Learning and Skills
